Transaction Date,Local Authority Department,BENEFICIARY,Purpose,Amount,Non Recoverable,Merchant Category
01-03-2022,Brighter Futures Director,Ankh Services,Professional Services - General,2932.74,0,NON COMMERCIAL SUPPLIER
01-03-2022,Children and Young People,Family First Care Services Ltd,Residential Placements - Private Contractors Payment,5926.62,0,NON COMMERCIAL SUPPLIER
01-03-2022,Environment and Sustainable Transport,Danfo (Uk) Limited,Building Alterations And Materials,2482.41,0,VENDOR
01-03-2022,"People, Policy and Performance",Vanacomm Ltd,"Advertising, Publicity And Marketing",9343.06,0,
01-03-2022,Housing Revenue Account,Castle Water Ltd,Water And Sewerage,7749.11,0,COMMERCIAL SUPPLIER
01-03-2022,Adults & Health,Newham Chinese Association,Events,2000,0,VENDOR
01-03-2022,Dedicated Schools Budget,246 Dominus Conseil Ltd,Conference Expenses,1700,0,COMMERCIAL SUPPLIER
01-03-2022,Adults & Health,Newham Muslim Forum CIC,Arts And Leisure Costs,2000,0,COMMERCIAL SUPPLIER
01-03-2022,Adults & Health,QES Ltd,"Maintenance - Equipment, Furniture And Materials",13877.8,0,COMMERCIAL SUPPLIER
01-03-2022,Adults & Health,Prescott-Thomas Ltd,Catering And Vending Supplies,290.37,0,COMMERCIAL SUPPLIER
01-03-2022,oneSource,Daisy Corporate Services Trading Ltd,Land Line Telephone Costs,5059.38,0,COMMERCIAL SUPPLIER
01-03-2022,oneSource,Daisy Corporate Services Trading Ltd,Land Line Telephone Costs,2062.28,0,COMMERCIAL SUPPLIER
01-03-2022,Housing Revenue Account,Daisy Corporate Services Trading Ltd,Cyclical/Planned Maintenance - Mechanical And Electrical,300.79,0,COMMERCIAL SUPPLIER
01-03-2022,Housing Revenue Account,Daisy Corporate Services Trading Ltd,Land Line Telephone Costs,360.95,0,COMMERCIAL SUPPLIER
01-03-2022,Housing Revenue Account,Daisy Corporate Services Trading Ltd,Land Line Telephone Costs,2414.62,0,COMMERCIAL SUPPLIER
01-03-2022,Children and Young People,Goldline Cars Ltd,Client Transport,5715,0,COMMERCIAL SUPPLIER
01-03-2022,Children and Young People,London Borough of Redbridge,Residential Placements - Private Contractors Payment,8602.93,0,COMMERCIAL SUPPLIER
01-03-2022,Children and Young People,Futures for Shared Lives Ltd,Supported Other Accommodation - Private Contractors Payment,536.27,0,NON COMMERCIAL SUPPLIER
01-03-2022,Children and Young People,Futures for Shared Lives Ltd,Supported Other Accommodation - Private Contractors Payment,536.27,0,NON COMMERCIAL SUPPLIER
01-03-2022,Children and Young People,Futures for Shared Lives Ltd,Supported Other Accommodation - Private Contractors Payment,536.27,0,NON COMMERCIAL SUPPLIER
01-03-2022,Children and Young People,Futures for Shared Lives Ltd,Supported Other Accommodation - Private Contractors Payment,536.27,0,NON COMMERCIAL SUPPLIER
01-03-2022,Inclusive Economy & Housing,David Richards (Printers & Distributors) Ltd,Printing,265,0,VENDOR
01-03-2022,oneSource,David Richards (Printers & Distributors) Ltd,Printing,2650,0,VENDOR
01-03-2022,Inclusive Economy & Housing,David Richards (Printers & Distributors) Ltd,Printing,210,0,VENDOR
01-03-2022,oneSource,David Richards (Printers & Distributors) Ltd,Printing,1080,0,VENDOR
01-03-2022,oneSource,David Richards (Printers & Distributors) Ltd,Printing,521.84,0,VENDOR
01-03-2022,oneSource,David Richards (Printers & Distributors) Ltd,Printing,895,0,VENDOR
01-03-2022,oneSource,David Richards (Printers & Distributors) Ltd,Printing,265,0,VENDOR
01-03-2022,oneSource,David Richards (Printers & Distributors) Ltd,Printing,380,0,VENDOR
01-03-2022,"People, Policy and Performance",Specialist Interpreter Ltd,Events,600,0,NON COMMERCIAL SUPPLIER
01-03-2022,Inclusive Economy & Housing,Site Sales Marketing Ltd,"Advertising, Publicity And Marketing",1780,0,COMMERCIAL SUPPLIER
01-03-2022,Inclusive Economy & Housing,Site Sales Marketing Ltd,"Advertising, Publicity And Marketing",1335,0,COMMERCIAL SUPPLIER
01-03-2022,Inclusive Economy & Housing,Site Sales Marketing Ltd,"Advertising, Publicity And Marketing",1780,0,COMMERCIAL SUPPLIER
01-03-2022,Inclusive Economy & Housing,Site Sales Marketing Ltd,"Advertising, Publicity And Marketing",445,0,COMMERCIAL SUPPLIER
01-03-2022,Environment and Sustainable Transport,Enterprise Flex-E-Rent,Client Transport,464.24,0,COMMERCIAL SUPPLIER
01-03-2022,Environment and Sustainable Transport,Enterprise Flex-E-Rent,Client Transport,510.68,0,COMMERCIAL SUPPLIER
01-03-2022,Environment and Sustainable Transport,Enterprise Flex-E-Rent,Client Transport,510.68,0,COMMERCIAL SUPPLIER
01-03-2022,Environment and Sustainable Transport,Enterprise Flex-E-Rent,Client Transport,231.72,0,COMMERCIAL SUPPLIER
01-03-2022,Environment and Sustainable Transport,Enterprise Flex-E-Rent,Client Transport,368.72,0,COMMERCIAL SUPPLIER
01-03-2022,Environment and Sustainable Transport,Enterprise Flex-E-Rent,Client Transport,894.12,0,COMMERCIAL SUPPLIER
01-03-2022,Environment and Sustainable Transport,Enterprise Flex-E-Rent,Client Transport,498.88,0,COMMERCIAL SUPPLIER
01-03-2022,Children and Young People,Care Avenues Ltd,Fostering Agency Placements - Private Contractors Payment,300,0,VENDOR
01-03-2022,Children and Young People,Shining Stars Fostering Agency Ltd,Fostering Agency Placements - Private Contractors Payment,735,0,COMMERCIAL SUPPLIER
01-03-2022,Children and Young People,Shining Stars Fostering Agency Ltd,Fostering Agency Placements - Private Contractors Payment,1470,0,COMMERCIAL SUPPLIER
01-03-2022,Children and Young People,Shining Stars Fostering Agency Ltd,Fostering Agency Placements - Private Contractors Payment,735,0,COMMERCIAL SUPPLIER
01-03-2022,oneSource,Bdi Securities,Security Services (Excluding Premises),945,0,COMMERCIAL SUPPLIER
01-03-2022,oneSource,Bdi Securities,Security Services (Excluding Premises),337.5,0,COMMERCIAL SUPPLIER
01-03-2022,Children and Young People,Medical Expert Witness Alliance (MEWA),Legal Fees,1835.5,0,COMMERCIAL SUPPLIER
01-03-2022,Children and Young People,Shining Stars Fostering Agency Ltd,Residential Placements - Private Contractors Payment,1499.92,0,COMMERCIAL SUPPLIER
01-03-2022,Children and Young People,Shining Stars Fostering Agency Ltd,Residential Placements - Private Contractors Payment,750,0,COMMERCIAL SUPPLIER
01-03-2022,Children and Young People,Shining Stars Fostering Agency Ltd,Residential Placements - Private Contractors Payment,750,0,COMMERCIAL SUPPLIER
01-03-2022,Children and Young People,Shining Stars Fostering Agency Ltd,Fostering Agency Placements - Private Contractors Payment,775,0,COMMERCIAL SUPPLIER
01-03-2022,Children and Young People,Shining Stars Fostering Agency Ltd,Fostering Agency Placements - Private Contractors Payment,1549.88,0,COMMERCIAL SUPPLIER
01-03-2022,Children and Young People,Shining Stars Fostering Agency Ltd,Fostering Agency Placements - Private Contractors Payment,775,0,COMMERCIAL SUPPLIER
01-03-2022,Environment and Sustainable Transport,Traffic Enforcement Centre,Payment To Other Local Authorities,20000,0,COMMERCIAL SUPPLIER
01-03-2022,Children and Young People,Fusion Fostering,Fostering Agency Placements - Private Contractors Payment,750,0,COMMERCIAL SUPPLIER
01-03-2022,Children and Young People,Fusion Fostering,Fostering Agency Placements - Private Contractors Payment,750,0,COMMERCIAL SUPPLIER
01-03-2022,Children and Young People,Fusion Fostering,Fostering Agency Placements - Private Contractors Payment,750,0,COMMERCIAL SUPPLIER
01-03-2022,Children and Young People,Fusion Fostering,Fostering Agency Placements - Private Contractors Payment,750,0,COMMERCIAL SUPPLIER
01-03-2022,Children and Young People,Fusion Fostering,Fostering Agency Placements - Private Contractors Payment,750,0,COMMERCIAL SUPPLIER
01-03-2022,Children and Young People,Fusion Fostering,Fostering Agency Placements - Private Contractors Payment,750,0,COMMERCIAL SUPPLIER
01-03-2022,Children and Young People,Fusion Fostering,Fostering Agency Placements - Private Contractors Payment,750,0,COMMERCIAL SUPPLIER
01-03-2022,Children and Young People,Fusion Fostering,Fostering Agency Placements - Private Contractors Payment,750,0,COMMERCIAL SUPPLIER
01-03-2022,Children and Young People,Fusion Fostering,Fostering Agency Placements - Private Contractors Payment,465.77,0,COMMERCIAL SUPPLIER
01-03-2022,Children and Young People,Fusion Fostering,Fostering Agency Placements - Private Contractors Payment,863.73,0,COMMERCIAL SUPPLIER
01-03-2022,Children and Young People,Fusion Fostering,Fostering Agency Placements - Private Contractors Payment,863.73,0,COMMERCIAL SUPPLIER
01-03-2022,Children and Young People,Fusion Fostering,Fostering Agency Placements - Private Contractors Payment,863.73,0,COMMERCIAL SUPPLIER
01-03-2022,Children and Young People,Fusion Fostering,Fostering Agency Placements - Private Contractors Payment,868.77,0,COMMERCIAL SUPPLIER
01-03-2022,Children and Young People,Fusion Fostering,Fostering Agency Placements - Private Contractors Payment,868.73,0,COMMERCIAL SUPPLIER
01-03-2022,Children and Young People,Fusion Fostering,Fostering Agency Placements - Private Contractors Payment,868.73,0,COMMERCIAL SUPPLIER
01-03-2022,Children and Young People,Fusion Fostering,Fostering Agency Placements - Private Contractors Payment,868.73,0,COMMERCIAL SUPPLIER
01-03-2022,Environment and Sustainable Transport,Insignia Ltd,"Advertising, Publicity And Marketing",4970,0,COMMERCIAL SUPPLIER
01-03-2022,Children and Young People,Crown Records Management Ltd,Private Contractors Payment - Other,2575.56,0,VENDOR
01-03-2022,Environment and Sustainable Transport,Fast Fuel Services,Highway Services,500,0,COMMERCIAL SUPPLIER
01-03-2022,Environment and Sustainable Transport,Fast Fuel Services,Highway Services,875,0,COMMERCIAL SUPPLIER
01-03-2022,Housing Revenue Account,Commulite Limited,Responsive Repairs - Mechanical And Electrical,1062,0,VENDOR
01-03-2022,Children and Young People,South Gloucestershire Council,Private Contractors Payment - Other,990,0,LOCAL AUTHORITY SERVICES
01-03-2022,Environment and Sustainable Transport,Titan Containers A/S,Hire - Equipment Furniture And Materials,286.75,0,VENDOR
01-03-2022,Adults & Health,Barts Health NHS Trust,Professional Services - General,178467,0,NHS BODIES
01-03-2022,RMS,Glass System Ltd,"Purchase - Equipment, Furniture And Materials",417.86,0,COMMERCIAL SUPPLIER
01-03-2022,RMS,Glass System Ltd,"Purchase - Equipment, Furniture And Materials",483.19,0,COMMERCIAL SUPPLIER
01-03-2022,RMS,Glass System Ltd,"Purchase - Equipment, Furniture And Materials",300.57,0,COMMERCIAL SUPPLIER
01-03-2022,RMS,Glass System Ltd,"Purchase - Equipment, Furniture And Materials",299.88,0,COMMERCIAL SUPPLIER
01-03-2022,RMS,Glass System Ltd,"Purchase - Equipment, Furniture And Materials",226.54,0,COMMERCIAL SUPPLIER
01-03-2022,Adults & Health,Sweettree Home Care Services,Daycare - Private Contractors Payment,107.34,0,NON COMMERCIAL SUPPLIER
01-03-2022,Adults & Health,Sweettree Home Care Services,Daycare - Private Contractors Payment,249.5,0,NON COMMERCIAL SUPPLIER
01-03-2022,Adults & Health,Sweettree Home Care Services,Daycare - Private Contractors Payment,249.5,0,NON COMMERCIAL SUPPLIER
01-03-2022,Adults & Health,Sweettree Home Care Services,Daycare - Private Contractors Payment,249.5,0,NON COMMERCIAL SUPPLIER
01-03-2022,oneSource - Non Shared,Claremore Mechanical Services Limited,Building Alterations And Materials,489.52,0,CIS
01-03-2022,oneSource - Non Shared,Claremore Mechanical Services Limited,Building Alterations And Materials,352.16,0,CIS
01-03-2022,oneSource - Non Shared,Claremore Mechanical Services Limited,Building Alterations And Materials,416,0,CIS
01-03-2022,oneSource - Non Shared,Claremore Mechanical Services Limited,Building Alterations And Materials,320,0,CIS
01-03-2022,oneSource - Non Shared,Claremore Mechanical Services Limited,Building Alterations And Materials,7200,0,CIS
01-03-2022,Children and Young People,Forest Care Services Ltd,Supported Other Accommodation - Private Contractors Payment,299.8,0,NON COMMERCIAL SUPPLIER
01-03-2022,Children and Young People,Forest Care Services Ltd,Supported Other Accommodation - Private Contractors Payment,300,0,NON COMMERCIAL SUPPLIER
01-03-2022,Children and Young People,Forest Care Services Ltd,Supported Other Accommodation - Private Contractors Payment,300,0,NON COMMERCIAL SUPPLIER
01-03-2022,Children and Young People,Forest Care Services Ltd,Supported Other Accommodation - Private Contractors Payment,300,0,NON COMMERCIAL SUPPLIER
01-03-2022,Environment and Sustainable Transport,Storm Environmental Limited,Highway Services,30,0,VENDOR
01-03-2022,Environment and Sustainable Transport,Storm Environmental Limited,Highway Services,90,0,VENDOR
01-03-2022,Environment and Sustainable Transport,Storm Environmental Limited,Highway Services,25675,0,VENDOR
01-03-2022,Environment and Sustainable Transport,Storm Environmental Limited,Highway Services,13088,0,VENDOR
01-03-2022,Children and Young People,Forest Care Services Ltd,Supported Other Accommodation - Private Contractors Payment,300,0,NON COMMERCIAL SUPPLIER
01-03-2022,Children and Young People,Forest Care Services Ltd,Supported Other Accommodation - Private Contractors Payment,300,0,NON COMMERCIAL SUPPLIER
01-03-2022,Children and Young People,Forest Care Services Ltd,Supported Other Accommodation - Private Contractors Payment,300,0,NON COMMERCIAL SUPPLIER
01-03-2022,Children and Young People,Forest Care Services Ltd,Supported Other Accommodation - Private Contractors Payment,299.8,0,NON COMMERCIAL SUPPLIER
01-03-2022,Children and Young People,Forest Care Services Ltd,Supported Other Accommodation - Private Contractors Payment,300,0,NON COMMERCIAL SUPPLIER
01-03-2022,Children and Young People,Forest Care Services Ltd,Supported Other Accommodation - Private Contractors Payment,300,0,NON COMMERCIAL SUPPLIER
01-03-2022,Children and Young People,Forest Care Services Ltd,Supported Other Accommodation - Private Contractors Payment,299.8,0,NON COMMERCIAL SUPPLIER
01-03-2022,Children and Young People,Forest Care Services Ltd,Supported Other Accommodation - Private Contractors Payment,300,0,NON COMMERCIAL SUPPLIER
01-03-2022,Children and Young People,Forest Care Services Ltd,Supported Other Accommodation - Private Contractors Payment,300,0,NON COMMERCIAL SUPPLIER
01-03-2022,Children and Young People,Forest Care Services Ltd,Supported Other Accommodation - Private Contractors Payment,300,0,NON COMMERCIAL SUPPLIER
01-03-2022,Children and Young People,Forest Care Services Ltd,Supported Other Accommodation - Private Contractors Payment,140,0,NON COMMERCIAL SUPPLIER
01-03-2022,Children and Young People,Forest Care Services Ltd,Supported Other Accommodation - Private Contractors Payment,300,0,NON COMMERCIAL SUPPLIER
01-03-2022,oneSource - Non Shared,GatenbySanderson Ltd,Agency Staff,1475,0,COMMERCIAL SUPPLIER
01-03-2022,RMS,Architectural Panels Ltd,"Purchase - Equipment, Furniture And Materials",2280,0,COMMERCIAL SUPPLIER
01-03-2022,RMS,Architectural Panels Ltd,"Purchase - Equipment, Furniture And Materials",120,0,COMMERCIAL SUPPLIER
01-03-2022,Children and Young People,ILN Ltd,Legal Fees,295,0,COMMERCIAL SUPPLIER
01-03-2022,Housing Revenue Account,Willow Pumps Limited,Waste Disposal Costs,590,0,COMMERCIAL SUPPLIER
01-03-2022,Environment and Sustainable Transport,Certas Energy uk ltd,Transport Fuel,44629.12,0,
01-03-2022,Adults & Health,Bluebird Care (Newham),Home Care - Private Contractors Payment,59.58,0,VENDOR
01-03-2022,Adults & Health,Bluebird Care (Newham),Home Care - Private Contractors Payment,30,0,VENDOR
01-03-2022,Adults & Health,Bluebird Care (Newham),Home Care - Private Contractors Payment,78.75,0,VENDOR
01-03-2022,Adults & Health,Bluebird Care (Newham),Home Care - Private Contractors Payment,210.14,0,VENDOR
01-03-2022,Adults & Health,Bluebird Care (Newham),Home Care - Private Contractors Payment,15,0,VENDOR
01-03-2022,Adults & Health,Bluebird Care (Newham),Daycare - Private Contractors Payment,109.76,0,VENDOR
01-03-2022,Adults & Health,Bluebird Care (Newham),Home Care - Private Contractors Payment,551.6,0,VENDOR
01-03-2022,Adults & Health,Bluebird Care (Newham),Daycare - Private Contractors Payment,315,0,VENDOR
01-03-2022,Adults & Health,Bluebird Care (Newham),Home Care - Private Contractors Payment,30,0,VENDOR
01-03-2022,Adults & Health,Bluebird Care (Newham),Home Care - Private Contractors Payment,78.75,0,VENDOR
01-03-2022,Adults & Health,Bluebird Care (Newham),Daycare - Private Contractors Payment,107.36,0,VENDOR
01-03-2022,Adults & Health,Bluebird Care (Newham),Home Care - Private Contractors Payment,550.2,0,VENDOR
01-03-2022,Adults & Health,Bluebird Care (Newham),Home Care - Private Contractors Payment,439.04,0,VENDOR
01-03-2022,Adults & Health,Bluebird Care (Newham),Home Care - Private Contractors Payment,105,0,VENDOR
01-03-2022,Adults & Health,Bluebird Care (Newham),Home Care - Private Contractors Payment,15,0,VENDOR
01-03-2022,Adults & Health,Bluebird Care (Newham),Home Care - Private Contractors Payment,15,0,VENDOR
01-03-2022,Adults & Health,Bluebird Care (Newham),Home Care - Private Contractors Payment,30,0,VENDOR
01-03-2022,Adults & Health,Bluebird Care (Newham),Home Care - Private Contractors Payment,78.75,0,VENDOR
01-03-2022,Adults & Health,Bluebird Care (Newham),Daycare - Private Contractors Payment,109.76,0,VENDOR
01-03-2022,Adults & Health,Bluebird Care (Newham),Home Care - Private Contractors Payment,551.6,0,VENDOR
01-03-2022,Adults & Health,Bluebird Care (Newham),Home Care - Private Contractors Payment,439.04,0,VENDOR
01-03-2022,Adults & Health,Bluebird Care (Newham),Home Care - Private Contractors Payment,105,0,VENDOR
01-03-2022,Adults & Health,Bluebird Care (Newham),Home Care - Private Contractors Payment,210.14,0,VENDOR
01-03-2022,Adults & Health,Bluebird Care (Newham),Daycare - Private Contractors Payment,315,0,VENDOR
01-03-2022,Adults & Health,Bluebird Care (Newham),Daycare - Private Contractors Payment,315,0,VENDOR
01-03-2022,Adults & Health,Bluebird Care (Newham),Home Care - Private Contractors Payment,30,0,VENDOR
01-03-2022,Adults & Health,Bluebird Care (Newham),Home Care - Private Contractors Payment,78.75,0,VENDOR
01-03-2022,Adults & Health,Bluebird Care (Newham),Home Care - Private Contractors Payment,210.14,0,VENDOR
01-03-2022,Adults & Health,Bluebird Care (Newham),Home Care - Private Contractors Payment,551.6,0,VENDOR
01-03-2022,Adults & Health,Bluebird Care (Newham),Home Care - Private Contractors Payment,15,0,VENDOR
01-03-2022,Adults & Health,Bluebird Care (Newham),Daycare - Private Contractors Payment,109.76,0,VENDOR
01-03-2022,Adults & Health,Bluebird Care (Newham),Home Care - Private Contractors Payment,105,0,VENDOR
01-03-2022,Adults & Health,Bluebird Care (Newham),Home Care - Private Contractors Payment,439.04,0,VENDOR
01-03-2022,Adults & Health,Bluebird Care (Newham),Home Care - Private Contractors Payment,30,0,VENDOR
01-03-2022,Adults & Health,Bluebird Care (Newham),Home Care - Private Contractors Payment,439.04,0,VENDOR
01-03-2022,Adults & Health,Bluebird Care (Newham),Home Care - Private Contractors Payment,105,0,VENDOR
01-03-2022,Adults & Health,Bluebird Care (Newham),Home Care - Private Contractors Payment,30,0,VENDOR
01-03-2022,Adults & Health,Bluebird Care (Newham),Daycare - Private Contractors Payment,315,0,VENDOR
01-03-2022,Environment and Sustainable Transport,Leedale Motors,"Purchase - Equipment, Furniture And Materials",724.14,0,COMMERCIAL SUPPLIER
01-03-2022,Environment and Sustainable Transport,Portakabin Ltd,Premises Hire - Facilities,3067.37,0,COMMERCIAL SUPPLIER
01-03-2022,oneSource - Non Shared,Building A Future (Newham Schools) Limited,"Maintenance - Equipment, Furniture And Materials",276481.1,0,VENDOR
01-03-2022,oneSource - Non Shared,Building A Future (Newham Schools) Limited,"Maintenance - Equipment, Furniture And Materials",72819.36,0,VENDOR
01-03-2022,oneSource - Non Shared,Building A Future (Newham Schools) Limited,"Maintenance - Equipment, Furniture And Materials",72313.93,0,VENDOR
01-03-2022,oneSource - Non Shared,Newham Learning Partnership (Project Co) Limited,"Maintenance - Equipment, Furniture And Materials",308118.65,0,VENDOR
01-03-2022,oneSource - Non Shared,Newham Learning Partnership (Project Co) Limited,"Maintenance - Equipment, Furniture And Materials",380979.25,0,VENDOR
01-03-2022,Housing Revenue Account,Moore's (Fencing & Building services Ltd,"Maintenance - Equipment, Furniture And Materials",1151.26,0,COMMERCIAL SUPPLIER
01-03-2022,RMS,Travis Perkins Trading Company Ltd,"Purchase - Equipment, Furniture And Materials",314.29,0,COMMERCIAL SUPPLIER
01-03-2022,RMS,Benchmarx Kitchens and Joinery,Private Contractors Payment - Other,0,0,COMMERCIAL SUPPLIER
01-03-2022,RMS,Benchmarx Kitchens and Joinery,Private Contractors Payment - Other,830.39,0,COMMERCIAL SUPPLIER
01-03-2022,RMS,Benchmarx Kitchens and Joinery,Private Contractors Payment - Other,0,0,COMMERCIAL SUPPLIER
01-03-2022,RMS,Benchmarx Kitchens and Joinery,Private Contractors Payment - Other,959.28,0,COMMERCIAL SUPPLIER
01-03-2022,Dedicated Schools Budget,Personal Information - Redacted,Professional Services - General,33141.67,0,COMMERCIAL SUPPLIER
01-03-2022,Children and Young People,Ebony Healthcare Services Limited,Supported Other Accommodation - Private Contractors Payment,894.78,0,NON COMMERCIAL SUPPLIER
01-03-2022,Children and Young People,Ebony Healthcare Services Limited,Supported Other Accommodation - Private Contractors Payment,894.78,0,NON COMMERCIAL SUPPLIER
01-03-2022,Children and Young People,Ebony Healthcare Services Limited,Supported Other Accommodation - Private Contractors Payment,894.78,0,NON COMMERCIAL SUPPLIER
01-03-2022,Children and Young People,Ebony Healthcare Services Limited,Supported Other Accommodation - Private Contractors Payment,894.78,0,NON COMMERCIAL SUPPLIER
01-03-2022,Adults & Health,Blade Security UK,Security Of Premises,12555,0,COMMERCIAL SUPPLIER
01-03-2022,Environment and Sustainable Transport,Radiocoms Systems Ltd,Ict Hardware,2943.18,0,VENDOR
01-03-2022,"People, Policy and Performance",Newham Community Project,Events,8000,0,COMMERCIAL SUPPLIER
01-03-2022,Dedicated Schools Budget,Personal Information - Redacted,Schools - Transfer Payment,1479,0,COMMERCIAL SUPPLIER
01-03-2022,Children and Young People,Curwen Primary School t/aTapscott Learning Trust,Schools - Transfer Payment,1476,0,COMMERCIAL SUPPLIER
01-03-2022,Dedicated Schools Budget,Personal Information - Redacted,Schools - Transfer Payment,7464,0,COMMERCIAL SUPPLIER
01-03-2022,Dedicated Schools Budget,Personal Information - Redacted,Schools - Transfer Payment,2423,0,COMMERCIAL SUPPLIER
01-03-2022,Dedicated Schools Budget,Personal Information - Redacted,Schools - Transfer Payment,6101,0,COMMERCIAL SUPPLIER
01-03-2022,Dedicated Schools Budget,Personal Information - Redacted,Schools - Transfer Payment,1667,0,COMMERCIAL SUPPLIER
01-03-2022,Dedicated Schools Budget,Personal Information - Redacted,Schools - Transfer Payment,2143,0,COMMERCIAL SUPPLIER
01-03-2022,Dedicated Schools Budget,Personal Information - Redacted,Schools - Transfer Payment,7182,0,VENDOR
01-03-2022,Dedicated Schools Budget,Personal Information - Redacted,Schools - Transfer Payment,905,0,NON COMMERCIAL SUPPLIER
01-03-2022,Dedicated Schools Budget,Personal Information - Redacted,Schools - Transfer Payment,1520,0,COMMERCIAL SUPPLIER
01-03-2022,Dedicated Schools Budget,Personal Information - Redacted,Schools - Transfer Payment,17678,0,NON COMMERCIAL SUPPLIER
01-03-2022,Dedicated Schools Budget,Personal Information - Redacted,Schools - Transfer Payment,6200,0,VENDOR
01-03-2022,Dedicated Schools Budget,Personal Information - Redacted,Schools - Transfer Payment,1258,0,COMMERCIAL SUPPLIER
01-03-2022,Dedicated Schools Budget,Personal Information - Redacted,Schools - Transfer Payment,3832,0,NON COMMERCIAL SUPPLIER
01-03-2022,Dedicated Schools Budget,Personal Information - Redacted,Schools - Transfer Payment,7781,0,VENDOR
01-03-2022,Dedicated Schools Budget,Personal Information - Redacted,Schools - Transfer Payment,11027,0,NON COMMERCIAL SUPPLIER
01-03-2022,Dedicated Schools Budget,Personal Information - Redacted,Schools - Transfer Payment,2333,0,VENDOR
01-03-2022,Dedicated Schools Budget,Personal Information - Redacted,Schools - Transfer Payment,3649,0,COMMERCIAL SUPPLIER
01-03-2022,Dedicated Schools Budget,Personal Information - Redacted,Schools - Transfer Payment,2760,0,COMMERCIAL SUPPLIER
01-03-2022,Dedicated Schools Budget,Personal Information - Redacted,Schools - Transfer Payment,714,0,NON COMMERCIAL SUPPLIER
01-03-2022,Dedicated Schools Budget,Personal Information - Redacted,Schools - Transfer Payment,5219,0,NON COMMERCIAL SUPPLIER
01-03-2022,Dedicated Schools Budget,Personal Information - Redacted,Schools - Transfer Payment,2945,0,COMMERCIAL SUPPLIER
01-03-2022,Dedicated Schools Budget,Personal Information - Redacted,Schools - Transfer Payment,2854,0,COMMERCIAL SUPPLIER
01-03-2022,Dedicated Schools Budget,Personal Information - Redacted,Schools - Transfer Payment,2202,0,VENDOR
01-03-2022,Dedicated Schools Budget,Personal Information - Redacted,Schools - Transfer Payment,4882,0,COMMERCIAL SUPPLIER
01-03-2022,Dedicated Schools Budget,Personal Information - Redacted,Schools - Transfer Payment,3481,0,COMMERCIAL SUPPLIER
01-03-2022,Dedicated Schools Budget,Personal Information - Redacted,Schools - Transfer Payment,11092,0,COMMERCIAL SUPPLIER
01-03-2022,Dedicated Schools Budget,Personal Information - Redacted,Schools - Transfer Payment,1608,0,COMMERCIAL SUPPLIER
01-03-2022,Dedicated Schools Budget,Personal Information - Redacted,Schools - Transfer Payment,1136,0,NON COMMERCIAL SUPPLIER
01-03-2022,Dedicated Schools Budget,Personal Information - Redacted,Schools - Transfer Payment,583,0,COMMERCIAL SUPPLIER
01-03-2022,Dedicated Schools Budget,Personal Information - Redacted,Schools - Transfer Payment,2578,0,NON COMMERCIAL SUPPLIER
01-03-2022,Dedicated Schools Budget,Personal Information - Redacted,Schools - Transfer Payment,541,0,COMMERCIAL SUPPLIER
01-03-2022,Dedicated Schools Budget,Personal Information - Redacted,Schools - Transfer Payment,1645,0,VENDOR
01-03-2022,Dedicated Schools Budget,Personal Information - Redacted,Schools - Transfer Payment,2844,0,NON COMMERCIAL SUPPLIER
01-03-2022,Dedicated Schools Budget,Personal Information - Redacted,Schools - Transfer Payment,3438,0,INDIVIDUALS
01-03-2022,Dedicated Schools Budget,Personal Information - Redacted,Schools - Transfer Payment,3765,0,COMMERCIAL SUPPLIER
01-03-2022,Dedicated Schools Budget,Personal Information - Redacted,Schools - Transfer Payment,7870,0,NON COMMERCIAL SUPPLIER
01-03-2022,Dedicated Schools Budget,Personal Information - Redacted,Schools - Transfer Payment,2078,0,COMMERCIAL SUPPLIER
01-03-2022,Dedicated Schools Budget,Personal Information - Redacted,Schools - Transfer Payment,1146,0,COMMERCIAL SUPPLIER
01-03-2022,Dedicated Schools Budget,Personal Information - Redacted,Schools - Transfer Payment,390,0,COMMERCIAL SUPPLIER
01-03-2022,Dedicated Schools Budget,Personal Information - Redacted,Schools - Transfer Payment,1619,0,VENDOR
01-03-2022,Dedicated Schools Budget,Personal Information - Redacted,Schools - Transfer Payment,23113,0,VENDOR
01-03-2022,Dedicated Schools Budget,Personal Information - Redacted,Schools - Transfer Payment,6552,0,COMMERCIAL SUPPLIER
01-03-2022,Dedicated Schools Budget,Personal Information - Redacted,Schools - Transfer Payment,703,0,COMMERCIAL SUPPLIER
01-03-2022,Dedicated Schools Budget,Personal Information - Redacted,Schools - Transfer Payment,2865,0,COMMERCIAL SUPPLIER
01-03-2022,Dedicated Schools Budget,Personal Information - Redacted,Schools - Transfer Payment,7969,0,LOCAL AUTHORITY SERVICES
01-03-2022,Dedicated Schools Budget,Personal Information - Redacted,Schools - Transfer Payment,23583,0,COMMERCIAL SUPPLIER
01-03-2022,Dedicated Schools Budget,Personal Information - Redacted,Schools - Transfer Payment,11198,0,COMMERCIAL SUPPLIER
01-03-2022,Dedicated Schools Budget,Personal Information - Redacted,Schools - Transfer Payment,19425,0,VENDOR
01-03-2022,Dedicated Schools Budget,Personal Information - Redacted,Schools - Transfer Payment,30208,0,NON COMMERCIAL SUPPLIER
01-03-2022,Dedicated Schools Budget,Personal Information - Redacted,Schools - Transfer Payment,3000,0,NON COMMERCIAL SUPPLIER
01-03-2022,Dedicated Schools Budget,Personal Information - Redacted,Schools - Transfer Payment,6708,0,COMMERCIAL SUPPLIER
01-03-2022,Dedicated Schools Budget,Personal Information - Redacted,Schools - Transfer Payment,6000,0,COMMERCIAL SUPPLIER
01-03-2022,Dedicated Schools Budget,Personal Information - Redacted,Schools - Transfer Payment,11750,0,COMMERCIAL SUPPLIER
01-03-2022,Dedicated Schools Budget,Personal Information - Redacted,Schools - Transfer Payment,3000,0,COMMERCIAL SUPPLIER
01-03-2022,Dedicated Schools Budget,Personal Information - Redacted,Schools - Transfer Payment,23500,0,VENDOR
01-03-2022,Dedicated Schools Budget,Personal Information - Redacted,Schools - Transfer Payment,2500,0,COMMERCIAL SUPPLIER
01-03-2022,Dedicated Schools Budget,Personal Information - Redacted,Schools - Transfer Payment,22667,0,COMMERCIAL SUPPLIER
01-03-2022,Dedicated Schools Budget,Personal Information - Redacted,Schools - Transfer Payment,1219,0,COMMERCIAL SUPPLIER
01-03-2022,Dedicated Schools Budget,Personal Information - Redacted,Schools - Transfer Payment,12833,0,COMMERCIAL SUPPLIER
01-03-2022,Dedicated Schools Budget,Personal Information - Redacted,Schools - Transfer Payment,6475,0,VENDOR
01-03-2022,Dedicated Schools Budget,Personal Information - Redacted,Schools - Transfer Payment,2485,0,INDIVIDUALS
01-03-2022,Dedicated Schools Budget,Personal Information - Redacted,Schools - Transfer Payment,3000,0,COMMERCIAL SUPPLIER
01-03-2022,Dedicated Schools Budget,Personal Information - Redacted,Schools - Transfer Payment,5042,0,COMMERCIAL SUPPLIER
01-03-2022,"People, Policy and Performance",Personal Information - Redacted,Client Expenses - Third Party,311.99,0,INDIVIDUALS
01-03-2022,Dedicated Schools Budget,Personal Information - Redacted,Payment To Health Authorities,500,0,NON COMMERCIAL SUPPLIER
01-03-2022,oneSource,Brentwood Borough Council,Bailiff Fees Income,2548.74,0,LOCAL AUTHORITY SERVICES
01-03-2022,oneSource,Brentwood Borough Council,Bailiff Fees Income,2090,0,LOCAL AUTHORITY SERVICES
01-03-2022,oneSource,Basildon District Council,Bailiff Fees Income,10866.13,0,LOCAL AUTHORITY SERVICES
01-03-2022,oneSource - Non Shared,Eastlea Community School t/a Newham Community Schools Trust,Building Alterations And Materials,16667,0,COMMERCIAL SUPPLIER
01-03-2022,"People, Policy and Performance",Personal Information - Redacted,Events,2600,0,INDIVIDUALS
01-03-2022,"People, Policy and Performance",Sylvie Belbouab Ganachaud Photography,Events,5000,0,INDIVIDUALS
01-03-2022,"People, Policy and Performance",Thecallouts Ltd,Events,6000,0,COMMERCIAL SUPPLIER
01-03-2022,Adults & Health,"Change, Grow, Live Services Limited",Professional Services - General,1126177.05,0,COMMERCIAL SUPPLIER
01-03-2022,Children and Young People,Early Start Education Ltd,Private Contractors Payment - Other,47423,0,INDIVIDUALS
01-03-2022,Adults & Health,Topman Construction Ltd,Private Contractors Payment - Other,6379.8,0,CIS
01-03-2022,Children and Young People,Raise House Residential Children's Home Ltd,Residential Placements - Private Contractors Payment,5000,0,NON COMMERCIAL SUPPLIER
01-03-2022,Children and Young People,Raise House Residential Children's Home Ltd,Residential Placements - Private Contractors Payment,5000,0,NON COMMERCIAL SUPPLIER
01-03-2022,Children and Young People,Raise House Residential Children's Home Ltd,Residential Placements - Private Contractors Payment,5000,0,NON COMMERCIAL SUPPLIER
01-03-2022,Children and Young People,Raise House Residential Children's Home Ltd,Residential Placements - Private Contractors Payment,5000,0,NON COMMERCIAL SUPPLIER
01-03-2022,Adults & Health,Cambridge House & Talbot,Private Contractors Payment - Other,346.5,0,LEGAL SERVICES
01-03-2022,Adults & Health,Cambridge House & Talbot,Private Contractors Payment - Other,630,0,LEGAL SERVICES
01-03-2022,Children and Young People,Personal Information - Redacted,Legal Fees,700,0,COMMERCIAL SUPPLIER
01-03-2022,Children and Young People,Personal Information - Redacted,Legal Fees,820,0,LEGAL SERVICES
01-03-2022,Children and Young People,Personal Information - Redacted,Legal Fees,400,0,COMMERCIAL SUPPLIER
01-03-2022,Children and Young People,Personal Information - Redacted,Legal Fees,660,0,COMMERCIAL SUPPLIER
01-03-2022,Children and Young People,Personal Information - Redacted,Legal Fees,660,0,COMMERCIAL SUPPLIER
01-03-2022,Children and Young People,Personal Information - Redacted,Legal Fees,710,0,LEGAL SERVICES
01-03-2022,Children and Young People,Personal Information - Redacted,Legal Fees,730,0,LEGAL SERVICES
01-03-2022,Children and Young People,Personal Information - Redacted,Legal Fees,650,0,VENDOR
01-03-2022,Children and Young People,Aldanat Care,Supported Other Accommodation - Private Contractors Payment,161.38,0,VENDOR
01-03-2022,Children and Young People,Aldanat Care,Weekly Allowances - Private Contractors Payment,60,0,VENDOR
01-03-2022,Children and Young People,Aldanat Care,Supported Other Accommodation - Private Contractors Payment,6827.58,0,VENDOR
01-03-2022,Children and Young People,Aldanat Care,Weekly Allowances - Private Contractors Payment,60,0,VENDOR
01-03-2022,Children and Young People,Aldanat Care,Supported Other Accommodation - Private Contractors Payment,6827.58,0,VENDOR
01-03-2022,Children and Young People,Aldanat Care,Supported Other Accommodation - Private Contractors Payment,6827.58,0,VENDOR
01-03-2022,Children and Young People,Aldanat Care,Weekly Allowances - Private Contractors Payment,60,0,VENDOR
01-03-2022,Children and Young People,Aldanat Care,Supported Other Accommodation - Private Contractors Payment,6827.58,0,VENDOR
01-03-2022,Children and Young People,Aldanat Care,Supported Other Accommodation - Private Contractors Payment,134.19,0,VENDOR
01-03-2022,Children and Young People,Aldanat Care,Weekly Allowances - Private Contractors Payment,8.57,0,VENDOR
01-03-2022,Children and Young People,Aldanat Care,Supported Other Accommodation - Private Contractors Payment,161.38,0,VENDOR
01-03-2022,Resources,Personal Information - Redacted,"Books, Publications And Resources",400,0,Employee
01-03-2022,Resources,Personal Information - Redacted,"Books, Publications And Resources",203,0,Employee
01-03-2022,oneSource,Personal Information - Redacted,Professional Services - General,1119.43,0,Employee
01-03-2022,oneSource,Personal Information - Redacted,Professional Services - General,223.89,0,Employee
01-03-2022,Children and Young People,Personal Information - Redacted,"Purchase - Equipment, Furniture And Materials",75.37,0,Employee
01-03-2022,Children and Young People,Personal Information - Redacted,"Purchase - Equipment, Furniture And Materials",27.41,0,Employee
01-03-2022,"People, Policy and Performance",Personal Information - Redacted,Postage And Courier Services,11.99,0,Employee
01-03-2022,Adults & Health,Ask Care Ltd,Home Care - Private Contractors Payment,318.24,0,VENDOR
01-03-2022,Adults & Health,Ask Care Ltd,Home Care - Private Contractors Payment,56.16,0,VENDOR
01-03-2022,Adults & Health,Ask Care Ltd,Home Care - Private Contractors Payment,56.16,0,VENDOR
01-03-2022,Adults & Health,Ask Care Ltd,Home Care - Private Contractors Payment,56.16,0,VENDOR
01-03-2022,Adults & Health,Ask Care Ltd,Home Care - Private Contractors Payment,56.16,0,VENDOR
01-03-2022,Adults & Health,Ask Care Ltd,Home Care - Private Contractors Payment,56.16,0,VENDOR
01-03-2022,Adults & Health,London Black Women's Project,Private Contractors Payment - Other,16494,0,VENDOR
01-03-2022,Dedicated Schools Budget,Personal Information - Redacted,Schools - Transfer Payment,29328,0,VENDOR
01-03-2022,Dedicated Schools Budget,Personal Information - Redacted,Schools - Transfer Payment,7767,0,COMMERCIAL SUPPLIER
01-03-2022,Dedicated Schools Budget,Personal Information - Redacted,Schools - Transfer Payment,16126,0,COMMERCIAL SUPPLIER
01-03-2022,Dedicated Schools Budget,Personal Information - Redacted,Schools - Transfer Payment,41553,0,COMMERCIAL SUPPLIER
01-03-2022,Dedicated Schools Budget,Personal Information - Redacted,Schools - Transfer Payment,4494,0,VENDOR
01-03-2022,Dedicated Schools Budget,Personal Information - Redacted,Schools - Transfer Payment,20502,0,NON COMMERCIAL SUPPLIER
01-03-2022,Dedicated Schools Budget,Personal Information - Redacted,Schools - Transfer Payment,18717,0,COMMERCIAL SUPPLIER
01-03-2022,Dedicated Schools Budget,Personal Information - Redacted,Schools - Transfer Payment,13025,0,COMMERCIAL SUPPLIER
01-03-2022,Dedicated Schools Budget,Personal Information - Redacted,Schools - Transfer Payment,7550,0,COMMERCIAL SUPPLIER
01-03-2022,Dedicated Schools Budget,Personal Information - Redacted,Schools - Transfer Payment,13200.06,0,VENDOR
01-03-2022,Dedicated Schools Budget,Personal Information - Redacted,Schools - Transfer Payment,17401,0,COMMERCIAL SUPPLIER
01-03-2022,Dedicated Schools Budget,Personal Information - Redacted,Schools - Transfer Payment,39526,0,COMMERCIAL SUPPLIER
01-03-2022,Dedicated Schools Budget,Personal Information - Redacted,Schools - Transfer Payment,22664,0,COMMERCIAL SUPPLIER
01-03-2022,Dedicated Schools Budget,Personal Information - Redacted,Schools - Transfer Payment,9952,0,COMMERCIAL SUPPLIER
01-03-2022,Dedicated Schools Budget,Personal Information - Redacted,Schools - Transfer Payment,14181,0,COMMERCIAL SUPPLIER
01-03-2022,Dedicated Schools Budget,Personal Information - Redacted,Schools - Transfer Payment,7450,0,NON COMMERCIAL SUPPLIER
01-03-2022,Dedicated Schools Budget,Personal Information - Redacted,Schools - Transfer Payment,38265,0,VENDOR
01-03-2022,Dedicated Schools Budget,Personal Information - Redacted,Schools - Transfer Payment,24878,0,COMMERCIAL SUPPLIER
01-03-2022,Dedicated Schools Budget,Personal Information - Redacted,Schools - Transfer Payment,25377,0,COMMERCIAL SUPPLIER
01-03-2022,Dedicated Schools Budget,Personal Information - Redacted,Schools - Transfer Payment,18496,0,COMMERCIAL SUPPLIER
01-03-2022,Dedicated Schools Budget,Personal Information - Redacted,Schools - Transfer Payment,35356,0,COMMERCIAL SUPPLIER
01-03-2022,Dedicated Schools Budget,Personal Information - Redacted,Schools - Transfer Payment,19374,0,NON COMMERCIAL SUPPLIER
01-03-2022,Dedicated Schools Budget,Personal Information - Redacted,Schools - Transfer Payment,8992,0,COMMERCIAL SUPPLIER
01-03-2022,Dedicated Schools Budget,Personal Information - Redacted,Schools - Transfer Payment,14528,0,COMMERCIAL SUPPLIER
01-03-2022,Dedicated Schools Budget,Personal Information - Redacted,Schools - Transfer Payment,28511,0,NON COMMERCIAL SUPPLIER
01-03-2022,Dedicated Schools Budget,Personal Information - Redacted,Schools - Transfer Payment,38612,0,VENDOR
01-03-2022,Dedicated Schools Budget,Personal Information - Redacted,Schools - Transfer Payment,22881,0,NON COMMERCIAL SUPPLIER
01-03-2022,Dedicated Schools Budget,Personal Information - Redacted,Schools - Transfer Payment,31533,0,VENDOR
01-03-2022,Dedicated Schools Budget,Personal Information - Redacted,Schools - Transfer Payment,8508,0,COMMERCIAL SUPPLIER
01-03-2022,Dedicated Schools Budget,Personal Information - Redacted,Schools - Transfer Payment,17540,0,COMMERCIAL SUPPLIER
01-03-2022,Dedicated Schools Budget,Personal Information - Redacted,Schools - Transfer Payment,16568,0,INDIVIDUALS
01-03-2022,Dedicated Schools Budget,Personal Information - Redacted,Schools - Transfer Payment,50004,0,COMMERCIAL SUPPLIER
01-03-2022,Dedicated Schools Budget,Personal Information - Redacted,Schools - Transfer Payment,20643,0,NON COMMERCIAL SUPPLIER
01-03-2022,Dedicated Schools Budget,Personal Information - Redacted,Schools - Transfer Payment,22039,0,COMMERCIAL SUPPLIER
01-03-2022,Dedicated Schools Budget,Personal Information - Redacted,Schools - Transfer Payment,23088,0,NON COMMERCIAL SUPPLIER
01-03-2022,Dedicated Schools Budget,Personal Information - Redacted,Schools - Transfer Payment,18803,0,COMMERCIAL SUPPLIER
01-03-2022,Dedicated Schools Budget,Personal Information - Redacted,Schools - Transfer Payment,40366,0,NON COMMERCIAL SUPPLIER
01-03-2022,Dedicated Schools Budget,Personal Information - Redacted,Schools - Transfer Payment,5960,0,COMMERCIAL SUPPLIER
01-03-2022,Dedicated Schools Budget,Personal Information - Redacted,Schools - Transfer Payment,15817,0,COMMERCIAL SUPPLIER
01-03-2022,Dedicated Schools Budget,Personal Information - Redacted,Schools - Transfer Payment,14429,0,NON COMMERCIAL SUPPLIER
01-03-2022,Dedicated Schools Budget,Personal Information - Redacted,Schools - Transfer Payment,16138,0,COMMERCIAL SUPPLIER
01-03-2022,Dedicated Schools Budget,Personal Information - Redacted,Schools - Transfer Payment,18411,0,VENDOR
01-03-2022,Dedicated Schools Budget,Personal Information - Redacted,Schools - Transfer Payment,46804,0,COMMERCIAL SUPPLIER
01-03-2022,Dedicated Schools Budget,Personal Information - Redacted,Schools - Transfer Payment,46754,0,COMMERCIAL SUPPLIER
01-03-2022,Adults & Health,MENCAP,Supported Other Accommodation - Private Contractors Payment,22000,0,NON COMMERCIAL SUPPLIER
01-03-2022,Children and Young People,London Therapy Associates Ltd,Professional Services - General,1980,0,COMMERCIAL SUPPLIER
01-03-2022,Children and Young People,Atlantic Lodge (Housing) Ltd,Supported Other Accommodation - Private Contractors Payment,325,0,COMMERCIAL SUPPLIER
01-03-2022,Children and Young People,Atlantic Lodge (Housing) Ltd,Supported Other Accommodation - Private Contractors Payment,325,0,COMMERCIAL SUPPLIER
01-03-2022,Children and Young People,Atlantic Lodge (Housing) Ltd,Supported Other Accommodation - Private Contractors Payment,305.44,0,COMMERCIAL SUPPLIER
01-03-2022,Children and Young People,Atlantic Lodge (Housing) Ltd,Supported Other Accommodation - Private Contractors Payment,325,0,COMMERCIAL SUPPLIER
01-03-2022,Children and Young People,PFS Prepaid Financial Services,Weekly Allowances - Private Contractors Payment,428.25,0,INDIVIDUALS
01-03-2022,Children and Young People,Personal Information - Redacted,Client Expenses - Third Party,1000,0,INDIVIDUALS
01-03-2022,Corporate Budgets,Transport Trading Ltd,Payment To Gov Dept - Tfl Freedom Passes,2634833,0,COMMERCIAL SUPPLIER
01-03-2022,Corporate Budgets,London Councils,Professional Services - General,44644,0,CENTRAL/GOVERNMENT DEPARTMENTS
01-03-2022,Children and Young People,British Telecommunications plc,Land Line Telephone Costs,381.62,0,COMMERCIAL SUPPLIER
01-03-2022,Adults & Health,ReviveFM,"Advertising, Publicity And Marketing",450,0,COMMERCIAL SUPPLIER
01-03-2022,Inclusive Economy & Housing,ST John Chartered Surveyors,Private Contractors Payment - Other,300,0,COMMERCIAL SUPPLIER
01-03-2022,Inclusive Economy & Housing,ST John Chartered Surveyors,Private Contractors Payment - Other,300,0,COMMERCIAL SUPPLIER
01-03-2022,Inclusive Economy & Housing,ST John Chartered Surveyors,Private Contractors Payment - Other,300,0,COMMERCIAL SUPPLIER
01-03-2022,Dedicated Schools Budget,Personal Information - Redacted,Payment To Health Authorities,8500,0,VENDOR
01-03-2022,Dedicated Schools Budget,Personal Information - Redacted,Payment To Health Authorities,4334,0,COMMERCIAL SUPPLIER
01-03-2022,Dedicated Schools Budget,Personal Information - Redacted,Payment To Health Authorities,3000,0,VENDOR
01-03-2022,Dedicated Schools Budget,Personal Information - Redacted,Payment To Health Authorities,3000,0,NON COMMERCIAL SUPPLIER
01-03-2022,Adults & Health,The Courtney Hotel London Ltd,Rents Payable,3674.16,0,NON COMMERCIAL SUPPLIER
01-03-2022,Children and Young People,adam HTT LTd T/A Adam,Ict Hardware,5589.04,0,VENDOR
01-03-2022,oneSource - Non Shared,Education Support (Newham) Ltd,"Maintenance - Equipment, Furniture And Materials",328387.81,0,VENDOR
01-03-2022,oneSource - Non Shared,Education Support (Newham) Ltd,"Maintenance - Equipment, Furniture And Materials",4598.91,0,VENDOR
01-03-2022,Adults & Health,Actual Support Services Ltd,Other Social Services Transfer Payments,550,0,COMMERCIAL SUPPLIER
01-03-2022,Adults & Health,Supreme Home Care Agency,Home Care - Private Contractors Payment,911.4,0,VENDOR
01-03-2022,Adults & Health,Supreme Home Care Agency,Home Care - Private Contractors Payment,260.4,0,VENDOR
01-03-2022,Adults & Health,Supreme Home Care Agency,Home Care - Private Contractors Payment,260.4,0,VENDOR
01-03-2022,Adults & Health,Supreme Home Care Agency,Home Care - Private Contractors Payment,260.4,0,VENDOR
01-03-2022,Adults & Health,Supreme Home Care Agency,Home Care - Private Contractors Payment,260.4,0,VENDOR
01-03-2022,Adults & Health,Supreme Home Care Agency,Home Care - Private Contractors Payment,522,0,VENDOR
01-03-2022,Adults & Health,Supreme Home Care Agency,Home Care - Private Contractors Payment,167.4,0,VENDOR
01-03-2022,Adults & Health,Supreme Home Care Agency,Daycare - Private Contractors Payment,38.4,0,VENDOR
01-03-2022,Adults & Health,Supreme Home Care Agency,Home Care - Private Contractors Payment,358.4,0,VENDOR
01-03-2022,Adults & Health,Supreme Home Care Agency,Daycare - Private Contractors Payment,38.4,0,VENDOR
01-03-2022,Adults & Health,Supreme Home Care Agency,Home Care - Private Contractors Payment,358.4,0,VENDOR
01-03-2022,Adults & Health,Supreme Home Care Agency,Home Care - Private Contractors Payment,358.4,0,VENDOR
01-03-2022,Adults & Health,Supreme Home Care Agency,Daycare - Private Contractors Payment,38.4,0,VENDOR
01-03-2022,Adults & Health,Supreme Home Care Agency,Home Care - Private Contractors Payment,358.4,0,VENDOR
01-03-2022,Adults & Health,Supreme Home Care Agency,Daycare - Private Contractors Payment,38.4,0,VENDOR
01-03-2022,Adults & Health,Supreme Home Care Agency,Daycare - Private Contractors Payment,38.4,0,VENDOR
01-03-2022,Adults & Health,Supreme Home Care Agency,Home Care - Private Contractors Payment,358.4,0,VENDOR
01-03-2022,Adults & Health,Supreme Home Care Agency,Daycare - Private Contractors Payment,38.4,0,VENDOR
01-03-2022,Adults & Health,Supreme Home Care Agency,Home Care - Private Contractors Payment,358.4,0,VENDOR
01-03-2022,Adults & Health,Supreme Home Care Agency,Home Care - Private Contractors Payment,358.4,0,VENDOR
01-03-2022,Adults & Health,Supreme Home Care Agency,Daycare - Private Contractors Payment,38.4,0,VENDOR
01-03-2022,Adults & Health,Supreme Home Care Agency,Daycare - Private Contractors Payment,38.4,0,VENDOR
01-03-2022,Adults & Health,Supreme Home Care Agency,Home Care - Private Contractors Payment,358.4,0,VENDOR
01-03-2022,Adults & Health,Supreme Home Care Agency,Home Care - Private Contractors Payment,358.4,0,VENDOR
01-03-2022,Adults & Health,Supreme Home Care Agency,Home Care - Private Contractors Payment,358.4,0,VENDOR
01-03-2022,Adults & Health,Supreme Home Care Agency,Daycare - Private Contractors Payment,38.4,0,VENDOR
01-03-2022,Adults & Health,Supreme Home Care Agency,Home Care - Private Contractors Payment,358.4,0,VENDOR
01-03-2022,Adults & Health,Supreme Home Care Agency,Daycare - Private Contractors Payment,38.4,0,VENDOR
01-03-2022,Adults & Health,Supreme Home Care Agency,Daycare - Private Contractors Payment,38.4,0,VENDOR
01-03-2022,Adults & Health,Supreme Home Care Agency,Daycare - Private Contractors Payment,38.4,0,VENDOR
01-03-2022,Adults & Health,Supreme Home Care Agency,Home Care - Private Contractors Payment,358.4,0,VENDOR
01-03-2022,Adults & Health,Supreme Home Care Agency,Daycare - Private Contractors Payment,38.4,0,VENDOR
01-03-2022,Adults & Health,Supreme Home Care Agency,Home Care - Private Contractors Payment,358.4,0,VENDOR
01-03-2022,Adults & Health,Supreme Home Care Agency,Daycare - Private Contractors Payment,38.4,0,VENDOR
01-03-2022,Adults & Health,Supreme Home Care Agency,Home Care - Private Contractors Payment,358.4,0,VENDOR
01-03-2022,Adults & Health,Supreme Home Care Agency,Daycare - Private Contractors Payment,38.4,0,VENDOR
01-03-2022,Adults & Health,Supreme Home Care Agency,Home Care - Private Contractors Payment,358.4,0,VENDOR
01-03-2022,Adults & Health,Supreme Home Care Agency,Home Care - Private Contractors Payment,358.4,0,VENDOR
01-03-2022,Adults & Health,Supreme Home Care Agency,Daycare - Private Contractors Payment,38.4,0,VENDOR
01-03-2022,Adults & Health,Supreme Home Care Agency,Home Care - Private Contractors Payment,431.4,0,VENDOR
01-03-2022,Adults & Health,Supreme Home Care Agency,Daycare - Private Contractors Payment,38.4,0,VENDOR
01-03-2022,Adults & Health,Supreme Home Care Agency,Home Care - Private Contractors Payment,153.6,0,VENDOR
01-03-2022,Adults & Health,Supreme Home Care Agency,Home Care - Private Contractors Payment,576.6,0,VENDOR
01-03-2022,Adults & Health,Supreme Home Care Agency,Home Care - Private Contractors Payment,297.6,0,VENDOR
01-03-2022,Adults & Health,Supreme Home Care Agency,Daycare - Private Contractors Payment,38.4,0,VENDOR
01-03-2022,Adults & Health,Supreme Home Care Agency,Home Care - Private Contractors Payment,51.2,0,VENDOR
01-03-2022,Housing Revenue Account,Swan Housing Group,Professional Services - General,817622.19,0,VENDOR
01-03-2022,Environment and Sustainable Transport,W Hardy Ltd,Building Alterations And Materials,43908,0,CIS
01-03-2022,Environment and Sustainable Transport,W Hardy Ltd,Building Alterations And Materials,1194,0,CIS
01-03-2022,Environment and Sustainable Transport,W Hardy Ltd,Building Alterations And Materials,2868,0,CIS
02-03-2022,Environment and Sustainable Transport,NSL Limited,Debt Collection And Recovery Costs,38882.16,0,
02-03-2022,Housing Revenue Account,Chiltern Costs Consultants,Legal Fees,640,0,NON COMMERCIAL SUPPLIER
02-03-2022,Inclusive Economy & Housing,Personal Information - Redacted,"Maintenance - Equipment, Furniture And Materials",400,0,COMMERCIAL SUPPLIER
02-03-2022,RMS,AMA Security Ltd,Private Contractors Payment - Other,285,0,COMMERCIAL SUPPLIER
02-03-2022,Children and Young People,Personal Information - Redacted,Staff Development And Training,487,0,VENDOR
02-03-2022,Dedicated Schools Budget,Personal Information - Redacted,Consultancy Fees,750,0,COMMERCIAL SUPPLIER
02-03-2022,Adults & Health,Annie's Healthcare Services C.I.C,Home Care - Private Contractors Payment,13.25,0,NON COMMERCIAL SUPPLIER
02-03-2022,Adults & Health,Annie's Healthcare Services C.I.C,Home Care - Private Contractors Payment,625.23,0,NON COMMERCIAL SUPPLIER
02-03-2022,Environment and Sustainable Transport,Mjm Supplies Ltd,Highway Services,331.2,0,VENDOR
02-03-2022,Housing Revenue Account,Barnes Solicitors LLP,Legal Fees,2857.71,0,COMMERCIAL SUPPLIER
02-03-2022,Housing Revenue Account,Barnes & Partners Solicitors,Legal Fees,5000,0,LEGAL SERVICES
02-03-2022,Housing Revenue Account,Barnes & Partners Solicitors,Legal Fees,1500,0,LEGAL SERVICES
02-03-2022,Environment and Sustainable Transport,Sai-Pac (UK) Ltd,Highway Services,1150,0,COMMERCIAL SUPPLIER
02-03-2022,Children and Young People,Gordon Care Services Limited,Residential Placements - Private Contractors Payment,2856,0,COMMERCIAL SUPPLIER
02-03-2022,Children and Young People,Gordon Care Services Limited,Residential Placements - Private Contractors Payment,2950,0,COMMERCIAL SUPPLIER
02-03-2022,Children and Young People,Gordon Care Services Limited,Residential Placements - Private Contractors Payment,2856,0,COMMERCIAL SUPPLIER
02-03-2022,Children and Young People,Gordon Care Services Limited,Residential Placements - Private Contractors Payment,2950,0,COMMERCIAL SUPPLIER
02-03-2022,Children and Young People,Gordon Care Services Limited,Residential Placements - Private Contractors Payment,2856,0,COMMERCIAL SUPPLIER
02-03-2022,Children and Young People,Gordon Care Services Limited,Residential Placements - Private Contractors Payment,2950,0,COMMERCIAL SUPPLIER
02-03-2022,Children and Young People,Gordon Care Services Limited,Residential Placements - Private Contractors Payment,2938,0,COMMERCIAL SUPPLIER
02-03-2022,Children and Young People,Gordon Care Services Limited,Residential Placements - Private Contractors Payment,2856,0,COMMERCIAL SUPPLIER
02-03-2022,Children and Young People,Gordon Care Services Limited,Residential Placements - Private Contractors Payment,669.16,0,COMMERCIAL SUPPLIER
02-03-2022,Children and Young People,Gordon Care Services Limited,Residential Placements - Private Contractors Payment,2950,0,COMMERCIAL SUPPLIER
02-03-2022,Children and Young People,Gordon Care Services Limited,Residential Placements - Private Contractors Payment,2950,0,COMMERCIAL SUPPLIER
02-03-2022,Adults & Health,Gordon Care Services Limited,Daycare - Private Contractors Payment,208,0,COMMERCIAL SUPPLIER
02-03-2022,Adults & Health,Gordon Care Services Limited,Daycare - Private Contractors Payment,208,0,COMMERCIAL SUPPLIER
02-03-2022,Adults & Health,Gordon Care Services Limited,Daycare - Private Contractors Payment,208,0,COMMERCIAL SUPPLIER
02-03-2022,Adults & Health,Gordon Care Services Limited,Daycare - Private Contractors Payment,208,0,COMMERCIAL SUPPLIER
02-03-2022,Children and Young People,Exit Foundation,Supported Other Accommodation - Private Contractors Payment,742,0,NON COMMERCIAL SUPPLIER
02-03-2022,Children and Young People,Exit Foundation,Supported Other Accommodation - Private Contractors Payment,2747.5,0,NON COMMERCIAL SUPPLIER
02-03-2022,Children and Young People,Exit Foundation,Supported Other Accommodation - Private Contractors Payment,2960.5,0,NON COMMERCIAL SUPPLIER
02-03-2022,RMS,Drain Aid Ltd,Private Contractors Payment - Other,531,0,COMMERCIAL SUPPLIER
02-03-2022,Housing Revenue Account,Griffin Elevators Ltd,Cyclical/Planned Maintenance - Mechanical And Electrical,10440.94,0,CIS
02-03-2022,Housing Revenue Account,Griffin Elevators Ltd,Responsive Repairs - Mechanical And Electrical,5411.53,0,CIS
02-03-2022,"People, Policy and Performance",Digital Content Associates Ltd,"Books, Publications And Resources",6600,0,COMMERCIAL SUPPLIER
02-03-2022,"People, Policy and Performance",Digital Content Associates Ltd,"Books, Publications And Resources",4700,0,COMMERCIAL SUPPLIER
02-03-2022,Brighter Futures Director,Redspot Healthcare Services Ltd,Agency Staff,1571.75,0,COMMERCIAL SUPPLIER
02-03-2022,oneSource,London Borough of Waltham Forest,Bailiff Fees Income,6967.48,0,LOCAL AUTHORITY SERVICES
02-03-2022,Inclusive Economy & Housing,Publica Associates,Consultancy Fees,3275,0,
02-03-2022,Environment and Sustainable Transport,Enterprise Flex-E-Rent,Client Transport,552.31,0,COMMERCIAL SUPPLIER
02-03-2022,Environment and Sustainable Transport,Enterprise Flex-E-Rent,Client Transport,231.72,0,COMMERCIAL SUPPLIER
02-03-2022,Environment and Sustainable Transport,Enterprise Flex-E-Rent,Client Transport,368.72,0,COMMERCIAL SUPPLIER
02-03-2022,Environment and Sustainable Transport,Enterprise Flex-E-Rent,Client Transport,686,0,COMMERCIAL SUPPLIER
02-03-2022,Environment and Sustainable Transport,Enterprise Flex-E-Rent,Client Transport,710.04,0,COMMERCIAL SUPPLIER
02-03-2022,Environment and Sustainable Transport,Enterprise Flex-E-Rent,Client Transport,686,0,COMMERCIAL SUPPLIER
02-03-2022,Environment and Sustainable Transport,Enterprise Flex-E-Rent,Client Transport,368.72,0,COMMERCIAL SUPPLIER
02-03-2022,Environment and Sustainable Transport,Enterprise Flex-E-Rent,Client Transport,231.72,0,COMMERCIAL SUPPLIER
02-03-2022,Environment and Sustainable Transport,Enterprise Flex-E-Rent,Client Transport,368.72,0,COMMERCIAL SUPPLIER
02-03-2022,Environment and Sustainable Transport,Enterprise Flex-E-Rent,Client Transport,340,0,COMMERCIAL SUPPLIER
02-03-2022,Environment and Sustainable Transport,Enterprise Flex-E-Rent,Client Transport,498.88,0,COMMERCIAL SUPPLIER
02-03-2022,Environment and Sustainable Transport,Enterprise Flex-E-Rent,Client Transport,231.72,0,COMMERCIAL SUPPLIER
02-03-2022,Environment and Sustainable Transport,Enterprise Flex-E-Rent,Client Transport,368.72,0,COMMERCIAL SUPPLIER
02-03-2022,Environment and Sustainable Transport,Enterprise Flex-E-Rent,Client Transport,368.72,0,COMMERCIAL SUPPLIER
02-03-2022,Environment and Sustainable Transport,Enterprise Flex-E-Rent,Client Transport,368.72,0,COMMERCIAL SUPPLIER
02-03-2022,Housing Revenue Account,Gas Contract Services LTD,Cyclical/Planned Maintenance - Mechanical And Electrical,3163.5,0,LOCAL AUTHORITY SERVICES
02-03-2022,Adults & Health,Annie's Healthcare Services C.I.C,Home Care - Private Contractors Payment,702,0,NON COMMERCIAL SUPPLIER
02-03-2022,Adults & Health,Annie's Healthcare Services C.I.C,Home Care - Private Contractors Payment,687.96,0,NON COMMERCIAL SUPPLIER
02-03-2022,Adults & Health,Annie's Healthcare Services C.I.C,Home Care - Private Contractors Payment,687.96,0,NON COMMERCIAL SUPPLIER
02-03-2022,Adults & Health,Annie's Healthcare Services C.I.C,Home Care - Private Contractors Payment,687.96,0,NON COMMERCIAL SUPPLIER
02-03-2022,Children and Young People,Potton Kare Services,Additional Placements - Third Party,20.55,0,VENDOR
02-03-2022,Children and Young People,Potton Kare Services,Additional Placements - Third Party,231.6,0,VENDOR
02-03-2022,Adults & Health,Headway East London,Daycare - Private Contractors Payment,200,0,COMMERCIAL SUPPLIER
02-03-2022,Adults & Health,Headway East London,Daycare - Private Contractors Payment,200,0,COMMERCIAL SUPPLIER
02-03-2022,Adults & Health,Headway East London,Daycare - Private Contractors Payment,200,0,COMMERCIAL SUPPLIER
02-03-2022,Adults & Health,Headway East London,Daycare - Private Contractors Payment,200,0,COMMERCIAL SUPPLIER
02-03-2022,Adults & Health,Headway East London,Daycare - Private Contractors Payment,75,0,COMMERCIAL SUPPLIER
02-03-2022,Adults & Health,Headway East London,Daycare - Private Contractors Payment,105,0,COMMERCIAL SUPPLIER
02-03-2022,Adults & Health,Headway East London,Daycare - Private Contractors Payment,105,0,COMMERCIAL SUPPLIER
02-03-2022,Adults & Health,Headway East London,Daycare - Private Contractors Payment,105,0,COMMERCIAL SUPPLIER
02-03-2022,Adults & Health,Headway East London,Daycare - Private Contractors Payment,432,0,COMMERCIAL SUPPLIER
02-03-2022,Adults & Health,Headway East London,Daycare - Private Contractors Payment,200,0,COMMERCIAL SUPPLIER
02-03-2022,Adults & Health,Headway East London,Daycare - Private Contractors Payment,200,0,COMMERCIAL SUPPLIER
02-03-2022,Adults & Health,Headway East London,Daycare - Private Contractors Payment,200,0,COMMERCIAL SUPPLIER
02-03-2022,Adults & Health,Headway East London,Daycare - Private Contractors Payment,-73.12,0,COMMERCIAL SUPPLIER
02-03-2022,Adults & Health,Headway East London,Daycare - Private Contractors Payment,100,0,COMMERCIAL SUPPLIER
02-03-2022,Adults & Health,Headway East London,Daycare - Private Contractors Payment,100,0,COMMERCIAL SUPPLIER
02-03-2022,Adults & Health,Headway East London,Daycare - Private Contractors Payment,168,0,COMMERCIAL SUPPLIER
02-03-2022,Adults & Health,Headway East London,Daycare - Private Contractors Payment,100,0,COMMERCIAL SUPPLIER
02-03-2022,Adults & Health,Headway East London,Daycare - Private Contractors Payment,100,0,COMMERCIAL SUPPLIER
02-03-2022,Adults & Health,Headway East London,Daycare - Private Contractors Payment,168,0,COMMERCIAL SUPPLIER
02-03-2022,Adults & Health,Headway East London,Daycare - Private Contractors Payment,168,0,COMMERCIAL SUPPLIER
02-03-2022,Adults & Health,Headway East London,Payments To Voluntary Sector,113.4,0,COMMERCIAL SUPPLIER
02-03-2022,Adults & Health,Headway East London,Daycare - Private Contractors Payment,200,0,COMMERCIAL SUPPLIER
02-03-2022,Adults & Health,Headway East London,Payments To Voluntary Sector,113.4,0,COMMERCIAL SUPPLIER
02-03-2022,Adults & Health,Headway East London,Daycare - Private Contractors Payment,200,0,COMMERCIAL SUPPLIER
02-03-2022,Adults & Health,Headway East London,Payments To Voluntary Sector,113.4,0,COMMERCIAL SUPPLIER
02-03-2022,Adults & Health,Headway East London,Daycare - Private Contractors Payment,200,0,COMMERCIAL SUPPLIER
02-03-2022,Adults & Health,Headway East London,Payments To Voluntary Sector,113.4,0,COMMERCIAL SUPPLIER
02-03-2022,Adults & Health,Headway East London,Daycare - Private Contractors Payment,200,0,COMMERCIAL SUPPLIER
02-03-2022,Adults & Health,Headway East London,Daycare - Private Contractors Payment,100,0,COMMERCIAL SUPPLIER
02-03-2022,Adults & Health,Headway East London,Daycare - Private Contractors Payment,100,0,COMMERCIAL SUPPLIER
02-03-2022,Adults & Health,Headway East London,Daycare - Private Contractors Payment,100,0,COMMERCIAL SUPPLIER
02-03-2022,Adults & Health,Headway East London,Daycare - Private Contractors Payment,100,0,COMMERCIAL SUPPLIER
02-03-2022,Adults & Health,Headway East London,Daycare - Private Contractors Payment,200,0,COMMERCIAL SUPPLIER
02-03-2022,Adults & Health,Headway East London,Daycare - Private Contractors Payment,200,0,COMMERCIAL SUPPLIER
02-03-2022,Adults & Health,Headway East London,Daycare - Private Contractors Payment,200,0,COMMERCIAL SUPPLIER
02-03-2022,Adults & Health,Headway East London,Daycare - Private Contractors Payment,200,0,COMMERCIAL SUPPLIER
02-03-2022,Adults & Health,Headway East London,Daycare - Private Contractors Payment,100,0,COMMERCIAL SUPPLIER
02-03-2022,Adults & Health,Headway East London,Daycare - Private Contractors Payment,100,0,COMMERCIAL SUPPLIER
02-03-2022,Adults & Health,Headway East London,Daycare - Private Contractors Payment,100,0,COMMERCIAL SUPPLIER
02-03-2022,Adults & Health,Headway East London,Daycare - Private Contractors Payment,100,0,COMMERCIAL SUPPLIER
02-03-2022,Adults & Health,Headway East London,Payments To Voluntary Sector,70.1,0,COMMERCIAL SUPPLIER
02-03-2022,Adults & Health,Headway East London,Payments To Voluntary Sector,70.1,0,COMMERCIAL SUPPLIER
02-03-2022,Adults & Health,Headway East London,Daycare - Private Contractors Payment,84,0,COMMERCIAL SUPPLIER
02-03-2022,Adults & Health,Headway East London,Daycare - Private Contractors Payment,100,0,COMMERCIAL SUPPLIER
02-03-2022,Adults & Health,Headway East London,Daycare - Private Contractors Payment,100,0,COMMERCIAL SUPPLIER
02-03-2022,Adults & Health,Headway East London,Daycare - Private Contractors Payment,84,0,COMMERCIAL SUPPLIER
02-03-2022,Adults & Health,Headway East London,Daycare - Private Contractors Payment,84,0,COMMERCIAL SUPPLIER
02-03-2022,Adults & Health,Headway East London,Daycare - Private Contractors Payment,100,0,COMMERCIAL SUPPLIER
02-03-2022,Adults & Health,Headway East London,Payments To Voluntary Sector,70.1,0,COMMERCIAL SUPPLIER
02-03-2022,Adults & Health,Headway East London,Daycare - Private Contractors Payment,84,0,COMMERCIAL SUPPLIER
02-03-2022,Adults & Health,Headway East London,Daycare - Private Contractors Payment,100,0,COMMERCIAL SUPPLIER
02-03-2022,Adults & Health,Headway East London,Payments To Voluntary Sector,70.1,0,COMMERCIAL SUPPLIER
02-03-2022,Adults & Health,Headway East London,Daycare - Private Contractors Payment,90.4,0,COMMERCIAL SUPPLIER
02-03-2022,Adults & Health,Headway East London,Daycare - Private Contractors Payment,90.4,0,COMMERCIAL SUPPLIER
02-03-2022,Adults & Health,Headway East London,Daycare - Private Contractors Payment,64.8,0,COMMERCIAL SUPPLIER
02-03-2022,Adults & Health,Headway East London,Daycare - Private Contractors Payment,90.4,0,COMMERCIAL SUPPLIER
02-03-2022,"People, Policy and Performance",Books Asia,"Books, Publications And Resources",341.4,0,COMMERCIAL SUPPLIER
02-03-2022,RMS,Blackburn & CO. Ltd,Private Contractors Payment - Other,375,0,CIS
02-03-2022,Housing Revenue Account,Manpower Direct Ltd,Security Of Premises,86711.24,0,COMMERCIAL SUPPLIER
02-03-2022,Adults & Health,Annie's Healthcare Services C.I.C,Home Care - Private Contractors Payment,687.96,0,NON COMMERCIAL SUPPLIER
02-03-2022,Children and Young People,Expert In Mind,Legal Fees,900.9,0,COMMERCIAL SUPPLIER
02-03-2022,oneSource,HB Editorial Services Ltd,Legal Fees,5995,0,COMMERCIAL SUPPLIER
02-03-2022,oneSource,CCS Media Limited.,Ict Hardware,6545,0,COMMERCIAL SUPPLIER
02-03-2022,oneSource,CCS Media Limited.,Ict Hardware,2354,0,COMMERCIAL SUPPLIER
02-03-2022,RMS,Travis Perkins Trading Company Ltd,Building Alterations And Materials,408.32,0,COMMERCIAL SUPPLIER
02-03-2022,oneSource - Non Shared,Laker Bms,Building Alterations And Materials,245.37,0,CIS
02-03-2022,RMS,Rehau Ltd,"Purchase - Equipment, Furniture And Materials",2376,0,VENDOR
02-03-2022,RMS,Rehau Ltd,"Purchase - Equipment, Furniture And Materials",2411.63,0,VENDOR
02-03-2022,Environment and Sustainable Transport,Ofcom,Legal Fees,5920,0,CENTRAL/GOVERNMENT DEPARTMENTS
02-03-2022,Inclusive Economy & Housing,British Gas Business,Electricity,1423.09,0,COMMERCIAL SUPPLIER
02-03-2022,Environment and Sustainable Transport,AeroArts UK,Arts And Leisure Costs,2300,0,NON COMMERCIAL SUPPLIER
02-03-2022,Adults & Health,Supporting Care,Daycare - Private Contractors Payment,37.44,0,VENDOR
02-03-2022,Adults & Health,Supporting Care,Home Care - Private Contractors Payment,657.56,0,VENDOR
02-03-2022,Adults & Health,Supporting Care,Home Care - Private Contractors Payment,26.5,0,VENDOR
02-03-2022,Adults & Health,Supporting Care,Home Care - Private Contractors Payment,655.2,0,VENDOR
02-03-2022,Adults & Health,Supporting Care,Daycare - Private Contractors Payment,37.44,0,VENDOR
02-03-2022,Adults & Health,Supporting Care,Home Care - Private Contractors Payment,26.5,0,VENDOR
02-03-2022,Adults & Health,Supporting Care,Home Care - Private Contractors Payment,655.2,0,VENDOR
02-03-2022,Adults & Health,Supporting Care,Daycare - Private Contractors Payment,37.44,0,VENDOR
02-03-2022,Adults & Health,Supporting Care,Home Care - Private Contractors Payment,26.5,0,VENDOR
02-03-2022,Adults & Health,Supporting Care,Home Care - Private Contractors Payment,655.2,0,VENDOR
02-03-2022,Adults & Health,Supporting Care,Daycare - Private Contractors Payment,37.44,0,VENDOR
02-03-2022,Adults & Health,Supporting Care,Home Care - Private Contractors Payment,664.64,0,VENDOR
02-03-2022,Adults & Health,Supporting Care,Home Care - Private Contractors Payment,26.5,0,VENDOR
02-03-2022,Adults & Health,Supporting Care,Daycare - Private Contractors Payment,37.44,0,VENDOR
02-03-2022,Adults & Health,Supporting Care,Home Care - Private Contractors Payment,26.5,0,VENDOR
02-03-2022,Adults & Health,Supporting Care,Home Care - Private Contractors Payment,328.38,0,VENDOR
02-03-2022,Adults & Health,CommUNITY Barnet,Private Contractors Payment - Other,41250,0,VOLUNTARY ORGANISATION
02-03-2022,Children and Young People,Choice Fostering Ltd,Fostering Agency Placements - Private Contractors Payment,830,0,COMMERCIAL SUPPLIER
02-03-2022,Children and Young People,Choice Fostering Ltd,Fostering Agency Placements - Private Contractors Payment,829.96,0,COMMERCIAL SUPPLIER
02-03-2022,Children and Young People,Choice Fostering Ltd,Fostering Agency Placements - Private Contractors Payment,830,0,COMMERCIAL SUPPLIER
02-03-2022,Children and Young People,Choice Fostering Ltd,Fostering Agency Placements - Private Contractors Payment,830,0,COMMERCIAL SUPPLIER
02-03-2022,Children and Young People,Choice Fostering Ltd,Fostering Agency Placements - Private Contractors Payment,830,0,COMMERCIAL SUPPLIER
02-03-2022,Children and Young People,Choice Fostering Ltd,Fostering Agency Placements - Private Contractors Payment,829.96,0,COMMERCIAL SUPPLIER
02-03-2022,Children and Young People,Choice Fostering Ltd,Fostering Agency Placements - Private Contractors Payment,830,0,COMMERCIAL SUPPLIER
02-03-2022,Children and Young People,Choice Fostering Ltd,Fostering Agency Placements - Private Contractors Payment,830,0,COMMERCIAL SUPPLIER
02-03-2022,Children and Young People,Choice Fostering Ltd,Fostering Agency Placements - Private Contractors Payment,1500,0,COMMERCIAL SUPPLIER
02-03-2022,Children and Young People,Choice Fostering Ltd,Fostering Agency Placements - Private Contractors Payment,1500,0,COMMERCIAL SUPPLIER
02-03-2022,Children and Young People,Choice Fostering Ltd,Fostering Agency Placements - Private Contractors Payment,1500,0,COMMERCIAL SUPPLIER
02-03-2022,Children and Young People,Choice Fostering Ltd,Fostering Agency Placements - Private Contractors Payment,1500.12,0,COMMERCIAL SUPPLIER
02-03-2022,Children and Young People,Choice Fostering Ltd,Fostering Agency Placements - Private Contractors Payment,1750,0,COMMERCIAL SUPPLIER
02-03-2022,Children and Young People,Choice Fostering Ltd,Fostering Agency Placements - Private Contractors Payment,1750,0,COMMERCIAL SUPPLIER
02-03-2022,Children and Young People,Choice Fostering Ltd,Fostering Agency Placements - Private Contractors Payment,1750,0,COMMERCIAL SUPPLIER
02-03-2022,Children and Young People,Choice Fostering Ltd,Fostering Agency Placements - Private Contractors Payment,1750,0,COMMERCIAL SUPPLIER
02-03-2022,Housing Revenue Account,Bond Turner,Legal Fees,9673.33,0,INDIVIDUALS
02-03-2022,Housing Revenue Account,SBW Law,Legal Fees,3950,0,NON COMMERCIAL SUPPLIER
02-03-2022,Adults & Health,Matrix Scm,Agency Staff,2033.75,0,
02-03-2022,Adults & Health,Matrix Scm,Agency Staff,25,0,
02-03-2022,Adults & Health,Matrix Scm,Agency Staff,753.47,0,
02-03-2022,Adults & Health,Matrix Scm,Agency Staff,2285.2,0,
02-03-2022,Adults & Health,Matrix Scm,Agency Staff,2285.2,0,
02-03-2022,Adults & Health,Matrix Scm,Agency Staff,2851.45,0,
02-03-2022,Adults & Health,Matrix Scm,Agency Staff,630.99,0,
02-03-2022,Adults & Health,Matrix Scm,Agency Staff,852.39,0,
02-03-2022,Adults & Health,Matrix Scm,Agency Staff,1153.65,0,
02-03-2022,Adults & Health,Matrix Scm,Agency Staff,66.22,0,
02-03-2022,Adults & Health,Matrix Scm,Agency Staff,902.35,0,
02-03-2022,Adults & Health,Matrix Scm,Agency Staff,841.32,0,
02-03-2022,Adults & Health,Matrix Scm,Agency Staff,873.59,0,
02-03-2022,Adults & Health,Matrix Scm,Agency Staff,852.39,0,
02-03-2022,Adults & Health,Matrix Scm,Agency Staff,852.39,0,
02-03-2022,Adults & Health,Matrix Scm,Agency Staff,1066.43,0,
02-03-2022,Adults & Health,Matrix Scm,Agency Staff,67.94,0,
02-03-2022,Adults & Health,Matrix Scm,Agency Staff,1153.62,0,
02-03-2022,Adults & Health,Matrix Scm,Agency Staff,65.27,0,
02-03-2022,Adults & Health,Matrix Scm,Agency Staff,863.46,0,
02-03-2022,Adults & Health,Matrix Scm,Agency Staff,902.35,0,
02-03-2022,Adults & Health,Matrix Scm,Agency Staff,880.09,0,
02-03-2022,Adults & Health,Matrix Scm,Agency Staff,2693,0,
02-03-2022,Adults & Health,Matrix Scm,Agency Staff,989.28,0,
02-03-2022,Adults & Health,Matrix Scm,Agency Staff,1195.2,0,
02-03-2022,Adults & Health,Matrix Scm,Agency Staff,1169.28,0,
02-03-2022,Adults & Health,Matrix Scm,Agency Staff,1097.28,0,
02-03-2022,Adults & Health,Matrix Scm,Agency Staff,989.28,0,
02-03-2022,Environment and Sustainable Transport,Matrix Scm,Agency Staff,524.76,0,
02-03-2022,Inclusive Economy & Housing,Matrix Scm,Agency Staff,1504.09,0,
02-03-2022,Inclusive Economy & Housing,Matrix Scm,Agency Staff,1493.64,0,
02-03-2022,Inclusive Economy & Housing,Matrix Scm,Agency Staff,1838.53,0,
02-03-2022,Inclusive Economy & Housing,Matrix Scm,Agency Staff,1838.53,0,
02-03-2022,Inclusive Economy & Housing,Matrix Scm,Agency Staff,236.47,0,
02-03-2022,Adults & Health,Matrix Scm,Agency Staff,6.05,0,
02-03-2022,Adults & Health,Matrix Scm,Agency Staff,885.04,0,
02-03-2022,Adults & Health,Matrix Scm,Agency Staff,67.7,0,
02-03-2022,Adults & Health,Matrix Scm,Agency Staff,1.55,0,
02-03-2022,Adults & Health,Matrix Scm,Agency Staff,9.15,0,
02-03-2022,Adults & Health,Matrix Scm,Agency Staff,6.05,0,
02-03-2022,Adults & Health,Matrix Scm,Agency Staff,797.04,0,
02-03-2022,Environment and Sustainable Transport,Matrix Scm,Agency Staff,114.48,0,
02-03-2022,Environment and Sustainable Transport,Matrix Scm,Agency Staff,180.29,0,
02-03-2022,Environment and Sustainable Transport,Matrix Scm,Agency Staff,516.96,0,
02-03-2022,Environment and Sustainable Transport,Matrix Scm,Agency Staff,271.25,0,
02-03-2022,Environment and Sustainable Transport,Matrix Scm,Agency Staff,600.4,0,
02-03-2022,Environment and Sustainable Transport,Matrix Scm,Agency Staff,580.35,0,
02-03-2022,Environment and Sustainable Transport,Matrix Scm,Agency Staff,502.6,0,
02-03-2022,Environment and Sustainable Transport,Matrix Scm,Agency Staff,574.56,0,
02-03-2022,Environment and Sustainable Transport,Matrix Scm,Agency Staff,482.16,0,
02-03-2022,Environment and Sustainable Transport,Matrix Scm,Agency Staff,123.69,0,
02-03-2022,Environment and Sustainable Transport,Matrix Scm,Agency Staff,576.35,0,
02-03-2022,Environment and Sustainable Transport,Matrix Scm,Agency Staff,110.53,0,
02-03-2022,Environment and Sustainable Transport,Matrix Scm,Agency Staff,416.44,0,
02-03-2022,Environment and Sustainable Transport,Matrix Scm,Agency Staff,344.21,0,
02-03-2022,Environment and Sustainable Transport,Matrix Scm,Agency Staff,126.32,0,
02-03-2022,Environment and Sustainable Transport,Matrix Scm,Agency Staff,196.68,0,
02-03-2022,Environment and Sustainable Transport,Matrix Scm,Agency Staff,516.96,0,
02-03-2022,Environment and Sustainable Transport,Matrix Scm,Agency Staff,624.66,0,
02-03-2022,Environment and Sustainable Transport,Matrix Scm,Agency Staff,574.4,0,
02-03-2022,Environment and Sustainable Transport,Matrix Scm,Agency Staff,783.6,0,
02-03-2022,Adults & Health,Matrix Scm,Agency Staff,814.32,0,
02-03-2022,Adults & Health,Matrix Scm,Agency Staff,653.13,0,
02-03-2022,Adults & Health,Matrix Scm,Agency Staff,797.04,0,
02-03-2022,Adults & Health,Matrix Scm,Agency Staff,1273.44,0,
02-03-2022,Adults & Health,Matrix Scm,Agency Staff,2014.3,0,
02-03-2022,Adults & Health,Matrix Scm,Agency Staff,1529.28,0,
02-03-2022,Environment and Sustainable Transport,Matrix Scm,Agency Staff,571.71,0,
02-03-2022,Environment and Sustainable Transport,Matrix Scm,Agency Staff,1332.76,0,
02-03-2022,Environment and Sustainable Transport,Matrix Scm,Agency Staff,578.2,0,
02-03-2022,Environment and Sustainable Transport,Matrix Scm,Agency Staff,634,0,
02-03-2022,Children and Young People,Matrix Scm,Agency Staff,326.08,0,
02-03-2022,Children and Young People,Matrix Scm,Agency Staff,258.48,0,
02-03-2022,Environment and Sustainable Transport,Matrix Scm,Agency Staff,666.05,0,
02-03-2022,Children and Young People,Matrix Scm,Agency Staff,287.46,0,
02-03-2022,Children and Young People,Matrix Scm,Agency Staff,316.2,0,
02-03-2022,Children and Young People,Matrix Scm,Agency Staff,287.2,0,
02-03-2022,Children and Young People,Matrix Scm,Agency Staff,330.4,0,
02-03-2022,Inclusive Economy & Housing,Matrix Scm,Agency Staff,878.04,0,
02-03-2022,Inclusive Economy & Housing,Matrix Scm,Agency Staff,730.44,0,
02-03-2022,Inclusive Economy & Housing,Matrix Scm,Agency Staff,928.45,0,
02-03-2022,Inclusive Economy & Housing,Matrix Scm,Agency Staff,840.96,0,
02-03-2022,Inclusive Economy & Housing,Matrix Scm,Agency Staff,886.73,0,
02-03-2022,Inclusive Economy & Housing,Matrix Scm,Agency Staff,762.12,0,
02-03-2022,Inclusive Economy & Housing,Matrix Scm,Agency Staff,1014.59,0,
02-03-2022,Inclusive Economy & Housing,Matrix Scm,Agency Staff,928.8,0,
02-03-2022,Environment and Sustainable Transport,Matrix Scm,Agency Staff,610.3,0,
02-03-2022,Environment and Sustainable Transport,Matrix Scm,Agency Staff,458.85,0,
02-03-2022,Environment and Sustainable Transport,Matrix Scm,Agency Staff,606.71,0,
02-03-2022,Environment and Sustainable Transport,Matrix Scm,Agency Staff,580.35,0,
02-03-2022,Environment and Sustainable Transport,Matrix Scm,Agency Staff,692.1,0,
02-03-2022,Environment and Sustainable Transport,Matrix Scm,Agency Staff,402.08,0,
02-03-2022,Environment and Sustainable Transport,Matrix Scm,Agency Staff,597.5,0,
02-03-2022,Adults & Health,Matrix Scm,Agency Staff,187.11,0,
02-03-2022,Adults & Health,Matrix Scm,Agency Staff,2772.75,0,
02-03-2022,Adults & Health,Matrix Scm,Agency Staff,748.46,0,
02-03-2022,Adults & Health,Matrix Scm,Agency Staff,145.68,0,
02-03-2022,Adults & Health,Matrix Scm,Agency Staff,748.44,0,
02-03-2022,Children and Young People,Matrix Scm,Agency Staff,1680.48,0,
02-03-2022,Children and Young People,Matrix Scm,Agency Staff,1160.64,0,
02-03-2022,Children and Young People,Matrix Scm,Agency Staff,977.41,0,
02-03-2022,Children and Young People,Matrix Scm,Agency Staff,1860.48,0,
02-03-2022,Children and Young People,Matrix Scm,Agency Staff,1662.48,0,
02-03-2022,Adults & Health,Matrix Scm,Agency Staff,1349.28,0,
02-03-2022,Adults & Health,Matrix Scm,Agency Staff,273.6,0,
02-03-2022,RMS,Matrix Scm,Agency Staff,701.4,0,
02-03-2022,RMS,Matrix Scm,Agency Staff,1002,0,
02-03-2022,RMS,Matrix Scm,Agency Staff,730.9,0,
02-03-2022,RMS,Matrix Scm,Agency Staff,781.76,0,
02-03-2022,RMS,Matrix Scm,Agency Staff,754.5,0,
02-03-2022,RMS,Matrix Scm,Agency Staff,1064.65,0,
02-03-2022,RMS,Matrix Scm,Agency Staff,974.25,0,
02-03-2022,RMS,Matrix Scm,Agency Staff,1064.65,0,
02-03-2022,"People, Policy and Performance",Matrix Scm,Agency Staff,2208.55,0,
02-03-2022,"People, Policy and Performance",Matrix Scm,Agency Staff,2208.55,0,
02-03-2022,oneSource - Non Shared,Matrix Scm,Agency Staff,1686,0,
02-03-2022,Environment and Sustainable Transport,Matrix Scm,Agency Staff,560.7,0,
02-03-2022,Environment and Sustainable Transport,Matrix Scm,Agency Staff,516.96,0,
02-03-2022,Environment and Sustainable Transport,Matrix Scm,Agency Staff,672,0,
02-03-2022,Environment and Sustainable Transport,Matrix Scm,Agency Staff,569.15,0,
02-03-2022,Environment and Sustainable Transport,Matrix Scm,Agency Staff,119.07,0,
02-03-2022,Environment and Sustainable Transport,Matrix Scm,Agency Staff,560.51,0,
02-03-2022,Environment and Sustainable Transport,Matrix Scm,Agency Staff,688.42,0,
02-03-2022,Environment and Sustainable Transport,Matrix Scm,Agency Staff,127.33,0,
02-03-2022,Environment and Sustainable Transport,Matrix Scm,Agency Staff,577.85,0,
02-03-2022,Environment and Sustainable Transport,Matrix Scm,Agency Staff,464.28,0,
02-03-2022,Environment and Sustainable Transport,Matrix Scm,Agency Staff,576.36,0,
02-03-2022,Environment and Sustainable Transport,Matrix Scm,Agency Staff,736.46,0,
02-03-2022,Environment and Sustainable Transport,Matrix Scm,Agency Staff,669.5,0,
02-03-2022,Environment and Sustainable Transport,Matrix Scm,Agency Staff,592.92,0,
02-03-2022,Environment and Sustainable Transport,Matrix Scm,Agency Staff,576.74,0,
02-03-2022,Environment and Sustainable Transport,Matrix Scm,Agency Staff,515.17,0,
02-03-2022,Environment and Sustainable Transport,Matrix Scm,Agency Staff,576.74,0,
02-03-2022,Environment and Sustainable Transport,Matrix Scm,Agency Staff,580.35,0,
02-03-2022,Environment and Sustainable Transport,Matrix Scm,Agency Staff,358.23,0,
02-03-2022,Environment and Sustainable Transport,Matrix Scm,Agency Staff,516.96,0,
02-03-2022,Environment and Sustainable Transport,Matrix Scm,Agency Staff,204.82,0,
02-03-2022,Environment and Sustainable Transport,Matrix Scm,Agency Staff,516.96,0,
02-03-2022,Environment and Sustainable Transport,Matrix Scm,Agency Staff,301.56,0,
02-03-2022,Environment and Sustainable Transport,Matrix Scm,Agency Staff,416.44,0,
02-03-2022,Environment and Sustainable Transport,Matrix Scm,Agency Staff,112.07,0,
02-03-2022,Environment and Sustainable Transport,Matrix Scm,Agency Staff,576.35,0,
02-03-2022,Environment and Sustainable Transport,Matrix Scm,Agency Staff,200.42,0,
02-03-2022,Environment and Sustainable Transport,Matrix Scm,Agency Staff,576.35,0,
02-03-2022,Environment and Sustainable Transport,Matrix Scm,Agency Staff,161.46,0,
02-03-2022,Environment and Sustainable Transport,Matrix Scm,Agency Staff,516.96,0,
02-03-2022,Environment and Sustainable Transport,Matrix Scm,Agency Staff,672,0,
02-03-2022,Environment and Sustainable Transport,Matrix Scm,Agency Staff,352.44,0,
02-03-2022,Environment and Sustainable Transport,Matrix Scm,Agency Staff,576.35,0,
02-03-2022,Environment and Sustainable Transport,Matrix Scm,Agency Staff,672,0,
02-03-2022,Environment and Sustainable Transport,Matrix Scm,Agency Staff,127.33,0,
02-03-2022,Environment and Sustainable Transport,Matrix Scm,Agency Staff,594.37,0,
02-03-2022,Environment and Sustainable Transport,Matrix Scm,Agency Staff,576.35,0,
02-03-2022,Environment and Sustainable Transport,Matrix Scm,Agency Staff,132.37,0,
02-03-2022,Environment and Sustainable Transport,Matrix Scm,Agency Staff,594.37,0,
02-03-2022,Environment and Sustainable Transport,Matrix Scm,Agency Staff,502.6,0,
02-03-2022,RMS,Matrix Scm,Agency Staff,1381.26,0,
02-03-2022,RMS,Matrix Scm,Agency Staff,1381.26,0,
02-03-2022,RMS,Matrix Scm,Agency Staff,1062.9,0,
02-03-2022,RMS,Matrix Scm,Agency Staff,367.88,0,
02-03-2022,Environment and Sustainable Transport,Matrix Scm,Agency Staff,402.08,0,
02-03-2022,Inclusive Economy & Housing,Matrix Scm,Agency Staff,803.16,0,
02-03-2022,Inclusive Economy & Housing,Matrix Scm,Agency Staff,1160.29,0,
02-03-2022,Inclusive Economy & Housing,Matrix Scm,Agency Staff,853.92,0,
02-03-2022,Inclusive Economy & Housing,Matrix Scm,Agency Staff,982.08,0,
02-03-2022,Adults & Health,Matrix Scm,Agency Staff,1069.92,0,
02-03-2022,Adults & Health,Matrix Scm,Agency Staff,4.65,0,
02-03-2022,Adults & Health,Matrix Scm,Agency Staff,1136.52,0,
02-03-2022,Environment and Sustainable Transport,Matrix Scm,Agency Staff,580.35,0,
02-03-2022,Children and Young People,Matrix Scm,Agency Staff,1349.28,0,
02-03-2022,Children and Young People,Matrix Scm,Agency Staff,1349.28,0,
02-03-2022,Children and Young People,Matrix Scm,Agency Staff,1601.28,0,
02-03-2022,Environment and Sustainable Transport,Matrix Scm,Agency Staff,30.7,0,
02-03-2022,Environment and Sustainable Transport,Matrix Scm,Agency Staff,217.91,0,
02-03-2022,Environment and Sustainable Transport,Matrix Scm,Agency Staff,116.15,0,
02-03-2022,RMS,Matrix Scm,Agency Staff,1025.65,0,
02-03-2022,RMS,Matrix Scm,Agency Staff,621.35,0,
02-03-2022,RMS,Matrix Scm,Agency Staff,646,0,
02-03-2022,RMS,Matrix Scm,Agency Staff,936.34,0,
02-03-2022,RMS,Matrix Scm,Agency Staff,1188.45,0,
02-03-2022,RMS,Matrix Scm,Agency Staff,801.6,0,
02-03-2022,RMS,Matrix Scm,Agency Staff,820.7,0,
02-03-2022,RMS,Matrix Scm,Agency Staff,1056.61,0,
02-03-2022,RMS,Matrix Scm,Agency Staff,952.78,0,
02-03-2022,RMS,Matrix Scm,Agency Staff,113.76,0,
02-03-2022,RMS,Matrix Scm,Agency Staff,916.15,0,
02-03-2022,RMS,Matrix Scm,Agency Staff,804.8,0,
02-03-2022,RMS,Matrix Scm,Agency Staff,426.6,0,
02-03-2022,RMS,Matrix Scm,Agency Staff,977.2,0,
02-03-2022,RMS,Matrix Scm,Agency Staff,716.82,0,
02-03-2022,RMS,Matrix Scm,Agency Staff,327.34,0,
02-03-2022,RMS,Matrix Scm,Agency Staff,195.44,0,
02-03-2022,RMS,Matrix Scm,Agency Staff,601.2,0,
02-03-2022,RMS,Matrix Scm,Agency Staff,216,0,
02-03-2022,RMS,Matrix Scm,Agency Staff,977.2,0,
02-03-2022,RMS,Matrix Scm,Agency Staff,779.65,0,
02-03-2022,RMS,Matrix Scm,Agency Staff,870.4,0,
02-03-2022,RMS,Matrix Scm,Agency Staff,870.4,0,
02-03-2022,RMS,Matrix Scm,Agency Staff,163.2,0,
02-03-2022,RMS,Matrix Scm,Agency Staff,181.13,0,
02-03-2022,RMS,Matrix Scm,Agency Staff,939.4,0,
02-03-2022,RMS,Matrix Scm,Agency Staff,956.34,0,
02-03-2022,RMS,Matrix Scm,Agency Staff,837.76,0,
02-03-2022,Inclusive Economy & Housing,Matrix Scm,Agency Staff,1240.62,0,
02-03-2022,Inclusive Economy & Housing,Matrix Scm,Agency Staff,1272.2,0,
02-03-2022,RMS,Matrix Scm,Agency Staff,895.9,0,
02-03-2022,RMS,Matrix Scm,Agency Staff,836.65,0,
02-03-2022,RMS,Matrix Scm,Agency Staff,1303.9,0,
02-03-2022,RMS,Matrix Scm,Agency Staff,1131.2,0,
02-03-2022,RMS,Matrix Scm,Agency Staff,1131.2,0,
02-03-2022,RMS,Matrix Scm,Agency Staff,1131.2,0,
02-03-2022,RMS,Matrix Scm,Agency Staff,1159.6,0,
02-03-2022,RMS,Matrix Scm,Agency Staff,1304.58,0,
02-03-2022,RMS,Matrix Scm,Agency Staff,1131.2,0,
02-03-2022,RMS,Matrix Scm,Agency Staff,1131.2,0,
02-03-2022,RMS,Matrix Scm,Agency Staff,872.26,0,
02-03-2022,RMS,Matrix Scm,Agency Staff,1535.65,0,
02-03-2022,RMS,Matrix Scm,Agency Staff,1429.15,0,
02-03-2022,RMS,Matrix Scm,Agency Staff,933.77,0,
02-03-2022,RMS,Matrix Scm,Agency Staff,672.75,0,
02-03-2022,RMS,Matrix Scm,Agency Staff,1577.7,0,
02-03-2022,RMS,Matrix Scm,Agency Staff,1002,0,
02-03-2022,RMS,Matrix Scm,Agency Staff,998.8,0,
02-03-2022,RMS,Matrix Scm,Agency Staff,1104,0,
02-03-2022,RMS,Matrix Scm,Agency Staff,1104,0,
02-03-2022,RMS,Matrix Scm,Agency Staff,172.32,0,
02-03-2022,RMS,Matrix Scm,Agency Staff,754.4,0,
02-03-2022,RMS,Matrix Scm,Agency Staff,1209.29,0,
02-03-2022,RMS,Matrix Scm,Agency Staff,1429.92,0,
02-03-2022,RMS,Matrix Scm,Agency Staff,1023.77,0,
02-03-2022,RMS,Matrix Scm,Agency Staff,989.42,0,
02-03-2022,RMS,Matrix Scm,Agency Staff,602.29,0,
02-03-2022,RMS,Matrix Scm,Agency Staff,877.05,0,
02-03-2022,Children and Young People,Matrix Scm,Agency Staff,937.09,0,
02-03-2022,Children and Young People,Matrix Scm,Agency Staff,1349.28,0,
02-03-2022,Children and Young People,Matrix Scm,Agency Staff,543.46,0,
02-03-2022,Adults & Health,Matrix Scm,Agency Staff,536.55,0,
02-03-2022,Adults & Health,Matrix Scm,Agency Staff,536.55,0,
02-03-2022,Housing Revenue Account,Matrix Scm,Agency Staff,795.36,0,
02-03-2022,Housing Revenue Account,Matrix Scm,Agency Staff,1193.04,0,
02-03-2022,Housing Revenue Account,Matrix Scm,Agency Staff,581.4,0,
02-03-2022,Housing Revenue Account,Matrix Scm,Agency Staff,994.2,0,
02-03-2022,Housing Revenue Account,Matrix Scm,Agency Staff,1200.6,0,
02-03-2022,Housing Revenue Account,Matrix Scm,Agency Staff,872.1,0,
02-03-2022,Housing Revenue Account,Matrix Scm,Agency Staff,969,0,
02-03-2022,Housing Revenue Account,Matrix Scm,Agency Staff,785.76,0,
02-03-2022,Housing Revenue Account,Matrix Scm,Agency Staff,775.2,0,
02-03-2022,Housing Revenue Account,Matrix Scm,Agency Staff,596.52,0,
02-03-2022,Housing Revenue Account,Matrix Scm,Agency Staff,581.4,0,
02-03-2022,RMS,Matrix Scm,Agency Staff,172.32,0,
02-03-2022,RMS,Matrix Scm,Agency Staff,754.4,0,
02-03-2022,RMS,Matrix Scm,Agency Staff,1003.76,0,
02-03-2022,RMS,Matrix Scm,Agency Staff,974.26,0,
02-03-2022,RMS,Matrix Scm,Agency Staff,1329.99,0,
02-03-2022,RMS,Matrix Scm,Agency Staff,892,0,
02-03-2022,RMS,Matrix Scm,Agency Staff,977.2,0,
02-03-2022,RMS,Matrix Scm,Agency Staff,792.92,0,
02-03-2022,RMS,Matrix Scm,Agency Staff,1116,0,
02-03-2022,RMS,Matrix Scm,Agency Staff,1002,0,
02-03-2022,RMS,Matrix Scm,Agency Staff,740.79,0,
02-03-2022,RMS,Matrix Scm,Agency Staff,892,0,
02-03-2022,RMS,Matrix Scm,Agency Staff,1112,0,
02-03-2022,"People, Policy and Performance",Matrix Scm,Agency Staff,677.31,0,
02-03-2022,"People, Policy and Performance",Matrix Scm,Agency Staff,663.49,0,
02-03-2022,"People, Policy and Performance",Matrix Scm,Agency Staff,449.82,0,
02-03-2022,"People, Policy and Performance",Matrix Scm,Agency Staff,2645.8,0,
02-03-2022,Inclusive Economy & Housing,Matrix Scm,Agency Staff,310.56,0,
02-03-2022,Inclusive Economy & Housing,Matrix Scm,Agency Staff,1147.28,0,
02-03-2022,RMS,Matrix Scm,Agency Staff,863.2,0,
02-03-2022,RMS,Matrix Scm,Agency Staff,1127.25,0,
02-03-2022,RMS,Matrix Scm,Agency Staff,1210.4,0,
02-03-2022,RMS,Matrix Scm,Agency Staff,1002,0,
02-03-2022,RMS,Matrix Scm,Agency Staff,1210.4,0,
02-03-2022,RMS,Matrix Scm,Agency Staff,948,0,
02-03-2022,RMS,Matrix Scm,Agency Staff,1300.5,0,
02-03-2022,RMS,Matrix Scm,Agency Staff,1124.38,0,
02-03-2022,RMS,Matrix Scm,Agency Staff,1093.95,0,
02-03-2022,RMS,Matrix Scm,Agency Staff,1425.45,0,
02-03-2022,RMS,Matrix Scm,Agency Staff,1219.68,0,
02-03-2022,RMS,Matrix Scm,Agency Staff,1216.32,0,
02-03-2022,RMS,Matrix Scm,Agency Staff,1036.8,0,
02-03-2022,RMS,Matrix Scm,Agency Staff,628,0,
02-03-2022,RMS,Matrix Scm,Agency Staff,1219.68,0,
02-03-2022,RMS,Matrix Scm,Agency Staff,1187.76,0,
02-03-2022,RMS,Matrix Scm,Agency Staff,983.04,0,
02-03-2022,Dedicated Schools Budget,Matrix Scm,Agency Staff,637.34,0,
02-03-2022,Dedicated Schools Budget,Matrix Scm,Agency Staff,348.15,0,
02-03-2022,Children and Young People,Matrix Scm,Agency Staff,1877.12,0,
02-03-2022,Children and Young People,Matrix Scm,Agency Staff,1637.28,0,
02-03-2022,Children and Young People,Matrix Scm,Agency Staff,925.8,0,
02-03-2022,Children and Young People,Matrix Scm,Agency Staff,844.57,0,
02-03-2022,Children and Young People,Matrix Scm,Agency Staff,938.4,0,
02-03-2022,Children and Young People,Matrix Scm,Agency Staff,272.38,0,
02-03-2022,Children and Young People,Matrix Scm,Agency Staff,1536.84,0,
02-03-2022,Children and Young People,Matrix Scm,Agency Staff,9.45,0,
02-03-2022,Children and Young People,Matrix Scm,Agency Staff,1457.28,0,
02-03-2022,Children and Young People,Matrix Scm,Agency Staff,1086.92,0,
02-03-2022,Housing Revenue Account,Matrix Scm,Agency Staff,2471.28,0,
02-03-2022,Housing Revenue Account,Matrix Scm,Agency Staff,1079.82,0,
02-03-2022,Housing Revenue Account,Matrix Scm,Agency Staff,746.74,0,
02-03-2022,Housing Revenue Account,Matrix Scm,Agency Staff,2288.4,0,
02-03-2022,Housing Revenue Account,Matrix Scm,Agency Staff,2817.95,0,
02-03-2022,Housing Revenue Account,Matrix Scm,Agency Staff,2483.5,0,
02-03-2022,Housing Revenue Account,Matrix Scm,Agency Staff,2483.5,0,
02-03-2022,Housing Revenue Account,Matrix Scm,Agency Staff,2483.5,0,
02-03-2022,oneSource,Matrix Scm,Agency Staff,4231.3,0,
02-03-2022,oneSource,Matrix Scm,Agency Staff,4231.3,0,
02-03-2022,oneSource,Matrix Scm,Agency Staff,835.48,0,
02-03-2022,oneSource,Matrix Scm,Agency Staff,2461.6,0,
02-03-2022,oneSource,Matrix Scm,Agency Staff,3573.45,0,
02-03-2022,oneSource,Matrix Scm,Agency Staff,5183.5,0,
02-03-2022,Environment and Sustainable Transport,Matrix Scm,Agency Staff,780,0,
02-03-2022,Environment and Sustainable Transport,Matrix Scm,Agency Staff,1209.25,0,
02-03-2022,Environment and Sustainable Transport,Matrix Scm,Agency Staff,864,0,
02-03-2022,Environment and Sustainable Transport,Matrix Scm,Agency Staff,948,0,
02-03-2022,Environment and Sustainable Transport,Matrix Scm,Agency Staff,875.44,0,
02-03-2022,Environment and Sustainable Transport,Matrix Scm,Agency Staff,768,0,
02-03-2022,Housing Revenue Account,Matrix Scm,Agency Staff,3568.5,0,
02-03-2022,Housing Revenue Account,Matrix Scm,Agency Staff,697.2,0,
02-03-2022,Housing Revenue Account,Matrix Scm,Agency Staff,418.32,0,
02-03-2022,Housing Revenue Account,Matrix Scm,Agency Staff,946.05,0,
02-03-2022,Housing Revenue Account,Matrix Scm,Agency Staff,248.25,0,
02-03-2022,Housing Revenue Account,Matrix Scm,Agency Staff,407.82,0,
02-03-2022,Housing Revenue Account,Matrix Scm,Agency Staff,910.12,0,
02-03-2022,Housing Revenue Account,Matrix Scm,Agency Staff,302.87,0,
02-03-2022,Environment and Sustainable Transport,Matrix Scm,Agency Staff,393.68,0,
02-03-2022,Children and Young People,Matrix Scm,Agency Staff,1349.28,0,
02-03-2022,Children and Young People,Matrix Scm,Agency Staff,1349.28,0,
02-03-2022,Children and Young People,Matrix Scm,Agency Staff,1349.28,0,
02-03-2022,Children and Young People,Matrix Scm,Agency Staff,2289.45,0,
02-03-2022,Children and Young People,Matrix Scm,Agency Staff,1133.44,0,
02-03-2022,Children and Young People,Matrix Scm,Agency Staff,1376.32,0,
02-03-2022,Children and Young People,Matrix Scm,Agency Staff,1052.48,0,
02-03-2022,Children and Young People,Matrix Scm,Agency Staff,1274.32,0,
02-03-2022,Children and Young People,Matrix Scm,Agency Staff,1274.32,0,
02-03-2022,"People, Policy and Performance",Matrix Scm,Agency Staff,1213.26,0,
02-03-2022,Children and Young People,Matrix Scm,Agency Staff,215.65,0,
02-03-2022,Children and Young People,Matrix Scm,Agency Staff,1253.67,0,
02-03-2022,Children and Young People,Matrix Scm,Agency Staff,3925.75,0,
02-03-2022,Brighter Futures Director,Matrix Scm,Agency Staff,519.1,0,
02-03-2022,Brighter Futures Director,Matrix Scm,Agency Staff,674.28,0,
02-03-2022,Children and Young People,Matrix Scm,Agency Staff,19.35,0,
02-03-2022,Children and Young People,Matrix Scm,Agency Staff,1601.28,0,
02-03-2022,Children and Young People,Matrix Scm,Agency Staff,1432.1,0,
02-03-2022,Children and Young People,Matrix Scm,Agency Staff,16.2,0,
02-03-2022,Brighter Futures Director,Matrix Scm,Agency Staff,1086.9,0,
02-03-2022,oneSource,Matrix Scm,Agency Staff,1160.25,0,
02-03-2022,Housing Revenue Account,Matrix Scm,Agency Staff,413.82,0,
02-03-2022,Housing Revenue Account,Matrix Scm,Agency Staff,572.95,0,
02-03-2022,Housing Revenue Account,Matrix Scm,Agency Staff,580.35,0,
02-03-2022,Housing Revenue Account,Matrix Scm,Agency Staff,516.96,0,
02-03-2022,Housing Revenue Account,Matrix Scm,Agency Staff,935.3,0,
02-03-2022,Housing Revenue Account,Matrix Scm,Agency Staff,296.46,0,
02-03-2022,Housing Revenue Account,Matrix Scm,Agency Staff,507.47,0,
02-03-2022,Housing Revenue Account,Matrix Scm,Agency Staff,795.84,0,
02-03-2022,"People, Policy and Performance",Matrix Scm,Agency Staff,1655.1,0,
02-03-2022,"People, Policy and Performance",Matrix Scm,Agency Staff,4089.15,0,
02-03-2022,"People, Policy and Performance",Matrix Scm,Agency Staff,4089.15,0,
02-03-2022,"People, Policy and Performance",Matrix Scm,Agency Staff,2340.3,0,
02-03-2022,oneSource,Matrix Scm,Agency Staff,2799.75,0,
02-03-2022,Brighter Futures Director,Matrix Scm,Agency Staff,2269.15,0,
02-03-2022,Brighter Futures Director,Matrix Scm,Agency Staff,2269.15,0,
02-03-2022,Brighter Futures Director,Matrix Scm,Agency Staff,2269.15,0,
02-03-2022,oneSource,Matrix Scm,Agency Staff,840.75,0,
02-03-2022,oneSource,Matrix Scm,Agency Staff,983.16,0,
02-03-2022,oneSource,Matrix Scm,Agency Staff,2234.15,0,
02-03-2022,oneSource,Matrix Scm,Agency Staff,983.17,0,
02-03-2022,Environment and Sustainable Transport,Matrix Scm,Agency Staff,932.42,0,
02-03-2022,Environment and Sustainable Transport,Matrix Scm,Agency Staff,868.98,0,
02-03-2022,Environment and Sustainable Transport,Matrix Scm,Agency Staff,651.6,0,
02-03-2022,Environment and Sustainable Transport,Matrix Scm,Agency Staff,405.51,0,
02-03-2022,Environment and Sustainable Transport,Matrix Scm,Agency Staff,628.19,0,
02-03-2022,Environment and Sustainable Transport,Matrix Scm,Agency Staff,368.67,0,
02-03-2022,Environment and Sustainable Transport,Matrix Scm,Agency Staff,1002.7,0,
02-03-2022,Environment and Sustainable Transport,Matrix Scm,Agency Staff,669.6,0,
02-03-2022,Environment and Sustainable Transport,Matrix Scm,Agency Staff,1177.91,0,
02-03-2022,Environment and Sustainable Transport,Matrix Scm,Agency Staff,603.72,0,
02-03-2022,Environment and Sustainable Transport,Matrix Scm,Agency Staff,984.81,0,
02-03-2022,Environment and Sustainable Transport,Matrix Scm,Agency Staff,610.2,0,
02-03-2022,Environment and Sustainable Transport,Matrix Scm,Agency Staff,695.16,0,
02-03-2022,Environment and Sustainable Transport,Matrix Scm,Agency Staff,651,0,
02-03-2022,Environment and Sustainable Transport,Matrix Scm,Agency Staff,591.84,0,
02-03-2022,Environment and Sustainable Transport,Matrix Scm,Agency Staff,932.42,0,
02-03-2022,Environment and Sustainable Transport,Matrix Scm,Agency Staff,-630.72,0,
02-03-2022,Environment and Sustainable Transport,Matrix Scm,Agency Staff,651.6,0,
02-03-2022,Environment and Sustainable Transport,Matrix Scm,Agency Staff,-494.94,0,
02-03-2022,Environment and Sustainable Transport,Matrix Scm,Agency Staff,511.33,0,
02-03-2022,Environment and Sustainable Transport,Matrix Scm,Agency Staff,932.41,0,
02-03-2022,"People, Policy and Performance",Matrix Scm,Agency Staff,637.87,0,
02-03-2022,"People, Policy and Performance",Matrix Scm,Agency Staff,529.57,0,
02-03-2022,"People, Policy and Performance",Matrix Scm,Agency Staff,879.13,0,
02-03-2022,"People, Policy and Performance",Matrix Scm,Agency Staff,866.52,0,
02-03-2022,"People, Policy and Performance",Matrix Scm,Agency Staff,805.68,0,
02-03-2022,"People, Policy and Performance",Matrix Scm,Agency Staff,812.52,0,
02-03-2022,"People, Policy and Performance",Matrix Scm,Agency Staff,1046.64,0,
02-03-2022,oneSource - Non Shared,Matrix Scm,Agency Staff,550.2,0,
02-03-2022,Housing Revenue Account,Matrix Scm,Agency Staff,2288.27,0,
02-03-2022,Housing Revenue Account,Matrix Scm,Agency Staff,2537,0,
02-03-2022,Housing Revenue Account,Matrix Scm,Agency Staff,438.24,0,
02-03-2022,Housing Revenue Account,Matrix Scm,Agency Staff,528.15,0,
02-03-2022,Housing Revenue Account,Matrix Scm,Agency Staff,524.7,0,
02-03-2022,Housing Revenue Account,Matrix Scm,Agency Staff,585.34,0,
02-03-2022,Housing Revenue Account,Matrix Scm,Agency Staff,751.81,0,
02-03-2022,Housing Revenue Account,Matrix Scm,Agency Staff,498.55,0,
02-03-2022,oneSource,Matrix Scm,Agency Staff,541.68,0,
02-03-2022,oneSource,Matrix Scm,Agency Staff,1072.28,0,
02-03-2022,Housing Revenue Account,Matrix Scm,Agency Staff,2208.5,0,
02-03-2022,Housing Revenue Account,Matrix Scm,Agency Staff,1493.48,0,
02-03-2022,Housing Revenue Account,Matrix Scm,Agency Staff,1639.64,0,
02-03-2022,Housing Revenue Account,Matrix Scm,Agency Staff,792.79,0,
02-03-2022,Housing Revenue Account,Matrix Scm,Agency Staff,5100.35,0,
02-03-2022,Housing Revenue Account,Matrix Scm,Agency Staff,3758.25,0,
02-03-2022,Housing Revenue Account,Matrix Scm,Agency Staff,3086.8,0,
02-03-2022,Housing Revenue Account,Matrix Scm,Agency Staff,2483.5,0,
02-03-2022,Housing Revenue Account,Matrix Scm,Agency Staff,1933.5,0,
02-03-2022,Housing Revenue Account,Matrix Scm,Agency Staff,1933.5,0,
02-03-2022,Housing Revenue Account,Matrix Scm,Agency Staff,20.25,0,
02-03-2022,Housing Revenue Account,Matrix Scm,Agency Staff,686.35,0,
02-03-2022,Housing Revenue Account,Matrix Scm,Agency Staff,9.61,0,
02-03-2022,Housing Revenue Account,Matrix Scm,Agency Staff,705.95,0,
02-03-2022,Housing Revenue Account,Matrix Scm,Agency Staff,1194.55,0,
02-03-2022,Housing Revenue Account,Matrix Scm,Agency Staff,2288.4,0,
02-03-2022,Children and Young People,Matrix Scm,Agency Staff,1457.28,0,
02-03-2022,Children and Young People,Matrix Scm,Agency Staff,1745.28,0,
02-03-2022,Children and Young People,Matrix Scm,Agency Staff,1457.28,0,
02-03-2022,Children and Young People,Matrix Scm,Agency Staff,1457.28,0,
02-03-2022,oneSource,Matrix Scm,Agency Staff,607.89,0,
02-03-2022,Adults & Health,Matrix Scm,Agency Staff,471.08,0,
02-03-2022,Environment and Sustainable Transport,Matrix Scm,Agency Staff,1056,0,
02-03-2022,Environment and Sustainable Transport,Matrix Scm,Agency Staff,21.7,0,
02-03-2022,Environment and Sustainable Transport,Matrix Scm,Agency Staff,900,0,
02-03-2022,Environment and Sustainable Transport,Matrix Scm,Agency Staff,460.28,0,
02-03-2022,Environment and Sustainable Transport,Matrix Scm,Agency Staff,516.96,0,
02-03-2022,Environment and Sustainable Transport,Matrix Scm,Agency Staff,571.69,0,
02-03-2022,Environment and Sustainable Transport,Matrix Scm,Agency Staff,21.6,0,
02-03-2022,Environment and Sustainable Transport,Matrix Scm,Agency Staff,78.7,0,
02-03-2022,Environment and Sustainable Transport,Matrix Scm,Agency Staff,515.17,0,
02-03-2022,Environment and Sustainable Transport,Matrix Scm,Agency Staff,464.28,0,
02-03-2022,Environment and Sustainable Transport,Matrix Scm,Agency Staff,797.72,0,
02-03-2022,Environment and Sustainable Transport,Matrix Scm,Agency Staff,81,0,
02-03-2022,Environment and Sustainable Transport,Matrix Scm,Agency Staff,560.51,0,
02-03-2022,Environment and Sustainable Transport,Matrix Scm,Agency Staff,524.16,0,
02-03-2022,Environment and Sustainable Transport,Matrix Scm,Agency Staff,529.92,0,
02-03-2022,Environment and Sustainable Transport,Matrix Scm,Agency Staff,963.9,0,
02-03-2022,Environment and Sustainable Transport,Matrix Scm,Agency Staff,1230.8,0,
02-03-2022,Environment and Sustainable Transport,Matrix Scm,Agency Staff,576.35,0,
02-03-2022,Environment and Sustainable Transport,Matrix Scm,Agency Staff,573.12,0,
02-03-2022,Environment and Sustainable Transport,Matrix Scm,Agency Staff,679.73,0,
02-03-2022,Environment and Sustainable Transport,Matrix Scm,Agency Staff,689.94,0,
02-03-2022,Environment and Sustainable Transport,Matrix Scm,Agency Staff,62.96,0,
02-03-2022,Environment and Sustainable Transport,Matrix Scm,Agency Staff,573.12,0,
02-03-2022,Environment and Sustainable Transport,Matrix Scm,Agency Staff,515.17,0,
02-03-2022,Environment and Sustainable Transport,Matrix Scm,Agency Staff,574.91,0,
02-03-2022,Adults & Health,Matrix Scm,Agency Staff,1379.17,0,
02-03-2022,Adults & Health,Matrix Scm,Agency Staff,1471.56,0,
02-03-2022,Adults & Health,Matrix Scm,Agency Staff,893.52,0,
02-03-2022,Adults & Health,Matrix Scm,Agency Staff,1457.28,0,
02-03-2022,Adults & Health,Matrix Scm,Agency Staff,1497.76,0,
02-03-2022,Adults & Health,Matrix Scm,Agency Staff,877.32,0,
02-03-2022,Adults & Health,Matrix Scm,Agency Staff,1069.7,0,
02-03-2022,Adults & Health,Matrix Scm,Agency Staff,214.89,0,
02-03-2022,Adults & Health,Matrix Scm,Agency Staff,995.76,0,
02-03-2022,Adults & Health,Matrix Scm,Agency Staff,631.65,0,
02-03-2022,Environment and Sustainable Transport,Matrix Scm,Agency Staff,-613.2,0,
02-03-2022,Environment and Sustainable Transport,Matrix Scm,Agency Staff,633.5,0,
02-03-2022,Environment and Sustainable Transport,Matrix Scm,Agency Staff,-630.72,0,
02-03-2022,Environment and Sustainable Transport,Matrix Scm,Agency Staff,651.6,0,
02-03-2022,Environment and Sustainable Transport,Matrix Scm,Agency Staff,389.5,0,
02-03-2022,Environment and Sustainable Transport,Matrix Scm,Agency Staff,607.9,0,
02-03-2022,Environment and Sustainable Transport,Matrix Scm,Agency Staff,695.16,0,
02-03-2022,Environment and Sustainable Transport,Matrix Scm,Agency Staff,280,0,
02-03-2022,Environment and Sustainable Transport,Matrix Scm,Agency Staff,1485.27,0,
02-03-2022,oneSource,Matrix Scm,Agency Staff,2840.35,0,
02-03-2022,Resources,Matrix Scm,Agency Staff,3566.2,0,
02-03-2022,Resources,Matrix Scm,Agency Staff,2246.8,0,
02-03-2022,Resources,Matrix Scm,Agency Staff,1685.1,0,
02-03-2022,oneSource,Matrix Scm,Agency Staff,1655.1,0,
02-03-2022,oneSource,Matrix Scm,Agency Staff,3583.5,0,
02-03-2022,oneSource,Matrix Scm,Agency Staff,2758.5,0,
02-03-2022,"People, Policy and Performance",Matrix Scm,Agency Staff,502.84,0,
02-03-2022,"People, Policy and Performance",Matrix Scm,Agency Staff,612.15,0,
02-03-2022,oneSource,Matrix Scm,Agency Staff,652.67,0,
02-03-2022,oneSource,Matrix Scm,Agency Staff,2137.25,0,
02-03-2022,Children and Young People,Matrix Scm,Agency Staff,1457.28,0,
02-03-2022,Children and Young People,Matrix Scm,Agency Staff,1457.28,0,
02-03-2022,Children and Young People,Matrix Scm,Agency Staff,1457.28,0,
02-03-2022,Children and Young People,Matrix Scm,Agency Staff,1457.28,0,
02-03-2022,Children and Young People,Matrix Scm,Agency Staff,1601.28,0,
02-03-2022,Children and Young People,Matrix Scm,Agency Staff,1483.56,0,
02-03-2022,Children and Young People,Matrix Scm,Agency Staff,1457.28,0,
02-03-2022,Children and Young People,Matrix Scm,Agency Staff,1457.28,0,
02-03-2022,Children and Young People,Matrix Scm,Agency Staff,20,0,
02-03-2022,Children and Young People,Matrix Scm,Agency Staff,1457.28,0,
02-03-2022,Resources,Matrix Scm,Agency Staff,1766.8,0,
02-03-2022,Adults & Health,Matrix Scm,Agency Staff,2483.5,0,
02-03-2022,Adults & Health,Matrix Scm,Agency Staff,749,0,
02-03-2022,Adults & Health,Matrix Scm,Agency Staff,836.29,0,
02-03-2022,Adults & Health,Matrix Scm,Agency Staff,994.34,0,
02-03-2022,Adults & Health,Matrix Scm,Agency Staff,1457.28,0,
02-03-2022,Adults & Health,Matrix Scm,Agency Staff,1169.28,0,
02-03-2022,Adults & Health,Matrix Scm,Agency Staff,1981.28,0,
02-03-2022,Adults & Health,Matrix Scm,Agency Staff,11.25,0,
02-03-2022,Adults & Health,Matrix Scm,Agency Staff,1295.28,0,
02-03-2022,Adults & Health,Matrix Scm,Agency Staff,827.29,0,
02-03-2022,Adults & Health,Matrix Scm,Agency Staff,1277.28,0,
02-03-2022,Adults & Health,Matrix Scm,Agency Staff,827.54,0,
02-03-2022,Adults & Health,Matrix Scm,Agency Staff,9.45,0,
02-03-2022,Adults & Health,Matrix Scm,Agency Staff,5.85,0,
02-03-2022,Adults & Health,Matrix Scm,Agency Staff,1295.28,0,
02-03-2022,Adults & Health,Matrix Scm,Agency Staff,1277.28,0,
02-03-2022,Adults & Health,Matrix Scm,Agency Staff,818.27,0,
02-03-2022,Adults & Health,Matrix Scm,Agency Staff,1349.28,0,
02-03-2022,Adults & Health,Matrix Scm,Agency Staff,1406.52,0,
02-03-2022,Adults & Health,Matrix Scm,Agency Staff,1311.8,0,
02-03-2022,Adults & Health,Matrix Scm,Agency Staff,17.5,0,
02-03-2022,Adults & Health,Matrix Scm,Agency Staff,1169.28,0,
02-03-2022,Adults & Health,Matrix Scm,Agency Staff,1169.28,0,
02-03-2022,Adults & Health,Matrix Scm,Agency Staff,1452.96,0,
02-03-2022,Adults & Health,Matrix Scm,Agency Staff,1169.28,0,
02-03-2022,Adults & Health,Matrix Scm,Agency Staff,1349.28,0,
02-03-2022,Adults & Health,Matrix Scm,Agency Staff,25.67,0,
02-03-2022,Adults & Health,Matrix Scm,Agency Staff,1195.2,0,
02-03-2022,Adults & Health,Matrix Scm,Agency Staff,1070.7,0,
02-03-2022,Adults & Health,Matrix Scm,Agency Staff,941.92,0,
02-03-2022,Brighter Futures Director,Matrix Scm,Agency Staff,4408.55,0,
02-03-2022,Children and Young People,Matrix Scm,Agency Staff,1740.64,0,
02-03-2022,Children and Young People,Matrix Scm,Agency Staff,1740.64,0,
02-03-2022,Children and Young People,Matrix Scm,Agency Staff,2041.64,0,
02-03-2022,Children and Young People,Matrix Scm,Agency Staff,2041.64,0,
02-03-2022,Children and Young People,Matrix Scm,Agency Staff,1601.28,0,
02-03-2022,Children and Young People,Matrix Scm,Agency Staff,1349.28,0,
02-03-2022,Children and Young People,Matrix Scm,Agency Staff,1349.28,0,
02-03-2022,Children and Young People,Matrix Scm,Agency Staff,1376.92,0,
02-03-2022,Children and Young People,Matrix Scm,Agency Staff,1349.28,0,
02-03-2022,Children and Young People,Matrix Scm,Agency Staff,1601.28,0,
02-03-2022,Children and Young People,Matrix Scm,Agency Staff,1667.16,0,
02-03-2022,Children and Young People,Matrix Scm,Agency Staff,700.56,0,
02-03-2022,Children and Young People,Matrix Scm,Agency Staff,1349.28,0,
02-03-2022,Children and Young People,Matrix Scm,Agency Staff,749.6,0,
02-03-2022,Children and Young People,Matrix Scm,Agency Staff,112.44,0,
02-03-2022,Children and Young People,Matrix Scm,Agency Staff,112.44,0,
02-03-2022,Children and Young People,Matrix Scm,Agency Staff,1349.28,0,
02-03-2022,"People, Policy and Performance",Matrix Scm,Agency Staff,3033.32,0,
02-03-2022,"People, Policy and Performance",Matrix Scm,Agency Staff,2258.5,0,
02-03-2022,Children and Young People,Matrix Scm,Agency Staff,1069.92,0,
02-03-2022,Children and Young People,Matrix Scm,Agency Staff,1069.92,0,
02-03-2022,Adults & Health,Matrix Scm,Agency Staff,980.66,0,
02-03-2022,Children and Young People,Matrix Scm,Agency Staff,563.95,0,
02-03-2022,Children and Young People,Matrix Scm,Agency Staff,961.92,0,
02-03-2022,Children and Young People,Matrix Scm,Agency Staff,6.03,0,
02-03-2022,Children and Young People,Matrix Scm,Agency Staff,217.55,0,
02-03-2022,Children and Young People,Matrix Scm,Agency Staff,1152.96,0,
02-03-2022,Children and Young People,Matrix Scm,Agency Staff,-581.16,0,
02-03-2022,Children and Young People,Matrix Scm,Agency Staff,1349.28,0,
02-03-2022,Children and Young People,Matrix Scm,Agency Staff,944.29,0,
02-03-2022,Children and Young People,Matrix Scm,Agency Staff,944.28,0,
02-03-2022,Children and Young People,Matrix Scm,Agency Staff,961.92,0,
02-03-2022,Children and Young People,Matrix Scm,Agency Staff,11.7,0,
02-03-2022,Children and Young People,Matrix Scm,Agency Staff,1349.28,0,
02-03-2022,Children and Young People,Matrix Scm,Agency Staff,1457.28,0,
02-03-2022,Children and Young People,Matrix Scm,Agency Staff,1747.8,0,
02-03-2022,Children and Young People,Matrix Scm,Agency Staff,1349.28,0,
02-03-2022,Children and Young People,Matrix Scm,Agency Staff,1483.55,0,
02-03-2022,Children and Young People,Matrix Scm,Agency Staff,148.95,0,
02-03-2022,Children and Young People,Matrix Scm,Agency Staff,1457.28,0,
02-03-2022,Children and Young People,Matrix Scm,Agency Staff,54.6,0,
02-03-2022,Children and Young People,Matrix Scm,Agency Staff,122.4,0,
02-03-2022,Children and Young People,Matrix Scm,Agency Staff,1349.28,0,
02-03-2022,Children and Young People,Matrix Scm,Agency Staff,1457.28,0,
02-03-2022,Children and Young People,Matrix Scm,Agency Staff,211.95,0,
02-03-2022,Children and Young People,Matrix Scm,Agency Staff,1373.76,0,
02-03-2022,Children and Young People,Matrix Scm,Agency Staff,1349.28,0,
02-03-2022,Children and Young People,Matrix Scm,Agency Staff,1349.28,0,
02-03-2022,Children and Young People,Matrix Scm,Agency Staff,1349.28,0,
02-03-2022,Children and Young People,Matrix Scm,Agency Staff,1601.28,0,
02-03-2022,Children and Young People,Matrix Scm,Agency Staff,1457.28,0,
02-03-2022,Children and Young People,Matrix Scm,Agency Staff,1630.43,0,
02-03-2022,Children and Young People,Matrix Scm,Agency Staff,1630.43,0,
02-03-2022,Children and Young People,Matrix Scm,Agency Staff,1457.28,0,
02-03-2022,Children and Young People,Matrix Scm,Agency Staff,1483.55,0,
02-03-2022,Children and Young People,Matrix Scm,Agency Staff,1457.28,0,
02-03-2022,Children and Young People,Matrix Scm,Agency Staff,1709.28,0,
02-03-2022,Children and Young People,Matrix Scm,Agency Staff,1497.76,0,
02-03-2022,Children and Young People,Matrix Scm,Agency Staff,1349.28,0,
02-03-2022,Children and Young People,Matrix Scm,Agency Staff,1457.28,0,
02-03-2022,Children and Young People,Matrix Scm,Agency Staff,1457.28,0,
02-03-2022,Children and Young People,Matrix Scm,Agency Staff,1159.56,0,
02-03-2022,Children and Young People,Matrix Scm,Agency Staff,1457.28,0,
02-03-2022,Children and Young People,Matrix Scm,Agency Staff,1483.56,0,
02-03-2022,Children and Young People,Matrix Scm,Agency Staff,50.76,0,
02-03-2022,Children and Young People,Matrix Scm,Agency Staff,1489.68,0,
02-03-2022,Children and Young People,Matrix Scm,Agency Staff,1349.28,0,
02-03-2022,Children and Young People,Matrix Scm,Agency Staff,1489.68,0,
02-03-2022,Children and Young People,Matrix Scm,Agency Staff,1457.28,0,
02-03-2022,Children and Young People,Matrix Scm,Agency Staff,28.8,0,
02-03-2022,Children and Young People,Matrix Scm,Agency Staff,1519.55,0,
02-03-2022,Children and Young People,Matrix Scm,Agency Staff,1457.28,0,
02-03-2022,Children and Young People,Matrix Scm,Agency Staff,1457.28,0,
02-03-2022,Children and Young People,Matrix Scm,Agency Staff,1457.28,0,
02-03-2022,Children and Young People,Matrix Scm,Agency Staff,1457.28,0,
02-03-2022,Children and Young People,Matrix Scm,Agency Staff,1349.28,0,
02-03-2022,Children and Young People,Matrix Scm,Agency Staff,1349.28,0,
02-03-2022,Children and Young People,Matrix Scm,Agency Staff,1446.12,0,
02-03-2022,Children and Young People,Matrix Scm,Agency Staff,1379.17,0,
02-03-2022,Children and Young People,Matrix Scm,Agency Staff,-1416.24,0,
02-03-2022,Children and Young People,Matrix Scm,Agency Staff,-1121.19,0,
02-03-2022,Children and Young People,Matrix Scm,Agency Staff,-1416.24,0,
02-03-2022,Adults & Health,Matrix Scm,Agency Staff,3739.85,0,
02-03-2022,Adults & Health,Matrix Scm,Agency Staff,2332.8,0,
02-03-2022,Adults & Health,Matrix Scm,Agency Staff,1067.2,0,
02-03-2022,Adults & Health,Matrix Scm,Agency Staff,980.29,0,
02-03-2022,Adults & Health,Matrix Scm,Agency Staff,1080.35,0,
02-03-2022,Adults & Health,Matrix Scm,Agency Staff,1120.33,0,
02-03-2022,Adults & Health,Matrix Scm,Agency Staff,1080.35,0,
02-03-2022,Adults & Health,Matrix Scm,Agency Staff,899.84,0,
02-03-2022,Adults & Health,Matrix Scm,Agency Staff,1159.2,0,
02-03-2022,Children and Young People,Matrix Scm,Agency Staff,855.39,0,
02-03-2022,Children and Young People,Matrix Scm,Agency Staff,1303.52,0,
02-03-2022,Children and Young People,Matrix Scm,Agency Staff,497.89,0,
02-03-2022,Children and Young People,Matrix Scm,Agency Staff,1213.4,0,
02-03-2022,Children and Young People,Matrix Scm,Agency Staff,1303.52,0,
02-03-2022,Children and Young People,Matrix Scm,Agency Staff,1655.1,0,
02-03-2022,Children and Young People,Matrix Scm,Agency Staff,551.7,0,
02-03-2022,Children and Young People,Matrix Scm,Agency Staff,651.76,0,
02-03-2022,Children and Young People,Matrix Scm,Agency Staff,1213.4,0,
02-03-2022,Children and Young People,Matrix Scm,Agency Staff,980.16,0,
02-03-2022,Children and Young People,Matrix Scm,Agency Staff,551.7,0,
02-03-2022,Children and Young People,Matrix Scm,Agency Staff,1103.4,0,
02-03-2022,Children and Young People,Matrix Scm,Agency Staff,1728.5,0,
02-03-2022,Children and Young People,Matrix Scm,Agency Staff,1778.5,0,
02-03-2022,Children and Young People,Matrix Scm,Agency Staff,1728.5,0,
02-03-2022,Children and Young People,Matrix Scm,Agency Staff,1728.5,0,
02-03-2022,Children and Young People,Matrix Scm,Agency Staff,2681.5,0,
02-03-2022,Children and Young People,Matrix Scm,Agency Staff,1108.45,0,
02-03-2022,Children and Young People,Matrix Scm,Agency Staff,1608.45,0,
02-03-2022,Children and Young People,Matrix Scm,Agency Staff,2068.85,0,
02-03-2022,Children and Young People,Matrix Scm,Agency Staff,1342.8,0,
02-03-2022,Children and Young People,Matrix Scm,Agency Staff,1480.69,0,
02-03-2022,Children and Young People,Matrix Scm,Agency Staff,45,0,
02-03-2022,Children and Young People,Matrix Scm,Agency Staff,1386.76,0,
02-03-2022,Children and Young People,Matrix Scm,Agency Staff,1709.28,0,
02-03-2022,Children and Young People,Matrix Scm,Agency Staff,1032.69,0,
02-03-2022,Children and Young People,Matrix Scm,Agency Staff,1457.28,0,
02-03-2022,Children and Young People,Matrix Scm,Agency Staff,1457.28,0,
02-03-2022,Children and Young People,Matrix Scm,Agency Staff,1457.28,0,
02-03-2022,Children and Young People,Matrix Scm,Agency Staff,1457.28,0,
02-03-2022,Children and Young People,Matrix Scm,Agency Staff,1457.28,0,
02-03-2022,Children and Young People,Matrix Scm,Agency Staff,1457.28,0,
02-03-2022,Children and Young People,Matrix Scm,Agency Staff,45,0,
02-03-2022,Children and Young People,Matrix Scm,Agency Staff,1457.28,0,
02-03-2022,Children and Young People,Matrix Scm,Agency Staff,89.55,0,
02-03-2022,Children and Young People,Matrix Scm,Agency Staff,1489.7,0,
02-03-2022,Children and Young People,Matrix Scm,Agency Staff,1889.45,0,
02-03-2022,Children and Young People,Matrix Scm,Agency Staff,1349.28,0,
02-03-2022,Children and Young People,Matrix Scm,Agency Staff,1421.28,0,
02-03-2022,Children and Young People,Matrix Scm,Agency Staff,1457.28,0,
02-03-2022,Children and Young People,Matrix Scm,Agency Staff,1483.56,0,
02-03-2022,Children and Young People,Matrix Scm,Agency Staff,1457.28,0,
02-03-2022,Children and Young People,Matrix Scm,Agency Staff,1457.28,0,
02-03-2022,Children and Young People,Matrix Scm,Agency Staff,2160.36,0,
02-03-2022,Children and Young People,Matrix Scm,Agency Staff,-1416.24,0,
02-03-2022,Children and Young People,Matrix Scm,Agency Staff,0,0,
02-03-2022,Children and Young People,Matrix Scm,Agency Staff,157.5,0,
02-03-2022,Children and Young People,Matrix Scm,Agency Staff,47.45,0,
02-03-2022,Children and Young People,Matrix Scm,Agency Staff,19.8,0,
02-03-2022,Children and Young People,Matrix Scm,Agency Staff,1349.28,0,
02-03-2022,Children and Young People,Matrix Scm,Agency Staff,978.13,0,
02-03-2022,oneSource,LNRS Data Services Ltd,Consultancy Fees,7050,0,COMMERCIAL SUPPLIER
02-03-2022,Brighter Futures Director,Performance Coaching International,Staff Development And Training,4227.3,0,COMMERCIAL SUPPLIER
02-03-2022,Children and Young People,Anytime Booking,Arts And Leisure Costs,637.5,0,COMMERCIAL SUPPLIER
02-03-2022,Children and Young People,Family First Fostering,Residential Placements - Private Contractors Payment,862.75,0,COMMERCIAL SUPPLIER
02-03-2022,Children and Young People,Family First Fostering,Residential Placements - Private Contractors Payment,862.75,0,COMMERCIAL SUPPLIER
02-03-2022,Children and Young People,Family First Fostering,Residential Placements - Private Contractors Payment,862.75,0,COMMERCIAL SUPPLIER
02-03-2022,Children and Young People,Family First Fostering,Residential Placements - Private Contractors Payment,862.75,0,COMMERCIAL SUPPLIER
02-03-2022,Children and Young People,Family First Fostering,Fostering Agency Placements - Private Contractors Payment,806.93,0,COMMERCIAL SUPPLIER
02-03-2022,Children and Young People,Family First Fostering,Fostering Agency Placements - Private Contractors Payment,806.93,0,COMMERCIAL SUPPLIER
02-03-2022,Children and Young People,Family First Fostering,Fostering Agency Placements - Private Contractors Payment,806.93,0,COMMERCIAL SUPPLIER
02-03-2022,Children and Young People,Family First Fostering,Fostering Agency Placements - Private Contractors Payment,806.93,0,COMMERCIAL SUPPLIER
02-03-2022,"People, Policy and Performance",Personal Information - Redacted,Design And Photographic Costs,475,0,VENDOR
02-03-2022,Environment and Sustainable Transport,Personal Information - Redacted,Design And Photographic Costs,1825,0,VENDOR
02-03-2022,Adults & Health,The Malayalee Association Of The United Kingdom ,Events,4005,0,
02-03-2022,Inclusive Economy & Housing,Property Link Ltd,Rents Payable,1500.24,0,VENDOR
02-03-2022,Inclusive Economy & Housing,Property Link Ltd,Rents Payable,1330,0,VENDOR
02-03-2022,Inclusive Economy & Housing,Unique Property Services & Investment Ltd,Rents Payable,1330,0,COMMERCIAL SUPPLIER
02-03-2022,Inclusive Economy & Housing,Unique Property Services & Investment Ltd,Rents Payable,1428,0,COMMERCIAL SUPPLIER
02-03-2022,Inclusive Economy & Housing,Unique Property Services & Investment Ltd,Rents Payable,1064,0,COMMERCIAL SUPPLIER
02-03-2022,Inclusive Economy & Housing,Unique Property Services & Investment Ltd,Rents Payable,1400,0,COMMERCIAL SUPPLIER
02-03-2022,Inclusive Economy & Housing,Unique Property Services & Investment Ltd,Rents Payable,1540,0,COMMERCIAL SUPPLIER
02-03-2022,Inclusive Economy & Housing,Unique Property Services & Investment Ltd,Rents Payable,1428,0,COMMERCIAL SUPPLIER
02-03-2022,Inclusive Economy & Housing,Unique Property Services & Investment Ltd,Rents Payable,1330,0,COMMERCIAL SUPPLIER
02-03-2022,Inclusive Economy & Housing,Unique Property Services & Investment Ltd,Rents Payable,1764,0,COMMERCIAL SUPPLIER
02-03-2022,Inclusive Economy & Housing,Unique Property Services & Investment Ltd,Rents Payable,1820,0,COMMERCIAL SUPPLIER
02-03-2022,Inclusive Economy & Housing,Unique Property Services & Investment Ltd,Rents Payable,1680,0,COMMERCIAL SUPPLIER
02-03-2022,Inclusive Economy & Housing,Unique Property Services & Investment Ltd,Rents Payable,1008,0,COMMERCIAL SUPPLIER
02-03-2022,Inclusive Economy & Housing,Unique Property Services & Investment Ltd,Rents Payable,1330,0,COMMERCIAL SUPPLIER
02-03-2022,Inclusive Economy & Housing,Unique Property Services & Investment Ltd,Rents Payable,1330,0,COMMERCIAL SUPPLIER
02-03-2022,Inclusive Economy & Housing,Finefair  Consultancy Ltd,Rents Payable,1120,0,VENDOR
02-03-2022,Inclusive Economy & Housing,Finefair  Consultancy Ltd,Rents Payable,1280.16,0,VENDOR
02-03-2022,Inclusive Economy & Housing,Finefair  Consultancy Ltd,Rents Payable,756,0,VENDOR
02-03-2022,Inclusive Economy & Housing,Finefair  Consultancy Ltd,Rents Payable,756,0,VENDOR
02-03-2022,Inclusive Economy & Housing,Finefair  Consultancy Ltd,Rents Payable,621,0,VENDOR
02-03-2022,Inclusive Economy & Housing,Finefair  Consultancy Ltd,Rents Payable,952,0,VENDOR
02-03-2022,Inclusive Economy & Housing,Finefair  Consultancy Ltd,Rents Payable,1064,0,VENDOR
02-03-2022,Inclusive Economy & Housing,Finefair  Consultancy Ltd,Rents Payable,1708,0,VENDOR
02-03-2022,Inclusive Economy & Housing,Raj Properties Limited,Rents Payable,1008,0,VENDOR
02-03-2022,Inclusive Economy & Housing,Raj Properties Limited,Rents Payable,1120,0,VENDOR
02-03-2022,Inclusive Economy & Housing,Raj Properties Limited,Rents Payable,1680,0,VENDOR
02-03-2022,Inclusive Economy & Housing,Raj Properties Limited,Rents Payable,1190,0,VENDOR
02-03-2022,Inclusive Economy & Housing,Raj Properties Limited,Rents Payable,1596,0,VENDOR
02-03-2022,Inclusive Economy & Housing,Raj Properties Limited,Rents Payable,1260,0,VENDOR
02-03-2022,Inclusive Economy & Housing,Raj Properties Limited,Rents Payable,1120,0,VENDOR
02-03-2022,Inclusive Economy & Housing,Raj Properties Limited,Rents Payable,1260,0,VENDOR
02-03-2022,Inclusive Economy & Housing,Raj Properties Limited,Rents Payable,1344,0,VENDOR
02-03-2022,Inclusive Economy & Housing,Raj Properties Limited,Rents Payable,1848,0,VENDOR
02-03-2022,Inclusive Economy & Housing,Raj Properties Limited,Rents Payable,1512,0,VENDOR
02-03-2022,Inclusive Economy & Housing,Raj Properties Limited,Rents Payable,1190,0,VENDOR
02-03-2022,Inclusive Economy & Housing,Raj Properties Limited,Rents Payable,1260,0,VENDOR
02-03-2022,Inclusive Economy & Housing,Raj Properties Limited,Rents Payable,1330,0,VENDOR
02-03-2022,Inclusive Economy & Housing,Raj Properties Limited,Rents Payable,1540,0,VENDOR
02-03-2022,Inclusive Economy & Housing,Raj Properties Limited,Rents Payable,-1178,0,VENDOR
02-03-2022,Inclusive Economy & Housing,Raj Properties Limited,Rents Payable,-266,0,VENDOR
02-03-2022,Inclusive Economy & Housing,Raj Properties Limited,Rents Payable,-1350,0,VENDOR
02-03-2022,Inclusive Economy & Housing,Raj Properties Limited,Rents Payable,-1395,0,VENDOR
02-03-2022,Inclusive Economy & Housing,Raj Properties Limited,Rents Payable,-1395,0,VENDOR
02-03-2022,Inclusive Economy & Housing,Raj Properties Limited,Rents Payable,-1350,0,VENDOR
02-03-2022,Inclusive Economy & Housing,Raj Properties Limited,Rents Payable,-1395,0,VENDOR
02-03-2022,Inclusive Economy & Housing,Raj Properties Limited,Rents Payable,-1395,0,VENDOR
02-03-2022,Inclusive Economy & Housing,Property Link Ltd,Rents Payable,1960,0,VENDOR
02-03-2022,Inclusive Economy & Housing,Property Link Ltd,Rents Payable,1764,0,VENDOR
02-03-2022,Inclusive Economy & Housing,Property Link Ltd,Rents Payable,1960,0,VENDOR
02-03-2022,Inclusive Economy & Housing,Property Link Ltd,Rents Payable,1960,0,VENDOR
02-03-2022,Inclusive Economy & Housing,Property Link Ltd,Rents Payable,1960,0,VENDOR
02-03-2022,Inclusive Economy & Housing,Property Link Ltd,Rents Payable,1960,0,VENDOR
02-03-2022,Inclusive Economy & Housing,Property Link Ltd,Rents Payable,1764,0,VENDOR
02-03-2022,Inclusive Economy & Housing,Property Link Ltd,Rents Payable,1960,0,VENDOR
02-03-2022,Inclusive Economy & Housing,Property Link Ltd,Rents Payable,1960,0,VENDOR
02-03-2022,Inclusive Economy & Housing,Property Link Ltd,Rents Payable,1330,0,VENDOR
02-03-2022,Inclusive Economy & Housing,Property Link Ltd,Rents Payable,1540,0,VENDOR
02-03-2022,Inclusive Economy & Housing,Finefair  Consultancy Ltd,Rents Payable,1680,0,VENDOR
02-03-2022,Inclusive Economy & Housing,Finefair  Consultancy Ltd,Rents Payable,840,0,VENDOR
02-03-2022,Inclusive Economy & Housing,Finefair  Consultancy Ltd,Rents Payable,1120,0,VENDOR
02-03-2022,Inclusive Economy & Housing,Finefair  Consultancy Ltd,Rents Payable,1280.16,0,VENDOR
02-03-2022,Inclusive Economy & Housing,Finefair  Consultancy Ltd,Rents Payable,1600.2,0,VENDOR
02-03-2022,Inclusive Economy & Housing,Finefair  Consultancy Ltd,Rents Payable,1456,0,VENDOR
02-03-2022,Inclusive Economy & Housing,Finefair  Consultancy Ltd,Rents Payable,1280.16,0,VENDOR
02-03-2022,Inclusive Economy & Housing,Finefair  Consultancy Ltd,Rents Payable,1279.88,0,VENDOR
02-03-2022,Inclusive Economy & Housing,Finefair  Consultancy Ltd,Rents Payable,1764,0,VENDOR
02-03-2022,Inclusive Economy & Housing,Finefair  Consultancy Ltd,Rents Payable,1279.88,0,VENDOR
02-03-2022,Inclusive Economy & Housing,Finefair  Consultancy Ltd,Rents Payable,1624,0,VENDOR
02-03-2022,Inclusive Economy & Housing,Finefair  Consultancy Ltd,Rents Payable,1260,0,VENDOR
02-03-2022,Inclusive Economy & Housing,Finefair  Consultancy Ltd,Rents Payable,1600.2,0,VENDOR
02-03-2022,Inclusive Economy & Housing,Finefair  Consultancy Ltd,Rents Payable,1280.16,0,VENDOR
02-03-2022,Inclusive Economy & Housing,Finefair  Consultancy Ltd,Rents Payable,1500.24,0,VENDOR
02-03-2022,Inclusive Economy & Housing,Finefair  Consultancy Ltd,Rents Payable,868,0,VENDOR
02-03-2022,Inclusive Economy & Housing,Finefair  Consultancy Ltd,Rents Payable,1540,0,VENDOR
02-03-2022,Inclusive Economy & Housing,Finefair  Consultancy Ltd,Rents Payable,1680,0,VENDOR
02-03-2022,Inclusive Economy & Housing,Finefair  Consultancy Ltd,Rents Payable,952,0,VENDOR
02-03-2022,Inclusive Economy & Housing,Finefair  Consultancy Ltd,Rents Payable,700,0,VENDOR
02-03-2022,Inclusive Economy & Housing,Finefair  Consultancy Ltd,Rents Payable,1176,0,VENDOR
02-03-2022,Inclusive Economy & Housing,Property Link Ltd,Rents Payable,2380,0,VENDOR
02-03-2022,Inclusive Economy & Housing,Property Link Ltd,Rents Payable,1960,0,VENDOR
02-03-2022,Inclusive Economy & Housing,Property Link Ltd,Rents Payable,1960,0,VENDOR
02-03-2022,Inclusive Economy & Housing,Property Link Ltd,Rents Payable,1540,0,VENDOR
02-03-2022,Inclusive Economy & Housing,Property Link Ltd,Rents Payable,1540,0,VENDOR
02-03-2022,Inclusive Economy & Housing,Property Link Ltd,Rents Payable,1764,0,VENDOR
02-03-2022,Inclusive Economy & Housing,Property Link Ltd,Rents Payable,1960,0,VENDOR
02-03-2022,Inclusive Economy & Housing,Property Link Ltd,Rents Payable,1540,0,VENDOR
02-03-2022,Inclusive Economy & Housing,Property Link Ltd,Rents Payable,1600.2,0,VENDOR
02-03-2022,Inclusive Economy & Housing,Property Link Ltd,Rents Payable,1540,0,VENDOR
02-03-2022,Inclusive Economy & Housing,Property Link Ltd,Rents Payable,1600.2,0,VENDOR
02-03-2022,Inclusive Economy & Housing,Property Link Ltd,Rents Payable,1764,0,VENDOR
02-03-2022,Inclusive Economy & Housing,Property Link Ltd,Rents Payable,1540,0,VENDOR
02-03-2022,Inclusive Economy & Housing,Property Link Ltd,Rents Payable,1540,0,VENDOR
02-03-2022,Inclusive Economy & Housing,Property Link Ltd,Rents Payable,1600.2,0,VENDOR
02-03-2022,Inclusive Economy & Housing,Property Link Ltd,Rents Payable,1764,0,VENDOR
02-03-2022,Inclusive Economy & Housing,Property Link Ltd,Rents Payable,1280.16,0,VENDOR
02-03-2022,Inclusive Economy & Housing,Property Link Ltd,Rents Payable,1764,0,VENDOR
02-03-2022,Inclusive Economy & Housing,Property Link Ltd,Rents Payable,1540,0,VENDOR
02-03-2022,Inclusive Economy & Housing,Property Link Ltd,Rents Payable,1330,0,VENDOR
02-03-2022,Inclusive Economy & Housing,Christopher House (London) Ltd T/A Lime Light Properties,Rents Payable,1260,0,VENDOR
02-03-2022,Inclusive Economy & Housing,Unique Property Services & Investment Ltd,Rents Payable,1280.16,0,COMMERCIAL SUPPLIER
02-03-2022,Inclusive Economy & Housing,Unique Property Services & Investment Ltd,Rents Payable,1456,0,COMMERCIAL SUPPLIER
02-03-2022,Inclusive Economy & Housing,Unique Property Services & Investment Ltd,Rents Payable,1064,0,COMMERCIAL SUPPLIER
02-03-2022,Inclusive Economy & Housing,Unique Property Services & Investment Ltd,Rents Payable,1400,0,COMMERCIAL SUPPLIER
02-03-2022,Inclusive Economy & Housing,Unique Property Services & Investment Ltd,Rents Payable,1540,0,COMMERCIAL SUPPLIER
02-03-2022,Inclusive Economy & Housing,Unique Property Services & Investment Ltd,Rents Payable,1680,0,COMMERCIAL SUPPLIER
02-03-2022,Inclusive Economy & Housing,Unique Property Services & Investment Ltd,Rents Payable,1680,0,COMMERCIAL SUPPLIER
02-03-2022,Inclusive Economy & Housing,Unique Property Services & Investment Ltd,Rents Payable,1680,0,COMMERCIAL SUPPLIER
02-03-2022,Inclusive Economy & Housing,Unique Property Services & Investment Ltd,Rents Payable,1120,0,COMMERCIAL SUPPLIER
02-03-2022,Inclusive Economy & Housing,Unique Property Services & Investment Ltd,Rents Payable,1260,0,COMMERCIAL SUPPLIER
02-03-2022,Inclusive Economy & Housing,Unique Property Services & Investment Ltd,Rents Payable,1764,0,COMMERCIAL SUPPLIER
02-03-2022,Inclusive Economy & Housing,Unique Property Services & Investment Ltd,Rents Payable,1680,0,COMMERCIAL SUPPLIER
02-03-2022,Inclusive Economy & Housing,Unique Property Services & Investment Ltd,Rents Payable,1820,0,COMMERCIAL SUPPLIER
02-03-2022,Inclusive Economy & Housing,Unique Property Services & Investment Ltd,Rents Payable,1820,0,COMMERCIAL SUPPLIER
02-03-2022,Inclusive Economy & Housing,Unique Property Services & Investment Ltd,Rents Payable,1680,0,COMMERCIAL SUPPLIER
02-03-2022,Inclusive Economy & Housing,Unique Property Services & Investment Ltd,Rents Payable,1344,0,COMMERCIAL SUPPLIER
02-03-2022,Inclusive Economy & Housing,Unique Property Services & Investment Ltd,Rents Payable,1500.24,0,COMMERCIAL SUPPLIER
02-03-2022,Inclusive Economy & Housing,Unique Property Services & Investment Ltd,Rents Payable,1680,0,COMMERCIAL SUPPLIER
02-03-2022,Inclusive Economy & Housing,Unique Property Services & Investment Ltd,Rents Payable,1596,0,COMMERCIAL SUPPLIER
02-03-2022,Inclusive Economy & Housing,Unique Property Services & Investment Ltd,Rents Payable,1568,0,COMMERCIAL SUPPLIER
02-03-2022,Inclusive Economy & Housing,Unique Property Services & Investment Ltd,Rents Payable,1680,0,COMMERCIAL SUPPLIER
02-03-2022,Inclusive Economy & Housing,Unique Property Services & Investment Ltd,Rents Payable,1148,0,COMMERCIAL SUPPLIER
02-03-2022,Inclusive Economy & Housing,Finefair  Consultancy Ltd,Rents Payable,896,0,VENDOR
02-03-2022,Inclusive Economy & Housing,Finefair  Consultancy Ltd,Rents Payable,1820,0,VENDOR
02-03-2022,Inclusive Economy & Housing,Finefair  Consultancy Ltd,Rents Payable,1540,0,VENDOR
02-03-2022,Inclusive Economy & Housing,Finefair  Consultancy Ltd,Rents Payable,1120,0,VENDOR
02-03-2022,Inclusive Economy & Housing,Finefair  Consultancy Ltd,Rents Payable,1316,0,VENDOR
02-03-2022,Inclusive Economy & Housing,Finefair  Consultancy Ltd,Rents Payable,1540,0,VENDOR
02-03-2022,Inclusive Economy & Housing,Finefair  Consultancy Ltd,Rents Payable,1120,0,VENDOR
02-03-2022,Inclusive Economy & Housing,Finefair  Consultancy Ltd,Rents Payable,1540,0,VENDOR
02-03-2022,Inclusive Economy & Housing,Finefair  Consultancy Ltd,Rents Payable,1771.65,0,VENDOR
02-03-2022,Inclusive Economy & Housing,Finefair  Consultancy Ltd,Rents Payable,1600.2,0,VENDOR
02-03-2022,Inclusive Economy & Housing,Finefair  Consultancy Ltd,Rents Payable,1200.15,0,VENDOR
02-03-2022,Inclusive Economy & Housing,Finefair  Consultancy Ltd,Rents Payable,1714.5,0,VENDOR
02-03-2022,Inclusive Economy & Housing,Finefair  Consultancy Ltd,Rents Payable,1771.65,0,VENDOR
02-03-2022,Inclusive Economy & Housing,Capital Homes Ltd,Rents Payable,1064,0,COMMERCIAL SUPPLIER
02-03-2022,Inclusive Economy & Housing,Capital Homes Ltd,Rents Payable,1064,0,COMMERCIAL SUPPLIER
02-03-2022,Inclusive Economy & Housing,Capital Homes Ltd,Rents Payable,1176,0,COMMERCIAL SUPPLIER
02-03-2022,Inclusive Economy & Housing,Capital Homes Ltd,Rents Payable,784,0,COMMERCIAL SUPPLIER
02-03-2022,Inclusive Economy & Housing,Capital Homes Ltd,Rents Payable,224,0,COMMERCIAL SUPPLIER
02-03-2022,Inclusive Economy & Housing,Capital Homes Ltd,Rents Payable,784,0,COMMERCIAL SUPPLIER
02-03-2022,Inclusive Economy & Housing,Capital Homes Ltd,Rents Payable,1260,0,COMMERCIAL SUPPLIER
02-03-2022,Inclusive Economy & Housing,Capital Homes Ltd,Rents Payable,784,0,COMMERCIAL SUPPLIER
02-03-2022,Inclusive Economy & Housing,Finefair  Consultancy Ltd,Rents Payable,756,0,VENDOR
02-03-2022,Inclusive Economy & Housing,Finefair  Consultancy Ltd,Rents Payable,1680,0,VENDOR
02-03-2022,Inclusive Economy & Housing,Finefair  Consultancy Ltd,Rents Payable,1280.16,0,VENDOR
02-03-2022,Inclusive Economy & Housing,Finefair  Consultancy Ltd,Rents Payable,868,0,VENDOR
02-03-2022,Inclusive Economy & Housing,Finefair  Consultancy Ltd,Rents Payable,1008,0,VENDOR
02-03-2022,Inclusive Economy & Housing,Finefair  Consultancy Ltd,Rents Payable,1680,0,VENDOR
02-03-2022,Inclusive Economy & Housing,Finefair  Consultancy Ltd,Rents Payable,1064,0,VENDOR
02-03-2022,Inclusive Economy & Housing,Finefair  Consultancy Ltd,Rents Payable,1540,0,VENDOR
02-03-2022,Inclusive Economy & Housing,Finefair  Consultancy Ltd,Rents Payable,1064,0,VENDOR
02-03-2022,Inclusive Economy & Housing,Finefair  Consultancy Ltd,Rents Payable,868,0,VENDOR
02-03-2022,Inclusive Economy & Housing,Finefair  Consultancy Ltd,Rents Payable,1540,0,VENDOR
02-03-2022,Inclusive Economy & Housing,Finefair  Consultancy Ltd,Rents Payable,1680,0,VENDOR
02-03-2022,Inclusive Economy & Housing,Finefair  Consultancy Ltd,Rents Payable,784,0,VENDOR
02-03-2022,Inclusive Economy & Housing,Finefair  Consultancy Ltd,Rents Payable,1540,0,VENDOR
02-03-2022,Inclusive Economy & Housing,Finefair  Consultancy Ltd,Rents Payable,1344,0,VENDOR
02-03-2022,Inclusive Economy & Housing,Finefair  Consultancy Ltd,Rents Payable,1280.16,0,VENDOR
02-03-2022,Inclusive Economy & Housing,Finefair  Consultancy Ltd,Rents Payable,1260,0,VENDOR
02-03-2022,Inclusive Economy & Housing,Finefair  Consultancy Ltd,Rents Payable,1176,0,VENDOR
02-03-2022,Inclusive Economy & Housing,Finefair  Consultancy Ltd,Rents Payable,1148,0,VENDOR
02-03-2022,Inclusive Economy & Housing,Finefair  Consultancy Ltd,Rents Payable,756,0,VENDOR
02-03-2022,Inclusive Economy & Housing,Finefair  Consultancy Ltd,Rents Payable,1280.16,0,VENDOR
02-03-2022,Inclusive Economy & Housing,Finefair  Consultancy Ltd,Rents Payable,1680,0,VENDOR
02-03-2022,Inclusive Economy & Housing,Finefair  Consultancy Ltd,Rents Payable,1500.24,0,VENDOR
02-03-2022,Inclusive Economy & Housing,Finefair  Consultancy Ltd,Rents Payable,1463,0,VENDOR
02-03-2022,Inclusive Economy & Housing,Finefair  Consultancy Ltd,Rents Payable,924,0,VENDOR
02-03-2022,Inclusive Economy & Housing,Finefair  Consultancy Ltd,Rents Payable,924,0,VENDOR
02-03-2022,Inclusive Economy & Housing,Finefair  Consultancy Ltd,Rents Payable,1600.2,0,VENDOR
02-03-2022,Inclusive Economy & Housing,Finefair  Consultancy Ltd,Rents Payable,1176,0,VENDOR
02-03-2022,Inclusive Economy & Housing,Finefair  Consultancy Ltd,Rents Payable,120,0,VENDOR
02-03-2022,Inclusive Economy & Housing,Finefair  Consultancy Ltd,Rents Payable,1280.16,0,VENDOR
02-03-2022,Inclusive Economy & Housing,Finefair  Consultancy Ltd,Rents Payable,840,0,VENDOR
02-03-2022,Inclusive Economy & Housing,Finefair  Consultancy Ltd,Rents Payable,868,0,VENDOR
02-03-2022,Inclusive Economy & Housing,Finefair  Consultancy Ltd,Rents Payable,1500.24,0,VENDOR
02-03-2022,Inclusive Economy & Housing,Finefair  Consultancy Ltd,Rents Payable,1500.24,0,VENDOR
02-03-2022,Inclusive Economy & Housing,Finefair  Consultancy Ltd,Rents Payable,1500.24,0,VENDOR
02-03-2022,Inclusive Economy & Housing,Finefair  Consultancy Ltd,Rents Payable,1904,0,VENDOR
02-03-2022,Inclusive Economy & Housing,Finefair  Consultancy Ltd,Rents Payable,784,0,VENDOR
02-03-2022,Inclusive Economy & Housing,Finefair  Consultancy Ltd,Rents Payable,1540,0,VENDOR
02-03-2022,Inclusive Economy & Housing,Finefair  Consultancy Ltd,Rents Payable,1330,0,VENDOR
02-03-2022,Inclusive Economy & Housing,Finefair  Consultancy Ltd,Rents Payable,1568,0,VENDOR
02-03-2022,Inclusive Economy & Housing,Finefair  Consultancy Ltd,Rents Payable,1330,0,VENDOR
02-03-2022,Inclusive Economy & Housing,Finefair  Consultancy Ltd,Rents Payable,1600.2,0,VENDOR
02-03-2022,Inclusive Economy & Housing,Finefair  Consultancy Ltd,Rents Payable,1540,0,VENDOR
02-03-2022,Inclusive Economy & Housing,Nationwide Accommodation Services Limited,Rents Payable,1330,0,COMMERCIAL SUPPLIER
02-03-2022,Inclusive Economy & Housing,Nationwide Accommodation Services Limited,Rents Payable,1330,0,COMMERCIAL SUPPLIER
02-03-2022,Inclusive Economy & Housing,Nationwide Accommodation Services Limited,Rents Payable,1400,0,COMMERCIAL SUPPLIER
02-03-2022,Inclusive Economy & Housing,Nationwide Accommodation Services Limited,Rents Payable,1764,0,COMMERCIAL SUPPLIER
02-03-2022,Inclusive Economy & Housing,Nationwide Accommodation Services Limited,Rents Payable,1540,0,COMMERCIAL SUPPLIER
02-03-2022,Inclusive Economy & Housing,Nationwide Accommodation Services Limited,Rents Payable,1764,0,COMMERCIAL SUPPLIER
02-03-2022,Inclusive Economy & Housing,Nationwide Accommodation Services Limited,Rents Payable,1680,0,COMMERCIAL SUPPLIER
02-03-2022,Inclusive Economy & Housing,Nationwide Accommodation Services Limited,Rents Payable,1600.2,0,COMMERCIAL SUPPLIER
02-03-2022,Inclusive Economy & Housing,Nationwide Accommodation Services Limited,Rents Payable,1280.16,0,COMMERCIAL SUPPLIER
02-03-2022,Inclusive Economy & Housing,Nationwide Accommodation Services Limited,Rents Payable,1526,0,COMMERCIAL SUPPLIER
02-03-2022,Inclusive Economy & Housing,Nationwide Accommodation Services Limited,Rents Payable,1400,0,COMMERCIAL SUPPLIER
02-03-2022,Inclusive Economy & Housing,Nationwide Accommodation Services Limited,Rents Payable,1540,0,COMMERCIAL SUPPLIER
02-03-2022,Inclusive Economy & Housing,Nationwide Accommodation Services Limited,Rents Payable,1540,0,COMMERCIAL SUPPLIER
02-03-2022,Inclusive Economy & Housing,Nationwide Accommodation Services Limited,Rents Payable,1680,0,COMMERCIAL SUPPLIER
02-03-2022,Inclusive Economy & Housing,Nationwide Accommodation Services Limited,Rents Payable,1330,0,COMMERCIAL SUPPLIER
02-03-2022,Inclusive Economy & Housing,Nationwide Accommodation Services Limited,Rents Payable,1720.04,0,COMMERCIAL SUPPLIER
02-03-2022,Inclusive Economy & Housing,Nationwide Accommodation Services Limited,Rents Payable,1600.2,0,COMMERCIAL SUPPLIER
02-03-2022,Inclusive Economy & Housing,Nationwide Accommodation Services Limited,Rents Payable,1764,0,COMMERCIAL SUPPLIER
02-03-2022,Inclusive Economy & Housing,Nationwide Accommodation Services Limited,Rents Payable,1280.16,0,COMMERCIAL SUPPLIER
02-03-2022,Inclusive Economy & Housing,Nationwide Accommodation Services Limited,Rents Payable,1540,0,COMMERCIAL SUPPLIER
02-03-2022,Inclusive Economy & Housing,Nationwide Accommodation Services Limited,Rents Payable,1428,0,COMMERCIAL SUPPLIER
02-03-2022,Inclusive Economy & Housing,Finefair  Consultancy Ltd,Rents Payable,1498,0,VENDOR
02-03-2022,Inclusive Economy & Housing,Finefair  Consultancy Ltd,Rents Payable,1330,0,VENDOR
02-03-2022,Inclusive Economy & Housing,Finefair  Consultancy Ltd,Rents Payable,1499.96,0,VENDOR
02-03-2022,Inclusive Economy & Housing,Finefair  Consultancy Ltd,Rents Payable,1120,0,VENDOR
02-03-2022,Inclusive Economy & Housing,Finefair  Consultancy Ltd,Rents Payable,1540,0,VENDOR
02-03-2022,Inclusive Economy & Housing,Finefair  Consultancy Ltd,Rents Payable,1279.88,0,VENDOR
02-03-2022,Inclusive Economy & Housing,Finefair  Consultancy Ltd,Rents Payable,1680,0,VENDOR
02-03-2022,Inclusive Economy & Housing,Finefair  Consultancy Ltd,Rents Payable,1260,0,VENDOR
02-03-2022,Inclusive Economy & Housing,Finefair  Consultancy Ltd,Rents Payable,784,0,VENDOR
02-03-2022,Inclusive Economy & Housing,Finefair  Consultancy Ltd,Rents Payable,1499.96,0,VENDOR
02-03-2022,Inclusive Economy & Housing,Finefair  Consultancy Ltd,Rents Payable,798,0,VENDOR
02-03-2022,Inclusive Economy & Housing,Finefair  Consultancy Ltd,Rents Payable,1330,0,VENDOR
02-03-2022,Inclusive Economy & Housing,Finefair  Consultancy Ltd,Rents Payable,1008,0,VENDOR
02-03-2022,Inclusive Economy & Housing,Finefair  Consultancy Ltd,Rents Payable,1008,0,VENDOR
02-03-2022,Inclusive Economy & Housing,Finefair  Consultancy Ltd,Rents Payable,868,0,VENDOR
02-03-2022,Inclusive Economy & Housing,Finefair  Consultancy Ltd,Rents Payable,1624,0,VENDOR
02-03-2022,Inclusive Economy & Housing,Finefair  Consultancy Ltd,Rents Payable,1120,0,VENDOR
02-03-2022,Inclusive Economy & Housing,Finefair  Consultancy Ltd,Rents Payable,1260,0,VENDOR
02-03-2022,Inclusive Economy & Housing,Finefair  Consultancy Ltd,Rents Payable,924,0,VENDOR
02-03-2022,Inclusive Economy & Housing,Finefair  Consultancy Ltd,Rents Payable,1120,0,VENDOR
02-03-2022,Inclusive Economy & Housing,Finefair  Consultancy Ltd,Rents Payable,924,0,VENDOR
02-03-2022,Inclusive Economy & Housing,Finefair  Consultancy Ltd,Rents Payable,1204,0,VENDOR
02-03-2022,Inclusive Economy & Housing,Finefair  Consultancy Ltd,Rents Payable,1624,0,VENDOR
02-03-2022,Inclusive Economy & Housing,Finefair  Consultancy Ltd,Rents Payable,1064,0,VENDOR
02-03-2022,Inclusive Economy & Housing,Finefair  Consultancy Ltd,Rents Payable,1120,0,VENDOR
02-03-2022,Inclusive Economy & Housing,Finefair  Consultancy Ltd,Rents Payable,756,0,VENDOR
02-03-2022,Inclusive Economy & Housing,Finefair  Consultancy Ltd,Rents Payable,1064,0,VENDOR
02-03-2022,Inclusive Economy & Housing,Finefair  Consultancy Ltd,Rents Payable,1260,0,VENDOR
02-03-2022,Inclusive Economy & Housing,Finefair  Consultancy Ltd,Rents Payable,980,0,VENDOR
02-03-2022,Inclusive Economy & Housing,Finefair  Consultancy Ltd,Rents Payable,1764,0,VENDOR
02-03-2022,Inclusive Economy & Housing,Finefair  Consultancy Ltd,Rents Payable,784,0,VENDOR
02-03-2022,Inclusive Economy & Housing,Finefair  Consultancy Ltd,Rents Payable,1720.04,0,VENDOR
02-03-2022,Inclusive Economy & Housing,Finefair  Consultancy Ltd,Rents Payable,1600.2,0,VENDOR
02-03-2022,Inclusive Economy & Housing,Finefair  Consultancy Ltd,Rents Payable,716.24,0,VENDOR
02-03-2022,Inclusive Economy & Housing,Finefair  Consultancy Ltd,Rents Payable,1624,0,VENDOR
02-03-2022,Inclusive Economy & Housing,Finefair  Consultancy Ltd,Rents Payable,1497.16,0,VENDOR
02-03-2022,Inclusive Economy & Housing,Finefair  Consultancy Ltd,Rents Payable,1280.16,0,VENDOR
02-03-2022,Inclusive Economy & Housing,Finefair  Consultancy Ltd,Rents Payable,1498,0,VENDOR
02-03-2022,Inclusive Economy & Housing,Finefair  Consultancy Ltd,Rents Payable,1540,0,VENDOR
02-03-2022,Inclusive Economy & Housing,Finefair  Consultancy Ltd,Rents Payable,952,0,VENDOR
02-03-2022,Inclusive Economy & Housing,Finefair  Consultancy Ltd,Rents Payable,1680,0,VENDOR
02-03-2022,Inclusive Economy & Housing,Finefair  Consultancy Ltd,Rents Payable,1008,0,VENDOR
02-03-2022,Inclusive Economy & Housing,Finefair  Consultancy Ltd,Rents Payable,1932,0,VENDOR
02-03-2022,Inclusive Economy & Housing,Nationwide Accommodation Services Limited,Rents Payable,994,0,COMMERCIAL SUPPLIER
02-03-2022,Inclusive Economy & Housing,Nationwide Accommodation Services Limited,Rents Payable,1008,0,COMMERCIAL SUPPLIER
02-03-2022,Inclusive Economy & Housing,Nationwide Accommodation Services Limited,Rents Payable,1008,0,COMMERCIAL SUPPLIER
02-03-2022,Inclusive Economy & Housing,Nationwide Accommodation Services Limited,Rents Payable,1540,0,COMMERCIAL SUPPLIER
02-03-2022,Inclusive Economy & Housing,Nationwide Accommodation Services Limited,Rents Payable,1344,0,COMMERCIAL SUPPLIER
02-03-2022,Inclusive Economy & Housing,Nationwide Accommodation Services Limited,Rents Payable,1330,0,COMMERCIAL SUPPLIER
02-03-2022,Inclusive Economy & Housing,Nationwide Accommodation Services Limited,Rents Payable,1330,0,COMMERCIAL SUPPLIER
02-03-2022,Inclusive Economy & Housing,Nationwide Accommodation Services Limited,Rents Payable,1280.16,0,COMMERCIAL SUPPLIER
02-03-2022,Inclusive Economy & Housing,Nationwide Accommodation Services Limited,Rents Payable,1764,0,COMMERCIAL SUPPLIER
02-03-2022,Inclusive Economy & Housing,Nationwide Accommodation Services Limited,Rents Payable,952,0,COMMERCIAL SUPPLIER
02-03-2022,Inclusive Economy & Housing,Nationwide Accommodation Services Limited,Rents Payable,1764,0,COMMERCIAL SUPPLIER
02-03-2022,Inclusive Economy & Housing,Nationwide Accommodation Services Limited,Rents Payable,1330,0,COMMERCIAL SUPPLIER
02-03-2022,Inclusive Economy & Housing,Nationwide Accommodation Services Limited,Rents Payable,1764,0,COMMERCIAL SUPPLIER
02-03-2022,Inclusive Economy & Housing,Nationwide Accommodation Services Limited,Rents Payable,1540,0,COMMERCIAL SUPPLIER
02-03-2022,Inclusive Economy & Housing,Nationwide Accommodation Services Limited,Rents Payable,1498,0,COMMERCIAL SUPPLIER
02-03-2022,Inclusive Economy & Housing,Nationwide Accommodation Services Limited,Rents Payable,1848,0,COMMERCIAL SUPPLIER
02-03-2022,Inclusive Economy & Housing,Nationwide Accommodation Services Limited,Rents Payable,1680,0,COMMERCIAL SUPPLIER
02-03-2022,Inclusive Economy & Housing,Nationwide Accommodation Services Limited,Rents Payable,110,0,COMMERCIAL SUPPLIER
02-03-2022,Inclusive Economy & Housing,Nationwide Accommodation Services Limited,Rents Payable,1540,0,COMMERCIAL SUPPLIER
02-03-2022,Inclusive Economy & Housing,Nationwide Accommodation Services Limited,Rents Payable,1848,0,COMMERCIAL SUPPLIER
02-03-2022,Inclusive Economy & Housing,Nationwide Accommodation Services Limited,Rents Payable,1330,0,COMMERCIAL SUPPLIER
02-03-2022,Inclusive Economy & Housing,Capital Homes Ltd,Rents Payable,-162,0,COMMERCIAL SUPPLIER
02-03-2022,Inclusive Economy & Housing,Arm Asset Management Ltd,Rents Payable,1400,0,COMMERCIAL SUPPLIER
02-03-2022,Inclusive Economy & Housing,Arm Asset Management Ltd,Rents Payable,1008,0,COMMERCIAL SUPPLIER
02-03-2022,Inclusive Economy & Housing,Arm Asset Management Ltd,Rents Payable,1330,0,COMMERCIAL SUPPLIER
02-03-2022,Inclusive Economy & Housing,Arm Asset Management Ltd,Rents Payable,1330,0,COMMERCIAL SUPPLIER
02-03-2022,Inclusive Economy & Housing,Arm Asset Management Ltd,Rents Payable,1330,0,COMMERCIAL SUPPLIER
02-03-2022,Inclusive Economy & Housing,BTC London Ltd,Rents Payable,1932,0,COMMERCIAL SUPPLIER
02-03-2022,Inclusive Economy & Housing,Prestige Guaranteed Rentals,Rents Payable,1428,0,COMMERCIAL SUPPLIER
02-03-2022,Inclusive Economy & Housing,Prestige Guaranteed Rentals,Rents Payable,1120,0,COMMERCIAL SUPPLIER
02-03-2022,Inclusive Economy & Housing,Prestige Guaranteed Rentals,Rents Payable,1358,0,COMMERCIAL SUPPLIER
02-03-2022,Inclusive Economy & Housing,Nationwide Accommodation Services Limited,Rents Payable,1764,0,COMMERCIAL SUPPLIER
02-03-2022,Inclusive Economy & Housing,Nationwide Accommodation Services Limited,Rents Payable,1764,0,COMMERCIAL SUPPLIER
02-03-2022,Inclusive Economy & Housing,Nationwide Accommodation Services Limited,Rents Payable,1764,0,COMMERCIAL SUPPLIER
02-03-2022,Inclusive Economy & Housing,Nationwide Accommodation Services Limited,Rents Payable,1680,0,COMMERCIAL SUPPLIER
02-03-2022,Inclusive Economy & Housing,Nationwide Accommodation Services Limited,Rents Payable,1540,0,COMMERCIAL SUPPLIER
02-03-2022,Inclusive Economy & Housing,Nationwide Accommodation Services Limited,Rents Payable,1540,0,COMMERCIAL SUPPLIER
02-03-2022,Inclusive Economy & Housing,Nationwide Accommodation Services Limited,Rents Payable,1500.24,0,COMMERCIAL SUPPLIER
02-03-2022,Inclusive Economy & Housing,Nationwide Accommodation Services Limited,Rents Payable,1280.16,0,COMMERCIAL SUPPLIER
02-03-2022,Inclusive Economy & Housing,Nationwide Accommodation Services Limited,Rents Payable,1540,0,COMMERCIAL SUPPLIER
02-03-2022,Inclusive Economy & Housing,Nationwide Accommodation Services Limited,Rents Payable,952,0,COMMERCIAL SUPPLIER
02-03-2022,Inclusive Economy & Housing,Nationwide Accommodation Services Limited,Rents Payable,715,0,COMMERCIAL SUPPLIER
02-03-2022,Inclusive Economy & Housing,Nationwide Accommodation Services Limited,Rents Payable,1148,0,COMMERCIAL SUPPLIER
02-03-2022,Inclusive Economy & Housing,Nationwide Accommodation Services Limited,Rents Payable,1720.04,0,COMMERCIAL SUPPLIER
02-03-2022,Inclusive Economy & Housing,Nationwide Accommodation Services Limited,Rents Payable,1330,0,COMMERCIAL SUPPLIER
02-03-2022,Inclusive Economy & Housing,Nationwide Accommodation Services Limited,Rents Payable,1680,0,COMMERCIAL SUPPLIER
02-03-2022,Inclusive Economy & Housing,Nationwide Accommodation Services Limited,Rents Payable,1680,0,COMMERCIAL SUPPLIER
02-03-2022,Inclusive Economy & Housing,Nationwide Accommodation Services Limited,Rents Payable,1400,0,COMMERCIAL SUPPLIER
02-03-2022,Inclusive Economy & Housing,Nationwide Accommodation Services Limited,Rents Payable,1680,0,COMMERCIAL SUPPLIER
02-03-2022,Inclusive Economy & Housing,Nationwide Accommodation Services Limited,Rents Payable,1680,0,COMMERCIAL SUPPLIER
02-03-2022,Inclusive Economy & Housing,Nationwide Accommodation Services Limited,Rents Payable,1540,0,COMMERCIAL SUPPLIER
02-03-2022,Inclusive Economy & Housing,Nationwide Accommodation Services Limited,Rents Payable,1680,0,COMMERCIAL SUPPLIER
02-03-2022,Inclusive Economy & Housing,Nationwide Accommodation Services Limited,Rents Payable,756,0,COMMERCIAL SUPPLIER
02-03-2022,Inclusive Economy & Housing,Nationwide Accommodation Services Limited,Rents Payable,1500.24,0,COMMERCIAL SUPPLIER
02-03-2022,Inclusive Economy & Housing,Nationwide Accommodation Services Limited,Rents Payable,1540,0,COMMERCIAL SUPPLIER
02-03-2022,Inclusive Economy & Housing,Nationwide Accommodation Services Limited,Rents Payable,1568,0,COMMERCIAL SUPPLIER
02-03-2022,Inclusive Economy & Housing,Nationwide Accommodation Services Limited,Rents Payable,1330,0,COMMERCIAL SUPPLIER
02-03-2022,Inclusive Economy & Housing,Nationwide Accommodation Services Limited,Rents Payable,1280.16,0,COMMERCIAL SUPPLIER
02-03-2022,Inclusive Economy & Housing,Nationwide Accommodation Services Limited,Rents Payable,1428,0,COMMERCIAL SUPPLIER
02-03-2022,Inclusive Economy & Housing,Nationwide Accommodation Services Limited,Rents Payable,1148,0,COMMERCIAL SUPPLIER
02-03-2022,Inclusive Economy & Housing,Nationwide Accommodation Services Limited,Rents Payable,1148,0,COMMERCIAL SUPPLIER
02-03-2022,Inclusive Economy & Housing,Nationwide Accommodation Services Limited,Rents Payable,1680,0,COMMERCIAL SUPPLIER
02-03-2022,Inclusive Economy & Housing,Nationwide Accommodation Services Limited,Rents Payable,1428,0,COMMERCIAL SUPPLIER
02-03-2022,Inclusive Economy & Housing,Nationwide Accommodation Services Limited,Rents Payable,1330,0,COMMERCIAL SUPPLIER
02-03-2022,Inclusive Economy & Housing,Nationwide Accommodation Services Limited,Rents Payable,448,0,COMMERCIAL SUPPLIER
02-03-2022,Inclusive Economy & Housing,Nationwide Accommodation Services Limited,Rents Payable,1540,0,COMMERCIAL SUPPLIER
02-03-2022,Inclusive Economy & Housing,Nationwide Accommodation Services Limited,Rents Payable,1330,0,COMMERCIAL SUPPLIER
02-03-2022,Inclusive Economy & Housing,Nationwide Accommodation Services Limited,Rents Payable,1540,0,COMMERCIAL SUPPLIER
02-03-2022,Inclusive Economy & Housing,Nationwide Accommodation Services Limited,Rents Payable,1330,0,COMMERCIAL SUPPLIER
02-03-2022,Inclusive Economy & Housing,Nationwide Accommodation Services Limited,Rents Payable,1848,0,COMMERCIAL SUPPLIER
02-03-2022,Inclusive Economy & Housing,Nationwide Accommodation Services Limited,Rents Payable,1540,0,COMMERCIAL SUPPLIER
02-03-2022,Inclusive Economy & Housing,Nationwide Accommodation Services Limited,Rents Payable,924,0,COMMERCIAL SUPPLIER
02-03-2022,Inclusive Economy & Housing,Nationwide Accommodation Services Limited,Rents Payable,1540,0,COMMERCIAL SUPPLIER
02-03-2022,Inclusive Economy & Housing,Nationwide Accommodation Services Limited,Rents Payable,1330,0,COMMERCIAL SUPPLIER
02-03-2022,Inclusive Economy & Housing,Nationwide Accommodation Services Limited,Rents Payable,1680,0,COMMERCIAL SUPPLIER
02-03-2022,Inclusive Economy & Housing,Nationwide Accommodation Services Limited,Rents Payable,994,0,COMMERCIAL SUPPLIER
02-03-2022,Inclusive Economy & Housing,Nationwide Accommodation Services Limited,Rents Payable,1400,0,COMMERCIAL SUPPLIER
02-03-2022,Inclusive Economy & Housing,Nationwide Accommodation Services Limited,Rents Payable,924,0,COMMERCIAL SUPPLIER
02-03-2022,Inclusive Economy & Housing,Nationwide Accommodation Services Limited,Rents Payable,1764,0,COMMERCIAL SUPPLIER
02-03-2022,Inclusive Economy & Housing,Nationwide Accommodation Services Limited,Rents Payable,924,0,COMMERCIAL SUPPLIER
02-03-2022,Inclusive Economy & Housing,Nationwide Accommodation Services Limited,Rents Payable,924,0,COMMERCIAL SUPPLIER
02-03-2022,Inclusive Economy & Housing,Nationwide Accommodation Services Limited,Rents Payable,980,0,COMMERCIAL SUPPLIER
02-03-2022,Inclusive Economy & Housing,Nationwide Accommodation Services Limited,Rents Payable,1540,0,COMMERCIAL SUPPLIER
02-03-2022,Inclusive Economy & Housing,Nationwide Accommodation Services Limited,Rents Payable,1148,0,COMMERCIAL SUPPLIER
02-03-2022,Inclusive Economy & Housing,Nationwide Accommodation Services Limited,Rents Payable,55,0,COMMERCIAL SUPPLIER
02-03-2022,Inclusive Economy & Housing,Nationwide Accommodation Services Limited,Rents Payable,1540,0,COMMERCIAL SUPPLIER
02-03-2022,Inclusive Economy & Housing,Nationwide Accommodation Services Limited,Rents Payable,1540,0,COMMERCIAL SUPPLIER
02-03-2022,Inclusive Economy & Housing,Nationwide Accommodation Services Limited,Rents Payable,1500.24,0,COMMERCIAL SUPPLIER
02-03-2022,Inclusive Economy & Housing,Nationwide Accommodation Services Limited,Rents Payable,1330,0,COMMERCIAL SUPPLIER
02-03-2022,Inclusive Economy & Housing,Nationwide Accommodation Services Limited,Rents Payable,1540,0,COMMERCIAL SUPPLIER
02-03-2022,Inclusive Economy & Housing,Nationwide Accommodation Services Limited,Rents Payable,1680,0,COMMERCIAL SUPPLIER
02-03-2022,Inclusive Economy & Housing,Nationwide Accommodation Services Limited,Rents Payable,952,0,COMMERCIAL SUPPLIER
02-03-2022,Inclusive Economy & Housing,Nationwide Accommodation Services Limited,Rents Payable,1680,0,COMMERCIAL SUPPLIER
02-03-2022,Inclusive Economy & Housing,Nationwide Accommodation Services Limited,Rents Payable,1428,0,COMMERCIAL SUPPLIER
02-03-2022,Inclusive Economy & Housing,Nationwide Accommodation Services Limited,Rents Payable,1400,0,COMMERCIAL SUPPLIER
02-03-2022,Inclusive Economy & Housing,Nationwide Accommodation Services Limited,Rents Payable,1540,0,COMMERCIAL SUPPLIER
02-03-2022,Inclusive Economy & Housing,Nationwide Accommodation Services Limited,Rents Payable,1540,0,COMMERCIAL SUPPLIER
02-03-2022,Inclusive Economy & Housing,Nationwide Accommodation Services Limited,Rents Payable,1680,0,COMMERCIAL SUPPLIER
02-03-2022,Inclusive Economy & Housing,Nationwide Accommodation Services Limited,Rents Payable,1280.16,0,COMMERCIAL SUPPLIER
02-03-2022,Inclusive Economy & Housing,Nationwide Accommodation Services Limited,Rents Payable,924,0,COMMERCIAL SUPPLIER
02-03-2022,Inclusive Economy & Housing,Nationwide Accommodation Services Limited,Rents Payable,1330,0,COMMERCIAL SUPPLIER
02-03-2022,Inclusive Economy & Housing,Nationwide Accommodation Services Limited,Rents Payable,1764,0,COMMERCIAL SUPPLIER
02-03-2022,Inclusive Economy & Housing,Nationwide Accommodation Services Limited,Rents Payable,784,0,COMMERCIAL SUPPLIER
02-03-2022,Inclusive Economy & Housing,Nationwide Accommodation Services Limited,Rents Payable,1764,0,COMMERCIAL SUPPLIER
02-03-2022,Inclusive Economy & Housing,Nationwide Accommodation Services Limited,Rents Payable,1596,0,COMMERCIAL SUPPLIER
02-03-2022,Inclusive Economy & Housing,Nationwide Accommodation Services Limited,Rents Payable,1680,0,COMMERCIAL SUPPLIER
02-03-2022,Inclusive Economy & Housing,Nationwide Accommodation Services Limited,Rents Payable,1540,0,COMMERCIAL SUPPLIER
02-03-2022,Inclusive Economy & Housing,Nationwide Accommodation Services Limited,Rents Payable,1848,0,COMMERCIAL SUPPLIER
02-03-2022,Inclusive Economy & Housing,Nationwide Accommodation Services Limited,Rents Payable,1680,0,COMMERCIAL SUPPLIER
02-03-2022,Inclusive Economy & Housing,Nationwide Accommodation Services Limited,Rents Payable,1764,0,COMMERCIAL SUPPLIER
02-03-2022,Inclusive Economy & Housing,Nationwide Accommodation Services Limited,Rents Payable,1540,0,COMMERCIAL SUPPLIER
02-03-2022,Inclusive Economy & Housing,Nationwide Accommodation Services Limited,Rents Payable,1764,0,COMMERCIAL SUPPLIER
02-03-2022,Inclusive Economy & Housing,Nationwide Accommodation Services Limited,Rents Payable,1330,0,COMMERCIAL SUPPLIER
02-03-2022,Inclusive Economy & Housing,Nationwide Accommodation Services Limited,Rents Payable,1540,0,COMMERCIAL SUPPLIER
02-03-2022,Inclusive Economy & Housing,Nationwide Accommodation Services Limited,Rents Payable,1330,0,COMMERCIAL SUPPLIER
02-03-2022,Inclusive Economy & Housing,Nationwide Accommodation Services Limited,Rents Payable,1330,0,COMMERCIAL SUPPLIER
02-03-2022,Inclusive Economy & Housing,Nationwide Accommodation Services Limited,Rents Payable,1500.24,0,COMMERCIAL SUPPLIER
02-03-2022,Inclusive Economy & Housing,Nationwide Accommodation Services Limited,Rents Payable,1330,0,COMMERCIAL SUPPLIER
02-03-2022,Inclusive Economy & Housing,Nationwide Accommodation Services Limited,Rents Payable,1680,0,COMMERCIAL SUPPLIER
02-03-2022,Inclusive Economy & Housing,Nationwide Accommodation Services Limited,Rents Payable,1330,0,COMMERCIAL SUPPLIER
02-03-2022,Inclusive Economy & Housing,Nationwide Accommodation Services Limited,Rents Payable,1280.16,0,COMMERCIAL SUPPLIER
02-03-2022,Inclusive Economy & Housing,Nationwide Accommodation Services Limited,Rents Payable,1008,0,COMMERCIAL SUPPLIER
02-03-2022,Inclusive Economy & Housing,Nationwide Accommodation Services Limited,Rents Payable,1330,0,COMMERCIAL SUPPLIER
02-03-2022,Inclusive Economy & Housing,Nationwide Accommodation Services Limited,Rents Payable,1680,0,COMMERCIAL SUPPLIER
02-03-2022,Inclusive Economy & Housing,Nationwide Accommodation Services Limited,Rents Payable,550,0,COMMERCIAL SUPPLIER
02-03-2022,Inclusive Economy & Housing,Nationwide Accommodation Services Limited,Rents Payable,1428,0,COMMERCIAL SUPPLIER
02-03-2022,Inclusive Economy & Housing,Nationwide Accommodation Services Limited,Rents Payable,1540,0,COMMERCIAL SUPPLIER
02-03-2022,Inclusive Economy & Housing,Nationwide Accommodation Services Limited,Rents Payable,1540,0,COMMERCIAL SUPPLIER
02-03-2022,Inclusive Economy & Housing,Bystone Ltd,Rents Payable,1330,0,COMMERCIAL SUPPLIER
02-03-2022,Inclusive Economy & Housing,Bystone Ltd,Rents Payable,1680,0,COMMERCIAL SUPPLIER
02-03-2022,Inclusive Economy & Housing,Bystone Ltd,Rents Payable,1764,0,COMMERCIAL SUPPLIER
02-03-2022,Inclusive Economy & Housing,Bystone Ltd,Rents Payable,1764,0,COMMERCIAL SUPPLIER
02-03-2022,Inclusive Economy & Housing,Bystone Ltd,Rents Payable,1500.24,0,COMMERCIAL SUPPLIER
02-03-2022,Inclusive Economy & Housing,Bystone Ltd,Rents Payable,1680,0,COMMERCIAL SUPPLIER
02-03-2022,Inclusive Economy & Housing,Bystone Ltd,Rents Payable,1680,0,COMMERCIAL SUPPLIER
02-03-2022,Inclusive Economy & Housing,Bystone Ltd,Rents Payable,1764,0,COMMERCIAL SUPPLIER
02-03-2022,Inclusive Economy & Housing,Bystone Ltd,Rents Payable,1330,0,COMMERCIAL SUPPLIER
02-03-2022,Inclusive Economy & Housing,Bystone Ltd,Rents Payable,1680,0,COMMERCIAL SUPPLIER
02-03-2022,Inclusive Economy & Housing,Bystone Ltd,Rents Payable,1280.16,0,COMMERCIAL SUPPLIER
02-03-2022,Inclusive Economy & Housing,Bystone Ltd,Rents Payable,1330,0,COMMERCIAL SUPPLIER
02-03-2022,Inclusive Economy & Housing,Bystone Ltd,Rents Payable,1764,0,COMMERCIAL SUPPLIER
02-03-2022,Inclusive Economy & Housing,Bystone Ltd,Rents Payable,1540,0,COMMERCIAL SUPPLIER
02-03-2022,Inclusive Economy & Housing,Bystone Ltd,Rents Payable,1764,0,COMMERCIAL SUPPLIER
02-03-2022,Inclusive Economy & Housing,Bystone Ltd,Rents Payable,1008,0,COMMERCIAL SUPPLIER
02-03-2022,Inclusive Economy & Housing,Bystone Ltd,Rents Payable,1540,0,COMMERCIAL SUPPLIER
02-03-2022,Inclusive Economy & Housing,Bystone Ltd,Rents Payable,1680,0,COMMERCIAL SUPPLIER
02-03-2022,Inclusive Economy & Housing,Bystone Ltd,Rents Payable,1764,0,COMMERCIAL SUPPLIER
02-03-2022,Inclusive Economy & Housing,Bystone Ltd,Rents Payable,1500.24,0,COMMERCIAL SUPPLIER
02-03-2022,Inclusive Economy & Housing,Bystone Ltd,Rents Payable,1540,0,COMMERCIAL SUPPLIER
02-03-2022,Inclusive Economy & Housing,Nationwide Accommodation Services Limited,Rents Payable,1680,0,COMMERCIAL SUPPLIER
02-03-2022,Inclusive Economy & Housing,Nationwide Accommodation Services Limited,Rents Payable,1260,0,COMMERCIAL SUPPLIER
02-03-2022,Inclusive Economy & Housing,Nationwide Accommodation Services Limited,Rents Payable,1680,0,COMMERCIAL SUPPLIER
02-03-2022,Inclusive Economy & Housing,Nationwide Accommodation Services Limited,Rents Payable,1260,0,COMMERCIAL SUPPLIER
02-03-2022,Inclusive Economy & Housing,Nationwide Accommodation Services Limited,Rents Payable,1596,0,COMMERCIAL SUPPLIER
02-03-2022,Inclusive Economy & Housing,Nationwide Accommodation Services Limited,Rents Payable,1680,0,COMMERCIAL SUPPLIER
02-03-2022,Inclusive Economy & Housing,Nationwide Accommodation Services Limited,Rents Payable,1330,0,COMMERCIAL SUPPLIER
02-03-2022,Inclusive Economy & Housing,Nationwide Accommodation Services Limited,Rents Payable,1330,0,COMMERCIAL SUPPLIER
02-03-2022,Inclusive Economy & Housing,Nationwide Accommodation Services Limited,Rents Payable,1680,0,COMMERCIAL SUPPLIER
02-03-2022,Inclusive Economy & Housing,Nationwide Accommodation Services Limited,Rents Payable,1680,0,COMMERCIAL SUPPLIER
02-03-2022,Inclusive Economy & Housing,Nationwide Accommodation Services Limited,Rents Payable,1176,0,COMMERCIAL SUPPLIER
02-03-2022,Inclusive Economy & Housing,Nationwide Accommodation Services Limited,Rents Payable,1280.16,0,COMMERCIAL SUPPLIER
02-03-2022,Inclusive Economy & Housing,Nationwide Accommodation Services Limited,Rents Payable,1540,0,COMMERCIAL SUPPLIER
02-03-2022,Inclusive Economy & Housing,Nationwide Accommodation Services Limited,Rents Payable,1330,0,COMMERCIAL SUPPLIER
02-03-2022,Inclusive Economy & Housing,Nationwide Accommodation Services Limited,Rents Payable,1330,0,COMMERCIAL SUPPLIER
02-03-2022,Inclusive Economy & Housing,Nationwide Accommodation Services Limited,Rents Payable,1280.16,0,COMMERCIAL SUPPLIER
02-03-2022,Inclusive Economy & Housing,Nationwide Accommodation Services Limited,Rents Payable,1280.16,0,COMMERCIAL SUPPLIER
02-03-2022,Inclusive Economy & Housing,Nationwide Accommodation Services Limited,Rents Payable,1344,0,COMMERCIAL SUPPLIER
02-03-2022,Inclusive Economy & Housing,Nationwide Accommodation Services Limited,Rents Payable,1540,0,COMMERCIAL SUPPLIER
02-03-2022,Inclusive Economy & Housing,Nationwide Accommodation Services Limited,Rents Payable,1540,0,COMMERCIAL SUPPLIER
02-03-2022,Inclusive Economy & Housing,Nationwide Accommodation Services Limited,Rents Payable,1540,0,COMMERCIAL SUPPLIER
02-03-2022,Inclusive Economy & Housing,Nationwide Accommodation Services Limited,Rents Payable,1330,0,COMMERCIAL SUPPLIER
02-03-2022,Inclusive Economy & Housing,Nationwide Accommodation Services Limited,Rents Payable,1540,0,COMMERCIAL SUPPLIER
02-03-2022,Inclusive Economy & Housing,Nationwide Accommodation Services Limited,Rents Payable,1540,0,COMMERCIAL SUPPLIER
02-03-2022,Inclusive Economy & Housing,Nationwide Accommodation Services Limited,Rents Payable,1498,0,COMMERCIAL SUPPLIER
02-03-2022,Inclusive Economy & Housing,Nationwide Accommodation Services Limited,Rents Payable,1540,0,COMMERCIAL SUPPLIER
02-03-2022,Inclusive Economy & Housing,Nationwide Accommodation Services Limited,Rents Payable,1500.24,0,COMMERCIAL SUPPLIER
02-03-2022,Inclusive Economy & Housing,Nationwide Accommodation Services Limited,Rents Payable,1540,0,COMMERCIAL SUPPLIER
02-03-2022,Inclusive Economy & Housing,Nationwide Accommodation Services Limited,Rents Payable,1008,0,COMMERCIAL SUPPLIER
02-03-2022,Inclusive Economy & Housing,Nationwide Accommodation Services Limited,Rents Payable,1540,0,COMMERCIAL SUPPLIER
02-03-2022,Inclusive Economy & Housing,Nationwide Accommodation Services Limited,Rents Payable,1540,0,COMMERCIAL SUPPLIER
02-03-2022,Inclusive Economy & Housing,Nationwide Accommodation Services Limited,Rents Payable,1680,0,COMMERCIAL SUPPLIER
02-03-2022,Inclusive Economy & Housing,Nationwide Accommodation Services Limited,Rents Payable,952,0,COMMERCIAL SUPPLIER
02-03-2022,Inclusive Economy & Housing,Nationwide Accommodation Services Limited,Rents Payable,1008,0,COMMERCIAL SUPPLIER
02-03-2022,Inclusive Economy & Housing,Nationwide Accommodation Services Limited,Rents Payable,1008,0,COMMERCIAL SUPPLIER
02-03-2022,Inclusive Economy & Housing,Nationwide Accommodation Services Limited,Rents Payable,1500.24,0,COMMERCIAL SUPPLIER
02-03-2022,Inclusive Economy & Housing,Nationwide Accommodation Services Limited,Rents Payable,1680,0,COMMERCIAL SUPPLIER
02-03-2022,Inclusive Economy & Housing,Nationwide Accommodation Services Limited,Rents Payable,1500.24,0,COMMERCIAL SUPPLIER
02-03-2022,Inclusive Economy & Housing,Nationwide Accommodation Services Limited,Rents Payable,1540,0,COMMERCIAL SUPPLIER
02-03-2022,Inclusive Economy & Housing,Nationwide Accommodation Services Limited,Rents Payable,1540,0,COMMERCIAL SUPPLIER
02-03-2022,Inclusive Economy & Housing,Nationwide Accommodation Services Limited,Rents Payable,1540,0,COMMERCIAL SUPPLIER
02-03-2022,Inclusive Economy & Housing,Nationwide Accommodation Services Limited,Rents Payable,1344,0,COMMERCIAL SUPPLIER
02-03-2022,Inclusive Economy & Housing,Nationwide Accommodation Services Limited,Rents Payable,1330,0,COMMERCIAL SUPPLIER
02-03-2022,Inclusive Economy & Housing,South East Residentials,Rents Payable,1274,0,NON COMMERCIAL SUPPLIER
02-03-2022,Inclusive Economy & Housing,South East Residentials,Rents Payable,1680,0,NON COMMERCIAL SUPPLIER
02-03-2022,Inclusive Economy & Housing,Southgate Property Management Ltd,Rents Payable,784,0,COMMERCIAL SUPPLIER
02-03-2022,Inclusive Economy & Housing,Southgate Property Management Ltd,Rents Payable,1280.16,0,COMMERCIAL SUPPLIER
02-03-2022,Inclusive Economy & Housing,Southgate Property Management Ltd,Rents Payable,784,0,COMMERCIAL SUPPLIER
02-03-2022,Inclusive Economy & Housing,Southgate Property Management Ltd,Rents Payable,1344,0,COMMERCIAL SUPPLIER
02-03-2022,Inclusive Economy & Housing,Southgate Property Management Ltd,Rents Payable,784,0,COMMERCIAL SUPPLIER
02-03-2022,Inclusive Economy & Housing,Southgate Property Management Ltd,Rents Payable,1148,0,COMMERCIAL SUPPLIER
02-03-2022,Inclusive Economy & Housing,Southgate Property Management Ltd,Rents Payable,784,0,COMMERCIAL SUPPLIER
02-03-2022,Inclusive Economy & Housing,Southgate Property Management Ltd,Rents Payable,1176,0,COMMERCIAL SUPPLIER
02-03-2022,Inclusive Economy & Housing,Southgate Property Management Ltd,Rents Payable,784,0,COMMERCIAL SUPPLIER
02-03-2022,Inclusive Economy & Housing,Southgate Property Management Ltd,Rents Payable,1280.16,0,COMMERCIAL SUPPLIER
02-03-2022,Inclusive Economy & Housing,Southgate Property Management Ltd,Rents Payable,784,0,COMMERCIAL SUPPLIER
02-03-2022,Inclusive Economy & Housing,Southgate Property Management Ltd,Rents Payable,1428,0,COMMERCIAL SUPPLIER
02-03-2022,Inclusive Economy & Housing,Crystal Estates Ltd,Rents Payable,1456,0,COMMERCIAL SUPPLIER
02-03-2022,Inclusive Economy & Housing,Crystal Estates Ltd,Rents Payable,1820,0,COMMERCIAL SUPPLIER
02-03-2022,Inclusive Economy & Housing,Crystal Estates Ltd,Rents Payable,1708,0,COMMERCIAL SUPPLIER
02-03-2022,Inclusive Economy & Housing,Crystal Estates Ltd,Rents Payable,1876,0,COMMERCIAL SUPPLIER
02-03-2022,Inclusive Economy & Housing,Crystal Estates Ltd,Rents Payable,1960,0,COMMERCIAL SUPPLIER
02-03-2022,Inclusive Economy & Housing,Crystal Estates Ltd,Rents Payable,1512,0,COMMERCIAL SUPPLIER
02-03-2022,Inclusive Economy & Housing,Crystal Estates Ltd,Rents Payable,1904,0,COMMERCIAL SUPPLIER
02-03-2022,Inclusive Economy & Housing,Nationwide Accommodation Services Limited,Rents Payable,1540,0,COMMERCIAL SUPPLIER
02-03-2022,Inclusive Economy & Housing,Nationwide Accommodation Services Limited,Rents Payable,-60,0,COMMERCIAL SUPPLIER
02-03-2022,Inclusive Economy & Housing,Nationwide Accommodation Services Limited,Rents Payable,825,0,COMMERCIAL SUPPLIER
02-03-2022,Inclusive Economy & Housing,Nationwide Accommodation Services Limited,Rents Payable,-903,0,COMMERCIAL SUPPLIER
02-03-2022,Inclusive Economy & Housing,Nationwide Accommodation Services Limited,Rents Payable,-1333,0,COMMERCIAL SUPPLIER
02-03-2022,Inclusive Economy & Housing,Nationwide Accommodation Services Limited,Rents Payable,-1290,0,COMMERCIAL SUPPLIER
02-03-2022,Inclusive Economy & Housing,Nationwide Accommodation Services Limited,Rents Payable,-1333,0,COMMERCIAL SUPPLIER
02-03-2022,Inclusive Economy & Housing,Nationwide Accommodation Services Limited,Rents Payable,-1333,0,COMMERCIAL SUPPLIER
02-03-2022,Inclusive Economy & Housing,House 71 Ltd,Rents Payable,1330,0,COMMERCIAL SUPPLIER
02-03-2022,Inclusive Economy & Housing,House 71 Ltd,Rents Payable,1120,0,COMMERCIAL SUPPLIER
02-03-2022,Inclusive Economy & Housing,House 71 Ltd,Rents Payable,1400,0,COMMERCIAL SUPPLIER
02-03-2022,Inclusive Economy & Housing,House 71 Ltd,Rents Payable,924,0,COMMERCIAL SUPPLIER
02-03-2022,Inclusive Economy & Housing,Jacobs London Ltd,Rents Payable,1680,0,COMMERCIAL SUPPLIER
02-03-2022,Inclusive Economy & Housing,Jacobs London Ltd,Rents Payable,1330,0,COMMERCIAL SUPPLIER
02-03-2022,Inclusive Economy & Housing,Jacobs London Ltd,Rents Payable,1680,0,COMMERCIAL SUPPLIER
02-03-2022,Inclusive Economy & Housing,Jacobs London Ltd,Rents Payable,1540,0,COMMERCIAL SUPPLIER
02-03-2022,Inclusive Economy & Housing,Jacobs London Ltd,Rents Payable,1176,0,COMMERCIAL SUPPLIER
02-03-2022,Inclusive Economy & Housing,Jacobs London Ltd,Rents Payable,1064,0,COMMERCIAL SUPPLIER
02-03-2022,Inclusive Economy & Housing,Jacobs London Ltd,Rents Payable,1330,0,COMMERCIAL SUPPLIER
02-03-2022,Inclusive Economy & Housing,Jacobs London Ltd,Rents Payable,1330,0,COMMERCIAL SUPPLIER
02-03-2022,Inclusive Economy & Housing,Jacobs London Ltd,Rents Payable,1500.24,0,COMMERCIAL SUPPLIER
02-03-2022,Inclusive Economy & Housing,Jacobs London Ltd,Rents Payable,1330,0,COMMERCIAL SUPPLIER
02-03-2022,Inclusive Economy & Housing,Jacobs London Ltd,Rents Payable,513.5,0,COMMERCIAL SUPPLIER
02-03-2022,Inclusive Economy & Housing,Jacobs London Ltd,Rents Payable,1680,0,COMMERCIAL SUPPLIER
02-03-2022,Inclusive Economy & Housing,Jacobs London Ltd,Rents Payable,1316,0,COMMERCIAL SUPPLIER
02-03-2022,Inclusive Economy & Housing,Jacobs London Ltd,Rents Payable,1330,0,COMMERCIAL SUPPLIER
02-03-2022,Inclusive Economy & Housing,Jacobs London Ltd,Rents Payable,1540,0,COMMERCIAL SUPPLIER
02-03-2022,Inclusive Economy & Housing,Jacobs London Ltd,Rents Payable,1330,0,COMMERCIAL SUPPLIER
02-03-2022,Inclusive Economy & Housing,Jacobs London Ltd,Rents Payable,1680,0,COMMERCIAL SUPPLIER
02-03-2022,Inclusive Economy & Housing,Jacobs London Ltd,Rents Payable,1540,0,COMMERCIAL SUPPLIER
02-03-2022,Inclusive Economy & Housing,Jacobs London Ltd,Rents Payable,1540,0,COMMERCIAL SUPPLIER
02-03-2022,Inclusive Economy & Housing,Jacobs London Ltd,Rents Payable,1400,0,COMMERCIAL SUPPLIER
02-03-2022,Inclusive Economy & Housing,Jacobs London Ltd,Rents Payable,1540,0,COMMERCIAL SUPPLIER
02-03-2022,Inclusive Economy & Housing,Jacobs London Ltd,Rents Payable,1120,0,COMMERCIAL SUPPLIER
02-03-2022,Inclusive Economy & Housing,Jacobs London Ltd,Rents Payable,1540,0,COMMERCIAL SUPPLIER
02-03-2022,Inclusive Economy & Housing,Jacobs London Ltd,Rents Payable,1540,0,COMMERCIAL SUPPLIER
02-03-2022,Inclusive Economy & Housing,Jacobs London Ltd,Rents Payable,1330,0,COMMERCIAL SUPPLIER
02-03-2022,Inclusive Economy & Housing,Jacobs London Ltd,Rents Payable,1008,0,COMMERCIAL SUPPLIER
02-03-2022,Inclusive Economy & Housing,Jacobs London Ltd,Rents Payable,1008,0,COMMERCIAL SUPPLIER
02-03-2022,Inclusive Economy & Housing,Jacobs London Ltd,Rents Payable,1064,0,COMMERCIAL SUPPLIER
02-03-2022,Inclusive Economy & Housing,Jacobs London Ltd,Rents Payable,1120,0,COMMERCIAL SUPPLIER
02-03-2022,Inclusive Economy & Housing,Bystone Ltd,Rents Payable,1330,0,COMMERCIAL SUPPLIER
02-03-2022,Inclusive Economy & Housing,Bystone Ltd,Rents Payable,1260,0,COMMERCIAL SUPPLIER
02-03-2022,Inclusive Economy & Housing,Sai Estates MGMT Ltd,Rents Payable,1600.2,0,NON COMMERCIAL SUPPLIER
02-03-2022,Inclusive Economy & Housing,Sai Estates MGMT Ltd,Rents Payable,1280.16,0,NON COMMERCIAL SUPPLIER
02-03-2022,Inclusive Economy & Housing,Sai Estates MGMT Ltd,Rents Payable,1008,0,NON COMMERCIAL SUPPLIER
02-03-2022,Inclusive Economy & Housing,Sai Estates MGMT Ltd,Rents Payable,1500.24,0,NON COMMERCIAL SUPPLIER
02-03-2022,Inclusive Economy & Housing,Sai Estates MGMT Ltd,Rents Payable,1260,0,NON COMMERCIAL SUPPLIER
02-03-2022,Inclusive Economy & Housing,Sai Estates MGMT Ltd,Rents Payable,1540,0,NON COMMERCIAL SUPPLIER
02-03-2022,Inclusive Economy & Housing,Sai Estates MGMT Ltd,Rents Payable,1064,0,NON COMMERCIAL SUPPLIER
02-03-2022,Inclusive Economy & Housing,Sai Estates MGMT Ltd,Rents Payable,480,0,NON COMMERCIAL SUPPLIER
02-03-2022,Inclusive Economy & Housing,Sai Estates MGMT Ltd,Rents Payable,1680,0,NON COMMERCIAL SUPPLIER
02-03-2022,Inclusive Economy & Housing,Sai Estates MGMT Ltd,Rents Payable,1540,0,NON COMMERCIAL SUPPLIER
02-03-2022,Inclusive Economy & Housing,Sai Estates MGMT Ltd,Rents Payable,1680,0,NON COMMERCIAL SUPPLIER
02-03-2022,Inclusive Economy & Housing,Sai Estates MGMT Ltd,Rents Payable,1540,0,NON COMMERCIAL SUPPLIER
02-03-2022,Inclusive Economy & Housing,Maier Laing Limited t/a Highcastle Estates,Rents Payable,1848,0,COMMERCIAL SUPPLIER
02-03-2022,Inclusive Economy & Housing,Maier Laing Limited t/a Highcastle Estates,Rents Payable,1764,0,COMMERCIAL SUPPLIER
02-03-2022,Inclusive Economy & Housing,Maier Laing Limited t/a Highcastle Estates,Rents Payable,1540,0,COMMERCIAL SUPPLIER
02-03-2022,Inclusive Economy & Housing,Maier Laing Limited t/a Highcastle Estates,Rents Payable,1280.16,0,COMMERCIAL SUPPLIER
02-03-2022,Inclusive Economy & Housing,Maier Laing Limited t/a Highcastle Estates,Rents Payable,1330,0,COMMERCIAL SUPPLIER
02-03-2022,Inclusive Economy & Housing,Maier Laing Limited t/a Highcastle Estates,Rents Payable,1540,0,COMMERCIAL SUPPLIER
02-03-2022,Inclusive Economy & Housing,Maier Laing Limited t/a Highcastle Estates,Rents Payable,1330,0,COMMERCIAL SUPPLIER
02-03-2022,Inclusive Economy & Housing,Maier Laing Limited t/a Highcastle Estates,Rents Payable,1117.2,0,COMMERCIAL SUPPLIER
02-03-2022,Inclusive Economy & Housing,Maier Laing Limited t/a Highcastle Estates,Rents Payable,1600.2,0,COMMERCIAL SUPPLIER
02-03-2022,Inclusive Economy & Housing,Bystone Ltd,Rents Payable,1680,0,COMMERCIAL SUPPLIER
02-03-2022,Inclusive Economy & Housing,Bystone Ltd,Rents Payable,1680,0,COMMERCIAL SUPPLIER
02-03-2022,Inclusive Economy & Housing,Bystone Ltd,Rents Payable,1600.2,0,COMMERCIAL SUPPLIER
02-03-2022,Inclusive Economy & Housing,Bystone Ltd,Rents Payable,1330,0,COMMERCIAL SUPPLIER
02-03-2022,Inclusive Economy & Housing,Bystone Ltd,Rents Payable,1330,0,COMMERCIAL SUPPLIER
02-03-2022,Inclusive Economy & Housing,Bystone Ltd,Rents Payable,1680,0,COMMERCIAL SUPPLIER
02-03-2022,Inclusive Economy & Housing,Bystone Ltd,Rents Payable,1008,0,COMMERCIAL SUPPLIER
02-03-2022,Inclusive Economy & Housing,Bystone Ltd,Rents Payable,1280.16,0,COMMERCIAL SUPPLIER
02-03-2022,Inclusive Economy & Housing,Bystone Ltd,Rents Payable,1330,0,COMMERCIAL SUPPLIER
02-03-2022,Inclusive Economy & Housing,Bystone Ltd,Rents Payable,1540,0,COMMERCIAL SUPPLIER
02-03-2022,Inclusive Economy & Housing,Bystone Ltd,Rents Payable,1330,0,COMMERCIAL SUPPLIER
02-03-2022,Inclusive Economy & Housing,Bystone Ltd,Rents Payable,1500.24,0,COMMERCIAL SUPPLIER
02-03-2022,Inclusive Economy & Housing,Bystone Ltd,Rents Payable,1176,0,COMMERCIAL SUPPLIER
02-03-2022,Inclusive Economy & Housing,Bystone Ltd,Rents Payable,1330,0,COMMERCIAL SUPPLIER
02-03-2022,Inclusive Economy & Housing,Bystone Ltd,Rents Payable,1330,0,COMMERCIAL SUPPLIER
02-03-2022,Inclusive Economy & Housing,Bystone Ltd,Rents Payable,1540,0,COMMERCIAL SUPPLIER
02-03-2022,Inclusive Economy & Housing,Bystone Ltd,Rents Payable,1280.16,0,COMMERCIAL SUPPLIER
02-03-2022,Inclusive Economy & Housing,Bystone Ltd,Rents Payable,1330,0,COMMERCIAL SUPPLIER
02-03-2022,Inclusive Economy & Housing,Bystone Ltd,Rents Payable,1008,0,COMMERCIAL SUPPLIER
02-03-2022,Inclusive Economy & Housing,Bystone Ltd,Rents Payable,396,0,COMMERCIAL SUPPLIER
02-03-2022,Inclusive Economy & Housing,Bystone Ltd,Rents Payable,1008,0,COMMERCIAL SUPPLIER
02-03-2022,Inclusive Economy & Housing,Bystone Ltd,Rents Payable,237.5,0,COMMERCIAL SUPPLIER
02-03-2022,Inclusive Economy & Housing,Bystone Ltd,Rents Payable,1330,0,COMMERCIAL SUPPLIER
02-03-2022,Inclusive Economy & Housing,Bystone Ltd,Rents Payable,1187.5,0,COMMERCIAL SUPPLIER
02-03-2022,Inclusive Economy & Housing,D&G Lettings Ltd,Rents Payable,1500.24,0,COMMERCIAL SUPPLIER
02-03-2022,Inclusive Economy & Housing,D&G Lettings Ltd,Rents Payable,1500.24,0,COMMERCIAL SUPPLIER
02-03-2022,Inclusive Economy & Housing,D&G Lettings Ltd,Rents Payable,1120,0,COMMERCIAL SUPPLIER
02-03-2022,Inclusive Economy & Housing,D&G Lettings Ltd,Rents Payable,1680,0,COMMERCIAL SUPPLIER
02-03-2022,Inclusive Economy & Housing,D&G Lettings Ltd,Rents Payable,798,0,COMMERCIAL SUPPLIER
02-03-2022,Inclusive Economy & Housing,D&G Lettings Ltd,Rents Payable,1540,0,COMMERCIAL SUPPLIER
02-03-2022,Inclusive Economy & Housing,D&G Lettings Ltd,Rents Payable,1500.24,0,COMMERCIAL SUPPLIER
02-03-2022,Inclusive Economy & Housing,Reliance Residential Ltd,Rents Payable,273,0,COMMERCIAL SUPPLIER
02-03-2022,Inclusive Economy & Housing,Reliance Residential Ltd,Rents Payable,1120,0,COMMERCIAL SUPPLIER
02-03-2022,Inclusive Economy & Housing,Reliance Residential Ltd,Rents Payable,1064,0,COMMERCIAL SUPPLIER
02-03-2022,Inclusive Economy & Housing,Reliance Residential Ltd,Rents Payable,1330,0,COMMERCIAL SUPPLIER
02-03-2022,Inclusive Economy & Housing,Reliance Residential Ltd,Rents Payable,1330,0,COMMERCIAL SUPPLIER
02-03-2022,Inclusive Economy & Housing,Reliance Residential Ltd,Rents Payable,1064,0,COMMERCIAL SUPPLIER
02-03-2022,Inclusive Economy & Housing,Reliance Residential Ltd,Rents Payable,1330,0,COMMERCIAL SUPPLIER
02-03-2022,Inclusive Economy & Housing,Reliance Residential Ltd,Rents Payable,1330,0,COMMERCIAL SUPPLIER
02-03-2022,Inclusive Economy & Housing,Reliance Residential Ltd,Rents Payable,1540,0,COMMERCIAL SUPPLIER
02-03-2022,Inclusive Economy & Housing,South East Residentials,Rents Payable,924,0,NON COMMERCIAL SUPPLIER
02-03-2022,Inclusive Economy & Housing,South East Residentials,Rents Payable,1330,0,NON COMMERCIAL SUPPLIER
02-03-2022,Inclusive Economy & Housing,South East Residentials,Rents Payable,1120,0,NON COMMERCIAL SUPPLIER
02-03-2022,Inclusive Economy & Housing,LTA Direct Ltd,Rents Payable,1330,0,COMMERCIAL SUPPLIER
02-03-2022,Inclusive Economy & Housing,LTA Direct Ltd,Rents Payable,1280.16,0,COMMERCIAL SUPPLIER
02-03-2022,Inclusive Economy & Housing,LTA Direct Ltd,Rents Payable,1540,0,COMMERCIAL SUPPLIER
02-03-2022,Inclusive Economy & Housing,LTA Direct Ltd,Rents Payable,952,0,COMMERCIAL SUPPLIER
02-03-2022,Inclusive Economy & Housing,LTA Direct Ltd,Rents Payable,1280.16,0,COMMERCIAL SUPPLIER
02-03-2022,Inclusive Economy & Housing,LTA Direct Ltd,Rents Payable,1008,0,COMMERCIAL SUPPLIER
02-03-2022,Inclusive Economy & Housing,LTA Direct Ltd,Rents Payable,1540,0,COMMERCIAL SUPPLIER
02-03-2022,Inclusive Economy & Housing,LTA Direct Ltd,Rents Payable,1540,0,COMMERCIAL SUPPLIER
02-03-2022,Inclusive Economy & Housing,LTA Direct Ltd,Rents Payable,1280.16,0,COMMERCIAL SUPPLIER
02-03-2022,Inclusive Economy & Housing,LTA Direct Ltd,Rents Payable,1540,0,COMMERCIAL SUPPLIER
02-03-2022,Inclusive Economy & Housing,LTA Direct Ltd,Rents Payable,1280.16,0,COMMERCIAL SUPPLIER
02-03-2022,Inclusive Economy & Housing,LTA Direct Ltd,Rents Payable,1680,0,COMMERCIAL SUPPLIER
02-03-2022,Inclusive Economy & Housing,LTA Direct Ltd,Rents Payable,1540,0,COMMERCIAL SUPPLIER
02-03-2022,Inclusive Economy & Housing,LTA Direct Ltd,Rents Payable,392,0,COMMERCIAL SUPPLIER
02-03-2022,Inclusive Economy & Housing,LTA Direct Ltd,Rents Payable,1600.2,0,COMMERCIAL SUPPLIER
02-03-2022,Inclusive Economy & Housing,LTA Direct Ltd,Rents Payable,1596,0,COMMERCIAL SUPPLIER
02-03-2022,Inclusive Economy & Housing,LTA Direct Ltd,Rents Payable,1540,0,COMMERCIAL SUPPLIER
02-03-2022,Inclusive Economy & Housing,LTA Direct Ltd,Rents Payable,1330,0,COMMERCIAL SUPPLIER
02-03-2022,Inclusive Economy & Housing,LTA Direct Ltd,Rents Payable,896,0,COMMERCIAL SUPPLIER
02-03-2022,Inclusive Economy & Housing,LTA Direct Ltd,Rents Payable,896,0,COMMERCIAL SUPPLIER
02-03-2022,Inclusive Economy & Housing,LTA Direct Ltd,Rents Payable,1680,0,COMMERCIAL SUPPLIER
02-03-2022,Inclusive Economy & Housing,Direct Property Services,Rents Payable,1280.16,0,NON COMMERCIAL SUPPLIER
02-03-2022,Inclusive Economy & Housing,Direct Property Services,Rents Payable,1540,0,NON COMMERCIAL SUPPLIER
02-03-2022,Inclusive Economy & Housing,Direct Property Services,Rents Payable,1330,0,NON COMMERCIAL SUPPLIER
02-03-2022,Inclusive Economy & Housing,Direct Property Services,Rents Payable,1330,0,NON COMMERCIAL SUPPLIER
02-03-2022,Inclusive Economy & Housing,Direct Property Services,Rents Payable,1680,0,NON COMMERCIAL SUPPLIER
02-03-2022,Inclusive Economy & Housing,Direct Property Services,Rents Payable,1600.2,0,NON COMMERCIAL SUPPLIER
02-03-2022,Inclusive Economy & Housing,Direct Property Services,Rents Payable,1600.2,0,NON COMMERCIAL SUPPLIER
02-03-2022,Inclusive Economy & Housing,Direct Property Services,Rents Payable,1680,0,NON COMMERCIAL SUPPLIER
02-03-2022,Inclusive Economy & Housing,Direct Property Services,Rents Payable,1500.24,0,NON COMMERCIAL SUPPLIER
02-03-2022,Inclusive Economy & Housing,Direct Property Services,Rents Payable,1720.04,0,NON COMMERCIAL SUPPLIER
02-03-2022,Inclusive Economy & Housing,Direct Property Services,Rents Payable,1008,0,NON COMMERCIAL SUPPLIER
02-03-2022,Inclusive Economy & Housing,Direct Property Services,Rents Payable,1330,0,NON COMMERCIAL SUPPLIER
02-03-2022,Inclusive Economy & Housing,Direct Property Services,Rents Payable,427.5,0,NON COMMERCIAL SUPPLIER
02-03-2022,Inclusive Economy & Housing,Direct Property Services,Rents Payable,1600.2,0,NON COMMERCIAL SUPPLIER
02-03-2022,Inclusive Economy & Housing,Direct Property Services,Rents Payable,1330,0,NON COMMERCIAL SUPPLIER
02-03-2022,Inclusive Economy & Housing,Direct Property Services,Rents Payable,1330,0,NON COMMERCIAL SUPPLIER
02-03-2022,Inclusive Economy & Housing,Direct Property Services,Rents Payable,1428,0,NON COMMERCIAL SUPPLIER
02-03-2022,Inclusive Economy & Housing,Direct Property Services,Rents Payable,1540,0,NON COMMERCIAL SUPPLIER
02-03-2022,Inclusive Economy & Housing,Direct Property Services,Rents Payable,1680,0,NON COMMERCIAL SUPPLIER
02-03-2022,Inclusive Economy & Housing,Direct Property Services,Rents Payable,1960,0,NON COMMERCIAL SUPPLIER
02-03-2022,Inclusive Economy & Housing,Direct Property Services,Rents Payable,1680,0,NON COMMERCIAL SUPPLIER
02-03-2022,Inclusive Economy & Housing,Direct Property Services,Rents Payable,1400,0,NON COMMERCIAL SUPPLIER
02-03-2022,Inclusive Economy & Housing,Direct Property Services,Rents Payable,1176,0,NON COMMERCIAL SUPPLIER
02-03-2022,Inclusive Economy & Housing,Direct Property Services,Rents Payable,1600.2,0,NON COMMERCIAL SUPPLIER
02-03-2022,Inclusive Economy & Housing,Direct Property Services,Rents Payable,1600.2,0,NON COMMERCIAL SUPPLIER
02-03-2022,Inclusive Economy & Housing,Direct Property Services,Rents Payable,1680,0,NON COMMERCIAL SUPPLIER
02-03-2022,Inclusive Economy & Housing,Direct Property Services,Rents Payable,1680,0,NON COMMERCIAL SUPPLIER
02-03-2022,Inclusive Economy & Housing,Direct Property Services,Rents Payable,1280.16,0,NON COMMERCIAL SUPPLIER
02-03-2022,Inclusive Economy & Housing,Direct Property Services,Rents Payable,1008,0,NON COMMERCIAL SUPPLIER
02-03-2022,Inclusive Economy & Housing,Direct Property Services,Rents Payable,1600.2,0,NON COMMERCIAL SUPPLIER
02-03-2022,Inclusive Economy & Housing,Direct Property Services,Rents Payable,1330,0,NON COMMERCIAL SUPPLIER
02-03-2022,Inclusive Economy & Housing,Direct Property Services,Rents Payable,1280.16,0,NON COMMERCIAL SUPPLIER
02-03-2022,Inclusive Economy & Housing,Direct Property Services,Rents Payable,1330,0,NON COMMERCIAL SUPPLIER
02-03-2022,Inclusive Economy & Housing,M M M Homes Ltd,Rents Payable,1358,0,NON COMMERCIAL SUPPLIER
02-03-2022,Inclusive Economy & Housing,M M M Homes Ltd,Rents Payable,1330,0,NON COMMERCIAL SUPPLIER
02-03-2022,Inclusive Economy & Housing,Sai Estates MGMT Ltd,Rents Payable,1400,0,NON COMMERCIAL SUPPLIER
02-03-2022,Inclusive Economy & Housing,Sai Estates MGMT Ltd,Rents Payable,1540,0,NON COMMERCIAL SUPPLIER
02-03-2022,Inclusive Economy & Housing,Sai Estates MGMT Ltd,Rents Payable,1540,0,NON COMMERCIAL SUPPLIER
02-03-2022,Inclusive Economy & Housing,Sai Estates MGMT Ltd,Rents Payable,1064,0,NON COMMERCIAL SUPPLIER
02-03-2022,Inclusive Economy & Housing,Sai Estates MGMT Ltd,Rents Payable,1540,0,NON COMMERCIAL SUPPLIER
02-03-2022,Inclusive Economy & Housing,Sai Estates MGMT Ltd,Rents Payable,1680,0,NON COMMERCIAL SUPPLIER
02-03-2022,Inclusive Economy & Housing,Sai Estates MGMT Ltd,Rents Payable,1400,0,NON COMMERCIAL SUPPLIER
02-03-2022,Inclusive Economy & Housing,Sai Estates MGMT Ltd,Rents Payable,1680,0,NON COMMERCIAL SUPPLIER
02-03-2022,Inclusive Economy & Housing,Sandra Davidson Estate Agents,Rents Payable,1280.16,0,INDIVIDUALS
02-03-2022,Inclusive Economy & Housing,Sandra Davidson Estate Agents,Rents Payable,1280.16,0,INDIVIDUALS
02-03-2022,Inclusive Economy & Housing,Sandra Davidson Estate Agents,Rents Payable,1600.2,0,INDIVIDUALS
02-03-2022,Inclusive Economy & Housing,Sandra Davidson Estate Agents,Rents Payable,952,0,INDIVIDUALS
02-03-2022,Inclusive Economy & Housing,Sandra Davidson Estate Agents,Rents Payable,1500.24,0,INDIVIDUALS
02-03-2022,Inclusive Economy & Housing,Sandra Davidson Estate Agents,Rents Payable,135,0,INDIVIDUALS
02-03-2022,Inclusive Economy & Housing,Sandra Davidson Estate Agents,Rents Payable,1937.5,0,INDIVIDUALS
02-03-2022,Inclusive Economy & Housing,Sandra Davidson Estate Agents,Rents Payable,1937.5,0,INDIVIDUALS
02-03-2022,Inclusive Economy & Housing,Sandra Davidson Estate Agents,Rents Payable,1280.16,0,INDIVIDUALS
02-03-2022,Inclusive Economy & Housing,Sandra Davidson Estate Agents,Rents Payable,1280.16,0,INDIVIDUALS
02-03-2022,Inclusive Economy & Housing,Sandra Davidson Estate Agents,Rents Payable,1280.16,0,INDIVIDUALS
02-03-2022,Inclusive Economy & Housing,Sandra Davidson Estate Agents,Rents Payable,1280.16,0,INDIVIDUALS
02-03-2022,Inclusive Economy & Housing,Sandra Davidson Estate Agents,Rents Payable,1330,0,INDIVIDUALS
02-03-2022,Inclusive Economy & Housing,Sandra Davidson Estate Agents,Rents Payable,1540,0,INDIVIDUALS
02-03-2022,Inclusive Economy & Housing,Sandra Davidson Estate Agents,Rents Payable,840,0,INDIVIDUALS
02-03-2022,Inclusive Economy & Housing,Sandra Davidson Estate Agents,Rents Payable,1330,0,INDIVIDUALS
02-03-2022,Inclusive Economy & Housing,Sandra Davidson Estate Agents,Rents Payable,1008,0,INDIVIDUALS
02-03-2022,Inclusive Economy & Housing,Sandra Davidson Estate Agents,Rents Payable,672,0,INDIVIDUALS
02-03-2022,Inclusive Economy & Housing,Sandra Davidson Estate Agents,Rents Payable,1512,0,INDIVIDUALS
02-03-2022,Inclusive Economy & Housing,Sandra Davidson Estate Agents,Rents Payable,1204,0,INDIVIDUALS
02-03-2022,Inclusive Economy & Housing,Sandra Davidson Estate Agents,Rents Payable,1540,0,INDIVIDUALS
02-03-2022,Inclusive Economy & Housing,Maier Laing Limited t/a Highcastle Estates,Rents Payable,1008,0,COMMERCIAL SUPPLIER
02-03-2022,Inclusive Economy & Housing,Maier Laing Limited t/a Highcastle Estates,Rents Payable,-31.35,0,COMMERCIAL SUPPLIER
02-03-2022,Inclusive Economy & Housing,Maier Laing Limited t/a Highcastle Estates,Rents Payable,-88.35,0,COMMERCIAL SUPPLIER
02-03-2022,Inclusive Economy & Housing,Maier Laing Limited t/a Highcastle Estates,Rents Payable,-66,0,COMMERCIAL SUPPLIER
02-03-2022,Inclusive Economy & Housing,Maier Laing Limited t/a Highcastle Estates,Rents Payable,-186,0,COMMERCIAL SUPPLIER
02-03-2022,Inclusive Economy & Housing,Time 4 U Ltd,Rents Payable,1330,0,NON COMMERCIAL SUPPLIER
02-03-2022,Inclusive Economy & Housing,Pynnacle Assets Ltd,Rents Payable,1288,0,COMMERCIAL SUPPLIER
02-03-2022,Inclusive Economy & Housing,Pynnacle Assets Ltd,Rents Payable,1288,0,COMMERCIAL SUPPLIER
02-03-2022,Inclusive Economy & Housing,DS Mission Group t/a Property Mission,Rents Payable,1680,0,COMMERCIAL SUPPLIER
02-03-2022,Inclusive Economy & Housing,DS Mission Group t/a Property Mission,Rents Payable,1280.16,0,COMMERCIAL SUPPLIER
02-03-2022,Inclusive Economy & Housing,DS Mission Group t/a Property Mission,Rents Payable,1540,0,COMMERCIAL SUPPLIER
02-03-2022,Inclusive Economy & Housing,DS Mission Group t/a Property Mission,Rents Payable,1540,0,COMMERCIAL SUPPLIER
02-03-2022,Inclusive Economy & Housing,Maxwells Estates Ltd,Rents Payable,1330,0,NON COMMERCIAL SUPPLIER
02-03-2022,Inclusive Economy & Housing,Maxwells Estates Ltd,Rents Payable,1540,0,NON COMMERCIAL SUPPLIER
02-03-2022,Inclusive Economy & Housing,Oliver Landon Ltd,Rents Payable,76,0,COMMERCIAL SUPPLIER
02-03-2022,Inclusive Economy & Housing,Oliver Landon Ltd,Rents Payable,700,0,COMMERCIAL SUPPLIER
02-03-2022,Inclusive Economy & Housing,Oliver Landon Ltd,Rents Payable,1400,0,COMMERCIAL SUPPLIER
02-03-2022,Inclusive Economy & Housing,Excel Locations Ltd,Rents Payable,1500.24,0,COMMERCIAL SUPPLIER
02-03-2022,Inclusive Economy & Housing,Excel Locations Ltd,Rents Payable,1344,0,COMMERCIAL SUPPLIER
02-03-2022,Inclusive Economy & Housing,Excel Locations Ltd,Rents Payable,1680,0,COMMERCIAL SUPPLIER
02-03-2022,Inclusive Economy & Housing,Excel Locations Ltd,Rents Payable,784,0,COMMERCIAL SUPPLIER
02-03-2022,Inclusive Economy & Housing,Excel Locations Ltd,Rents Payable,784,0,COMMERCIAL SUPPLIER
02-03-2022,Inclusive Economy & Housing,Excel Locations Ltd,Rents Payable,784,0,COMMERCIAL SUPPLIER
02-03-2022,Inclusive Economy & Housing,Excel Locations Ltd,Rents Payable,1540,0,COMMERCIAL SUPPLIER
02-03-2022,Inclusive Economy & Housing,Excel Locations Ltd,Rents Payable,1540,0,COMMERCIAL SUPPLIER
02-03-2022,Inclusive Economy & Housing,Excel Locations Ltd,Rents Payable,1680,0,COMMERCIAL SUPPLIER
02-03-2022,Inclusive Economy & Housing,Apolonia Property Service Ltd t/a Exodus Housing,Rents Payable,1260,0,NON COMMERCIAL SUPPLIER
02-03-2022,Inclusive Economy & Housing,Apolonia Property Service Ltd t/a Exodus Housing,Rents Payable,1680,0,NON COMMERCIAL SUPPLIER
02-03-2022,Inclusive Economy & Housing,ALL SEASONS LETTINGS & MANAGEMENT LTD,Rents Payable,1330,0,
02-03-2022,Inclusive Economy & Housing,ALL SEASONS LETTINGS & MANAGEMENT LTD,Rents Payable,1330,0,
02-03-2022,Inclusive Economy & Housing,ALL SEASONS LETTINGS & MANAGEMENT LTD,Rents Payable,1680,0,
02-03-2022,Inclusive Economy & Housing,ALL SEASONS LETTINGS & MANAGEMENT LTD,Rents Payable,1540,0,
02-03-2022,Inclusive Economy & Housing,ALL SEASONS LETTINGS & MANAGEMENT LTD,Rents Payable,1540,0,
02-03-2022,Inclusive Economy & Housing,ALL SEASONS LETTINGS & MANAGEMENT LTD,Rents Payable,1280.16,0,
02-03-2022,Inclusive Economy & Housing,ALL SEASONS LETTINGS & MANAGEMENT LTD,Rents Payable,1008,0,
02-03-2022,Inclusive Economy & Housing,ALL SEASONS LETTINGS & MANAGEMENT LTD,Rents Payable,1540,0,
02-03-2022,Inclusive Economy & Housing,ALL SEASONS LETTINGS & MANAGEMENT LTD,Rents Payable,1260,0,
02-03-2022,Inclusive Economy & Housing,LTA Direct Ltd,Rents Payable,1280.16,0,COMMERCIAL SUPPLIER
02-03-2022,Inclusive Economy & Housing,LTA Direct Ltd,Rents Payable,1330,0,COMMERCIAL SUPPLIER
02-03-2022,Inclusive Economy & Housing,LTA Direct Ltd,Rents Payable,1330,0,COMMERCIAL SUPPLIER
02-03-2022,Inclusive Economy & Housing,LTA Direct Ltd,Rents Payable,665,0,COMMERCIAL SUPPLIER
02-03-2022,Inclusive Economy & Housing,LTA Direct Ltd,Rents Payable,1280.16,0,COMMERCIAL SUPPLIER
02-03-2022,Inclusive Economy & Housing,LTA Direct Ltd,Rents Payable,1260,0,COMMERCIAL SUPPLIER
02-03-2022,Inclusive Economy & Housing,Sandra Davidson Estate Agents,Rents Payable,1280.16,0,INDIVIDUALS
02-03-2022,Inclusive Economy & Housing,Sandra Davidson Estate Agents,Rents Payable,1600.2,0,INDIVIDUALS
02-03-2022,Inclusive Economy & Housing,Sandra Davidson Estate Agents,Rents Payable,1500.24,0,INDIVIDUALS
02-03-2022,Inclusive Economy & Housing,Sandra Davidson Estate Agents,Rents Payable,1280.16,0,INDIVIDUALS
02-03-2022,Inclusive Economy & Housing,Sandra Davidson Estate Agents,Rents Payable,60,0,INDIVIDUALS
02-03-2022,Inclusive Economy & Housing,Sandra Davidson Estate Agents,Rents Payable,1280.16,0,INDIVIDUALS
02-03-2022,Inclusive Economy & Housing,Sandra Davidson Estate Agents,Rents Payable,980,0,INDIVIDUALS
02-03-2022,Inclusive Economy & Housing,Sandra Davidson Estate Agents,Rents Payable,1600.2,0,INDIVIDUALS
02-03-2022,Inclusive Economy & Housing,Sandra Davidson Estate Agents,Rents Payable,1523.2,0,INDIVIDUALS
02-03-2022,Inclusive Economy & Housing,Telecom Lexus Ltd,Rents Payable,784,0,COMMERCIAL SUPPLIER
02-03-2022,Inclusive Economy & Housing,Telecom Lexus Ltd,Rents Payable,784,0,COMMERCIAL SUPPLIER
02-03-2022,Inclusive Economy & Housing,Telecom Lexus Ltd,Rents Payable,784,0,COMMERCIAL SUPPLIER
02-03-2022,Inclusive Economy & Housing,Telecom Lexus Ltd,Rents Payable,784,0,COMMERCIAL SUPPLIER
02-03-2022,Inclusive Economy & Housing,Telecom Lexus Ltd,Rents Payable,784,0,COMMERCIAL SUPPLIER
02-03-2022,Inclusive Economy & Housing,Telecom Lexus Ltd,Rents Payable,448,0,COMMERCIAL SUPPLIER
02-03-2022,Inclusive Economy & Housing,Telecom Lexus Ltd,Rents Payable,868,0,COMMERCIAL SUPPLIER
02-03-2022,Inclusive Economy & Housing,Telecom Lexus Ltd,Rents Payable,784,0,COMMERCIAL SUPPLIER
02-03-2022,Inclusive Economy & Housing,Telecom Lexus Ltd,Rents Payable,784,0,COMMERCIAL SUPPLIER
02-03-2022,Inclusive Economy & Housing,Telecom Lexus Ltd,Rents Payable,784,0,COMMERCIAL SUPPLIER
02-03-2022,Inclusive Economy & Housing,Telecom Lexus Ltd,Rents Payable,784,0,COMMERCIAL SUPPLIER
02-03-2022,Inclusive Economy & Housing,Raymond Williams Ltd,Rents Payable,1428,0,COMMERCIAL SUPPLIER
02-03-2022,Inclusive Economy & Housing,LTA Direct Ltd,Rents Payable,1540,0,COMMERCIAL SUPPLIER
02-03-2022,Inclusive Economy & Housing,LTA Direct Ltd,Rents Payable,1330,0,COMMERCIAL SUPPLIER
02-03-2022,Inclusive Economy & Housing,LTA Direct Ltd,Rents Payable,1280.16,0,COMMERCIAL SUPPLIER
02-03-2022,Inclusive Economy & Housing,Aqua Property Limited,Rents Payable,1540,0,COMMERCIAL SUPPLIER
02-03-2022,Inclusive Economy & Housing,Aqua Property Limited,Rents Payable,1500.24,0,COMMERCIAL SUPPLIER
02-03-2022,Inclusive Economy & Housing,Aqua Property Limited,Rents Payable,1008,0,COMMERCIAL SUPPLIER
02-03-2022,Inclusive Economy & Housing,N & N Property Management Limited,Rents Payable,1680,0,COMMERCIAL SUPPLIER
02-03-2022,Inclusive Economy & Housing,N & N Property Management Limited,Rents Payable,1540,0,COMMERCIAL SUPPLIER
02-03-2022,Inclusive Economy & Housing,N & N Property Management Limited,Rents Payable,1260,0,COMMERCIAL SUPPLIER
02-03-2022,Inclusive Economy & Housing,N & N Property Management Limited,Rents Payable,1680,0,COMMERCIAL SUPPLIER
02-03-2022,Inclusive Economy & Housing,N & N Property Management Limited,Rents Payable,1344,0,COMMERCIAL SUPPLIER
02-03-2022,Inclusive Economy & Housing,N & N Property Management Limited,Rents Payable,1680,0,COMMERCIAL SUPPLIER
02-03-2022,Inclusive Economy & Housing,N & N Property Management Limited,Rents Payable,1540,0,COMMERCIAL SUPPLIER
02-03-2022,Inclusive Economy & Housing,Sandra Davidson Estate Agents,Rents Payable,1500.24,0,INDIVIDUALS
02-03-2022,Inclusive Economy & Housing,Sandra Davidson Estate Agents,Rents Payable,1484,0,INDIVIDUALS
02-03-2022,Inclusive Economy & Housing,Sandra Davidson Estate Agents,Rents Payable,1500.24,0,INDIVIDUALS
02-03-2022,Inclusive Economy & Housing,Sandra Davidson Estate Agents,Rents Payable,1330,0,INDIVIDUALS
02-03-2022,Inclusive Economy & Housing,Sandra Davidson Estate Agents,Rents Payable,1500.24,0,INDIVIDUALS
02-03-2022,Inclusive Economy & Housing,Sandra Davidson Estate Agents,Rents Payable,1500.24,0,INDIVIDUALS
02-03-2022,Inclusive Economy & Housing,Sandra Davidson Estate Agents,Rents Payable,868,0,INDIVIDUALS
02-03-2022,Inclusive Economy & Housing,Sandra Davidson Estate Agents,Rents Payable,1500.24,0,INDIVIDUALS
02-03-2022,Inclusive Economy & Housing,Sandra Davidson Estate Agents,Rents Payable,1500.24,0,INDIVIDUALS
02-03-2022,Inclusive Economy & Housing,Sandra Davidson Estate Agents,Rents Payable,1500.24,0,INDIVIDUALS
02-03-2022,Inclusive Economy & Housing,Sandra Davidson Estate Agents,Rents Payable,1456,0,INDIVIDUALS
02-03-2022,Inclusive Economy & Housing,Sandra Davidson Estate Agents,Rents Payable,1680,0,INDIVIDUALS
02-03-2022,Inclusive Economy & Housing,Sandra Davidson Estate Agents,Rents Payable,1600.2,0,INDIVIDUALS
02-03-2022,Inclusive Economy & Housing,Sandra Davidson Estate Agents,Rents Payable,1540,0,INDIVIDUALS
02-03-2022,Inclusive Economy & Housing,Sandra Davidson Estate Agents,Rents Payable,1600.2,0,INDIVIDUALS
02-03-2022,Inclusive Economy & Housing,Sandra Davidson Estate Agents,Rents Payable,1680,0,INDIVIDUALS
02-03-2022,Inclusive Economy & Housing,Sandra Davidson Estate Agents,Rents Payable,1600.2,0,INDIVIDUALS
02-03-2022,Inclusive Economy & Housing,Sandra Davidson Estate Agents,Rents Payable,1330,0,INDIVIDUALS
02-03-2022,Inclusive Economy & Housing,Sandra Davidson Estate Agents,Rents Payable,1330,0,INDIVIDUALS
02-03-2022,Inclusive Economy & Housing,Sandra Davidson Estate Agents,Rents Payable,1280.16,0,INDIVIDUALS
02-03-2022,Inclusive Economy & Housing,Sandra Davidson Estate Agents,Rents Payable,840,0,INDIVIDUALS
02-03-2022,Inclusive Economy & Housing,Sandra Davidson Estate Agents,Rents Payable,1330,0,INDIVIDUALS
02-03-2022,Inclusive Economy & Housing,Sandra Davidson Estate Agents,Rents Payable,784,0,INDIVIDUALS
02-03-2022,Inclusive Economy & Housing,Sandra Davidson Estate Agents,Rents Payable,1344,0,INDIVIDUALS
02-03-2022,Inclusive Economy & Housing,Sandra Davidson Estate Agents,Rents Payable,777.24,0,INDIVIDUALS
02-03-2022,Inclusive Economy & Housing,Sandra Davidson Estate Agents,Rents Payable,1680,0,INDIVIDUALS
02-03-2022,Inclusive Economy & Housing,Sandra Davidson Estate Agents,Rents Payable,1148,0,INDIVIDUALS
02-03-2022,Inclusive Economy & Housing,Sandra Davidson Estate Agents,Rents Payable,1500.24,0,INDIVIDUALS
02-03-2022,Inclusive Economy & Housing,Sandra Davidson Estate Agents,Rents Payable,1680,0,INDIVIDUALS
02-03-2022,Inclusive Economy & Housing,Sandra Davidson Estate Agents,Rents Payable,1680,0,INDIVIDUALS
02-03-2022,Inclusive Economy & Housing,Raymond Williams Ltd,Rents Payable,1428,0,COMMERCIAL SUPPLIER
02-03-2022,Inclusive Economy & Housing,Raymond Williams Ltd,Rents Payable,1280.16,0,COMMERCIAL SUPPLIER
02-03-2022,Inclusive Economy & Housing,Raymond Williams Ltd,Rents Payable,896,0,COMMERCIAL SUPPLIER
02-03-2022,Inclusive Economy & Housing,Raymond Williams Ltd,Rents Payable,700,0,COMMERCIAL SUPPLIER
02-03-2022,Inclusive Economy & Housing,Raymond Williams Ltd,Rents Payable,896,0,COMMERCIAL SUPPLIER
02-03-2022,Inclusive Economy & Housing,Raymond Williams Ltd,Rents Payable,896,0,COMMERCIAL SUPPLIER
02-03-2022,Inclusive Economy & Housing,Raymond Williams Ltd,Rents Payable,1600.2,0,COMMERCIAL SUPPLIER
02-03-2022,Inclusive Economy & Housing,Raymond Williams Ltd,Rents Payable,704,0,COMMERCIAL SUPPLIER
02-03-2022,Inclusive Economy & Housing,Raymond Williams Ltd,Rents Payable,896,0,COMMERCIAL SUPPLIER
02-03-2022,Inclusive Economy & Housing,Raymond Williams Ltd,Rents Payable,1330,0,COMMERCIAL SUPPLIER
02-03-2022,Inclusive Economy & Housing,Raymond Williams Ltd,Rents Payable,1540,0,COMMERCIAL SUPPLIER
02-03-2022,Inclusive Economy & Housing,Raymond Williams Ltd,Rents Payable,896,0,COMMERCIAL SUPPLIER
02-03-2022,Inclusive Economy & Housing,Raymond Williams Ltd,Rents Payable,1330,0,COMMERCIAL SUPPLIER
02-03-2022,Inclusive Economy & Housing,Raymond Williams Ltd,Rents Payable,1500.24,0,COMMERCIAL SUPPLIER
02-03-2022,Inclusive Economy & Housing,Raymond Williams Ltd,Rents Payable,1540,0,COMMERCIAL SUPPLIER
02-03-2022,Inclusive Economy & Housing,Raymond Williams Ltd,Rents Payable,1540,0,COMMERCIAL SUPPLIER
